Department Family,Entity,Date,Expense Type,Expense Area,Supplier,Transaction Number,Amount,VAT Registration Number
Department of Health,East Sussex Healthcare NHS Trust,02/05/2014,GENERAL RATES,Commercial,ROTHER DISTRICT COUNCIL,0001425048,6025.00,
Department of Health,East Sussex Healthcare NHS Trust,02/05/2014,GENERAL RATES,Commercial,WEALDEN DISTRICT COUNCIL,0001425049,10893.00,
Department of Health,East Sussex Healthcare NHS Trust,02/05/2014,GENERAL RATES,Commercial,WEALDEN DISTRICT COUNCIL,0001425050,6555.00,
Department of Health,East Sussex Healthcare NHS Trust,02/05/2014,GENERAL RATES,Commercial,EASTBOURNE BOROUGH COUNCIL,0001425051,1707.00,
Department of Health,East Sussex Healthcare NHS Trust,02/05/2014,GENERAL RATES,Commercial,EASTBOURNE BOROUGH COUNCIL,0001425052,53422.00,
Department of Health,East Sussex Healthcare NHS Trust,02/05/2014,GENERAL RATES,Commercial,HASTINGS BOROUGH COUNCIL,0001425054,85796.00,
Department of Health,East Sussex Healthcare NHS Trust,02/05/2014,GENERAL RATES,Commercial,LEWES DISTRICT COUNCIL,0001425055,5688.00,
Department of Health,East Sussex Healthcare NHS Trust,07/05/2014,YEAR END NRVS JV GENERAL CRS,NHS Creditors,GUY'S & ST THOMAS' NHS FOUNDATION TRUST,0000139496,2756.00,
Department of Health,East Sussex Healthcare NHS Trust,07/05/2014,YEAR END NRVS JV GENERAL CRS,NHS Creditors,EPSOM AND ST HELIER UNIV HOSP NHS TRUST,0000139527,1064.86,
Department of Health,East Sussex Healthcare NHS Trust,07/05/2014,YEAR END NRVS JV GENERAL CRS,NHS Creditors,FRIMLEY PARK HOSPITAL NHS FOUND. TRUST,0000139533,1262.00,
Department of Health,East Sussex Healthcare NHS Trust,07/05/2014,YEAR END NRVS JV GENERAL CRS,NHS Creditors,FRIMLEY PARK HOSPITAL NHS FOUND. TRUST,0000139534,628.20,
Department of Health,East Sussex Healthcare NHS Trust,07/05/2014,YEAR END NRVS JV GENERAL CRS,NHS Creditors,ST GEORGE'S HEALTHCARE NHS TRUST,0000139554,3255.00,
Department of Health,East Sussex Healthcare NHS Trust,07/05/2014,SA-FPC REF FP10S,Cross Site,NHS BUSINESS SERVICES AUTHORITY,0000139576,8333.07,
Department of Health,East Sussex Healthcare NHS Trust,07/05/2014,NHS SUPPLY CHAIN CREDITORS,Cross Site,NHS SUPPLY CHAIN,0000139600,187462.60,
Department of Health,East Sussex Healthcare NHS Trust,07/05/2014,YEAR END NRVS JV GENERAL CRS,NHS Creditors,ROYAL BROMPTON & HAREFIELD NHS FND TRST,0000139604,1723.14,
Department of Health,East Sussex Healthcare NHS Trust,07/05/2014,YEAR END NRVS JV GENERAL CRS,NHS Creditors,PUBLIC HEALTH ENGLAND,0000139610,1132.71,
Department of Health,East Sussex Healthcare NHS Trust,07/05/2014,YEAR END NRVS JV GENERAL CRS,NHS Creditors,PUBLIC HEALTH ENGLAND,0000139615,822.77,
Department of Health,East Sussex Healthcare NHS Trust,07/05/2014,YEAR END NRVS JV GENERAL CRS,NHS Creditors,IMPERIAL COLLEGE HEALTHCARE NHS TRUST,0000139639,711.00,
Department of Health,East Sussex Healthcare NHS Trust,07/05/2014,YEAR END NRVS JV GENERAL CRS,NHS Creditors,IMPERIAL COLLEGE HEALTHCARE NHS TRUST,0000139650,740.00,
Department of Health,East Sussex Healthcare NHS Trust,07/05/2014,YEAR END NRVS JV GENERAL CRS,NHS Creditors,EAST KENT HOSPITALS UNIVERSITY NHS FT,0000139653,625.24,
Department of Health,East Sussex Healthcare NHS Trust,07/05/2014,CT SCANNER - SIEMENS MEDICAL,Integrated Care,NHS SUPPLY CHAIN (MAIDSTONE),0000139658,95285.26,
Department of Health,East Sussex Healthcare NHS Trust,07/05/2014,YEAR END NRVS JV GENERAL CRS,NHS Creditors,GREAT ORMOND STREET HOSPITAL FOR CHILDRE,0000139671,567.00,
Department of Health,East Sussex Healthcare NHS Trust,07/05/2014,CT SCANNER - SIEMENS MEDICAL,Integrated Care,NHS SUPPLY CHAIN (MAIDSTONE),0000139694,55872.30,
Department of Health,East Sussex Healthcare NHS Trust,07/05/2014,YEAR END NRVS JV GENERAL CRS,NHS Creditors,GUY'S & ST THOMAS' NHS FOUNDATION TRUST,0000139739,4197.48,
Department of Health,East Sussex Healthcare NHS Trust,07/05/2014,NHS SUPPLY CHAIN,Planned Care,NHS SUPPLY CHAIN (MAIDSTONE),0000139773,11519.98,
Department of Health,East Sussex Healthcare NHS Trust,07/05/2014,AGENCY SHO,Integrated Care,DR-LOCUMS,0000295762,726.00,
Department of Health,East Sussex Healthcare NHS Trust,07/05/2014,AGENCY SHO,Integrated Care,NC HEALTHCARE LTD,0000295995,3110.40,
Department of Health,East Sussex Healthcare NHS Trust,07/05/2014,AGENCY SHO,Integrated Care,CAPITAL CARE SERVICES (UK) LTD,0000296169,1188.00,
Department of Health,East Sussex Healthcare NHS Trust,07/05/2014,AGENCY SPECIALIST REG,Integrated Care,RICHMOND MEDICAL AGENCY LTD,0000296237,3510.00,
Department of Health,East Sussex Healthcare NHS Trust,07/05/2014,AGENCY CONSULTANT,Integrated Care,TLC - THE LOCUM CONSULTANCY,0000296316,3984.00,
Department of Health,East Sussex Healthcare NHS Trust,07/05/2014,PROFESSIONAL FEES,Corporate Services,HAYS SPECIALIST RECRUITMENT LTD,0000296617,1934.76,
Department of Health,East Sussex Healthcare NHS Trust,07/05/2014,AGENCY SHO,Integrated Care,HCL DOCTORS,0000296627,593.93,
Department of Health,East Sussex Healthcare NHS Trust,07/05/2014,AGENCY SPECIALIST REG,Integrated Care,PROVIDE MEDICAL,0000296666,865.44,
Department of Health,East Sussex Healthcare NHS Trust,07/05/2014,AGENCY NURSE - QUALIFIED,Integrated Care,MAYDAY HEALTHCARE PLC,0000296693,2027.00,
Department of Health,East Sussex Healthcare NHS Trust,07/05/2014,AGENCY NURSE - QUALIFIED,Integrated Care,MAYDAY HEALTHCARE PLC,0000296694,642.00,
Department of Health,East Sussex Healthcare NHS Trust,07/05/2014,AGENCY NURSE - QUALIFIED,Integrated Care,MAYDAY HEALTHCARE PLC,0000296697,1707.85,
Department of Health,East Sussex Healthcare NHS Trust,07/05/2014,AGENCY NURSE - QUALIFIED,Integrated Care,MAYDAY HEALTHCARE PLC,0000296699,535.73,
Department of Health,East Sussex Healthcare NHS Trust,07/05/2014,AGENCY NURSE - QUALIFIED,Integrated Care,MAYDAY HEALTHCARE PLC,0000296700,1762.64,
Department of Health,East Sussex Healthcare NHS Trust,07/05/2014,AGENCY NURSE - QUALIFIED,Integrated Care,MAYDAY HEALTHCARE PLC,0000296707,506.75,
Department of Health,East Sussex Healthcare NHS Trust,07/05/2014,AGENCY NURSE - QUALIFIED,Integrated Care,MAYDAY HEALTHCARE PLC,0000296708,615.25,
Department of Health,East Sussex Healthcare NHS Trust,07/05/2014,AGENCY NURSE - QUALIFIED,Integrated Care,MAYDAY HEALTHCARE PLC,0000296709,506.75,
Department of Health,East Sussex Healthcare NHS Trust,07/05/2014,AGENCY NURSE - QUALIFIED,Integrated Care,MAYDAY HEALTHCARE PLC,0000296717,537.25,
Department of Health,East Sussex Healthcare NHS Trust,07/05/2014,AGENCY NURSE - QUALIFIED,Integrated Care,MAYDAY HEALTHCARE PLC,0000296724,1013.50,
Department of Health,East Sussex Healthcare NHS Trust,07/05/2014,AGENCY NURSE - QUALIFIED,Integrated Care,MAYDAY HEALTHCARE PLC,0000296725,1079.20,
Department of Health,East Sussex Healthcare NHS Trust,07/05/2014,AGENCY NURSE - QUALIFIED,Integrated Care,MAYDAY HEALTHCARE PLC,0000296726,562.20,
Department of Health,East Sussex Healthcare NHS Trust,07/05/2014,AGENCY NURSE - QUALIFIED,Integrated Care,MAYDAY HEALTHCARE PLC,0000296727,572.03,
Department of Health,East Sussex Healthcare NHS Trust,07/05/2014,AGENCY NURSE - QUALIFIED,Integrated Care,MAYDAY HEALTHCARE PLC,0000296741,572.03,
Department of Health,East Sussex Healthcare NHS Trust,07/05/2014,AGENCY NURSE - QUALIFIED,Integrated Care,MAYDAY HEALTHCARE PLC,0000296746,506.75,
Department of Health,East Sussex Healthcare NHS Trust,07/05/2014,AGENCY NURSE - QUALIFIED,Integrated Care,MAYDAY HEALTHCARE PLC,0000296747,506.75,
Department of Health,East Sussex Healthcare NHS Trust,07/05/2014,AGENCY NURSE - QUALIFIED,Integrated Care,MAYDAY HEALTHCARE PLC,0000296750,914.38,
Department of Health,East Sussex Healthcare NHS Trust,07/05/2014,AGENCY NURSE - QUALIFIED,Integrated Care,MAYDAY HEALTHCARE PLC,0000296751,914.38,
Department of Health,East Sussex Healthcare NHS Trust,07/05/2014,AGENCY NURSE - QUALIFIED,Integrated Care,MAYDAY HEALTHCARE PLC,0000296756,572.03,
Department of Health,East Sussex Healthcare NHS Trust,07/05/2014,AGENCY NURSE - QUALIFIED,Integrated Care,MAYDAY HEALTHCARE PLC,0000296758,535.73,
Department of Health,East Sussex Healthcare NHS Trust,07/05/2014,AGENCY NURSE - QUALIFIED,Integrated Care,MAYDAY HEALTHCARE PLC,0000296759,578.68,
Department of Health,East Sussex Healthcare NHS Trust,07/05/2014,AGENCY NURSE - QUALIFIED,Integrated Care,MAYDAY HEALTHCARE PLC,0000296761,582.00,
Department of Health,East Sussex Healthcare NHS Trust,07/05/2014,AGENCY ANCILLARY,Commercial,TEMPORARY & PERMANENT REC SERVICES LTD,0000296762,5769.44,
Department of Health,East Sussex Healthcare NHS Trust,07/05/2014,AGENCY ANCILLARY,Commercial,TEMPORARY & PERMANENT REC SERVICES LTD,0000296763,710.65,
Department of Health,East Sussex Healthcare NHS Trust,07/05/2014,AGENCY TECHNICIAN,Integrated Care,DYNAMIC FUTURES CORPORATION LTD,0000296766,1665.00,
Department of Health,East Sussex Healthcare NHS Trust,07/05/2014,AGENCY MTO,Integrated Care,YOUR WORLD RECRUITMENT LTD,0000296769,2086.80,
Department of Health,East Sussex Healthcare NHS Trust,07/05/2014,AGENCY ANCILLARY,Commercial,TEMPORARY & PERMANENT REC SERVICES LTD,0000296793,632.66,
Department of Health,East Sussex Healthcare NHS Trust,07/05/2014,AGENCY ANCILLARY,Commercial,TEMPORARY & PERMANENT REC SERVICES LTD,0000296799,867.63,
Department of Health,East Sussex Healthcare NHS Trust,07/05/2014,AGENCY ANCILLARY,Commercial,TEMPORARY & PERMANENT REC SERVICES LTD,0000296800,812.16,
Department of Health,East Sussex Healthcare NHS Trust,07/05/2014,AGENCY MLSO,Integrated Care,THE PLACEMENT GROUP,0000296802,1109.52,
Department of Health,East Sussex Healthcare NHS Trust,07/05/2014,AGENCY NURSE - QUALIFIED,Integrated Care,TEAM24 LTD,0000296825,579.19,
Department of Health,East Sussex Healthcare NHS Trust,07/05/2014,AGENCY NURSE - QUALIFIED,Integrated Care,TEAM24 LTD,0000296826,541.69,
Department of Health,East Sussex Healthcare NHS Trust,07/05/2014,AGENCY NURSE - QUALIFIED,Integrated Care,TEAM24 LTD,0000296828,541.69,
Department of Health,East Sussex Healthcare NHS Trust,07/05/2014,AGENCY NURSE - QUALIFIED,Integrated Care,TEAM24 LTD,0000296830,569.19,
Department of Health,East Sussex Healthcare NHS Trust,07/05/2014,AGENCY NURSE - QUALIFIED,Integrated Care,TEAM24 LTD,0000296831,541.69,
Department of Health,East Sussex Healthcare NHS Trust,07/05/2014,AGENCY NURSE - QUALIFIED,Integrated Care,MAYFAIR,0000296836,454.50,
Department of Health,East Sussex Healthcare NHS Trust,07/05/2014,AGENCY ANCILLARY,Commercial,TEMPORARY & PERMANENT REC SERVICES LTD,0000296844,581.55,
Department of Health,East Sussex Healthcare NHS Trust,07/05/2014,AGENCY SHO,Integrated Care,MYLOCUM LTD,0000296855,2765.29,
Department of Health,East Sussex Healthcare NHS Trust,07/05/2014,AGENCY SHO,Integrated Care,TOTAL ASSIST RECRUITMENT LTD,0000296860,593.46,
Department of Health,East Sussex Healthcare NHS Trust,07/05/2014,AGENCY MTO,Integrated Care,YOUR WORLD RECRUITMENT LTD,0000296865,1929.76,
Department of Health,East Sussex Healthcare NHS Trust,07/05/2014,AGENCY ADMIN & CLERICAL,Corporate Services,VENN GROUP LTD,0000296867,1719.50,
Department of Health,East Sussex Healthcare NHS Trust,07/05/2014,AGENCY ADMIN & CLERICAL,Corporate Services,VENN GROUP LTD,0000296868,1166.28,
Department of Health,East Sussex Healthcare NHS Trust,07/05/2014,AGENCY MTO,Integrated Care,YOUR WORLD RECRUITMENT LTD,0000296886,1687.20,
Department of Health,East Sussex Healthcare NHS Trust,07/05/2014,AGENCY MLSO,Integrated Care,LABMED,0000296887,1347.76,
Department of Health,East Sussex Healthcare NHS Trust,07/05/2014,AGENCY MLSO,Integrated Care,LABMED,0000296891,1437.76,
Department of Health,East Sussex Healthcare NHS Trust,07/05/2014,AGENCY TECHNICIAN,Integrated Care,THE PLACEMENT GROUP,0000296892,1381.97,
Department of Health,East Sussex Healthcare NHS Trust,07/05/2014,AGENCY TECHNICIAN,Integrated Care,THE PLACEMENT GROUP,0000296893,1533.64,
Department of Health,East Sussex Healthcare NHS Trust,07/05/2014,AGENCY MLSO,Integrated Care,THE PLACEMENT GROUP,0000296894,1386.90,
Department of Health,East Sussex Healthcare NHS Trust,07/05/2014,AGENCY MLSO,Integrated Care,LABMED,0000296895,1347.76,
Department of Health,East Sussex Healthcare NHS Trust,07/05/2014,AGENCY RADIOGRAPHY STAFF,Integrated Care,JENNIE REEVES RADIOGRAPHERS AGENCY LTD,0000296896,2000.93,
Department of Health,East Sussex Healthcare NHS Trust,07/05/2014,AGENCY DRIVERS,Commercial,GRAFTERS RECRUITMENT CONSULTANTS LTD,0000296899,1015.86,
Department of Health,East Sussex Healthcare NHS Trust,07/05/2014,AGENCY SHO,Integrated Care,NC HEALTHCARE LTD,0000296902,1360.80,
Department of Health,East Sussex Healthcare NHS Trust,07/05/2014,LOCUM STAFF GRADE,Integrated Care,MEDECHO LTD,0000296903,2049.00,
Department of Health,East Sussex Healthcare NHS Trust,07/05/2014,AGENCY SPECIALIST REG,Integrated Care,NC HEALTHCARE LTD,0000296904,3612.00,
Department of Health,East Sussex Healthcare NHS Trust,07/05/2014,AGENCY SHO,Integrated Care,NC HEALTHCARE LTD,0000296905,546.00,
Department of Health,East Sussex Healthcare NHS Trust,07/05/2014,AGENCY MTO,Integrated Care,YOUR WORLD RECRUITMENT LTD,0000296909,1697.26,
Department of Health,East Sussex Healthcare NHS Trust,07/05/2014,AGENCY NURSE - QUALIFIED,Integrated Care,TEAM24 LTD,0000296911,569.16,
Department of Health,East Sussex Healthcare NHS Trust,07/05/2014,AGENCY NURSE - QUALIFIED,Integrated Care,TEAM24 LTD,0000296912,565.41,
Department of Health,East Sussex Healthcare NHS Trust,07/05/2014,AGENCY NURSE - QUALIFIED,Integrated Care,TEAM24 LTD,0000296913,541.69,
Department of Health,East Sussex Healthcare NHS Trust,07/05/2014,AGENCY CONSULTANT,Integrated Care,MEDACS HEALTHCARE SERVICES LTD,0000296928,3933.01,
Department of Health,East Sussex Healthcare NHS Trust,07/05/2014,AGENCY MTO,Integrated Care,YOURWORLD NURSING,0000296952,1780.18,
Department of Health,East Sussex Healthcare NHS Trust,07/05/2014,AGENCY NURSE - QUALIFIED,Integrated Care,YOURWORLD NURSING,0000296953,1298.53,
Department of Health,East Sussex Healthcare NHS Trust,07/05/2014,AGENCY NURSE - QUALIFIED,Integrated Care,YOURWORLD NURSING,0000296954,721.50,
Department of Health,East Sussex Healthcare NHS Trust,07/05/2014,AGENCY NURSE - QUALIFIED,Integrated Care,YOURWORLD NURSING,0000296955,1600.25,
Department of Health,East Sussex Healthcare NHS Trust,07/05/2014,AGENCY NURSE - QUALIFIED,Integrated Care,YOURWORLD NURSING,0000296957,2133.25,
Department of Health,East Sussex Healthcare NHS Trust,07/05/2014,AGENCY MTO,Integrated Care,YOURWORLD NURSING,0000296958,1480.00,
Department of Health,East Sussex Healthcare NHS Trust,07/05/2014,AGENCY NURSE - QUALIFIED,Integrated Care,YOURWORLD NURSING,0000296959,1387.50,
Department of Health,East Sussex Healthcare NHS Trust,07/05/2014,AGENCY MTO,Integrated Care,YOUR WORLD RECRUITMENT LTD,0000296965,1325.26,
Department of Health,East Sussex Healthcare NHS Trust,07/05/2014,AGENCY MTO,Integrated Care,YOUR WORLD RECRUITMENT LTD,0000296966,1731.60,
Department of Health,East Sussex Healthcare NHS Trust,07/05/2014,AGENCY MTO,Integrated Care,YOUR WORLD RECRUITMENT LTD,0000296967,1665.00,
Department of Health,East Sussex Healthcare NHS Trust,07/05/2014,AGENCY SPECIALIST REG,Integrated Care,CAPITAL CARE SERVICES (UK) LTD,0000296975,3089.26,
Department of Health,East Sussex Healthcare NHS Trust,07/05/2014,AGENCY SPECIALIST REG,Integrated Care,ATHONA LIMITED,0000296978,2554.49,
Department of Health,East Sussex Healthcare NHS Trust,07/05/2014,AGENCY ADMIN & CLERICAL,Corporate Services,VENN GROUP LTD,0000296979,2292.66,
Department of Health,East Sussex Healthcare NHS Trust,07/05/2014,AGENCY ADMIN & CLERICAL,Corporate Services,VENN GROUP LTD,0000296980,1224.60,
Department of Health,East Sussex Healthcare NHS Trust,07/05/2014,AGENCY RADIOGRAPHY STAFF,Integrated Care,RIG MEDICAL RECRUIT LTD,0000296981,1197.00,
Department of Health,East Sussex Healthcare NHS Trust,07/05/2014,AGENCY RADIOGRAPHY STAFF,Integrated Care,RIG LOCUMS LIMITED,0000296982,1739.76,
Department of Health,East Sussex Healthcare NHS Trust,07/05/2014,AGENCY RADIOGRAPHY STAFF,Integrated Care,RIG MEDICAL RECRUIT LTD,0000296983,1728.00,
Department of Health,East Sussex Healthcare NHS Trust,07/05/2014,AGENCY RADIOGRAPHY STAFF,Integrated Care,RIG MEDICAL RECRUIT LTD,0000296984,1620.00,
Department of Health,East Sussex Healthcare NHS Trust,07/05/2014,AGENCY RADIOGRAPHY STAFF,Integrated Care,RIG MEDICAL RECRUIT LTD,0000296986,957.60,
Department of Health,East Sussex Healthcare NHS Trust,07/05/2014,AGENCY STAFF GRADE,Integrated Care,DOCTORS ON CALL,0000296987,1596.00,
Department of Health,East Sussex Healthcare NHS Trust,07/05/2014,AGENCY RADIOGRAPHY STAFF,Integrated Care,RIG LOCUMS LIMITED,0000296988,2535.00,
Department of Health,East Sussex Healthcare NHS Trust,07/05/2014,AGENCY SPECIALIST REG,Integrated Care,TOTAL ASSIST RECRUITMENT LTD,0000296990,797.44,
Department of Health,East Sussex Healthcare NHS Trust,07/05/2014,AGENCY SHO,Integrated Care,TOTAL ASSIST RECRUITMENT LTD,0000296991,2104.14,
Department of Health,East Sussex Healthcare NHS Trust,07/05/2014,PROFESSIONAL FEES,Corporate Services,HAYS SPECIALIST RECRUITMENT LTD,0000296993,2418.45,
Department of Health,East Sussex Healthcare NHS Trust,07/05/2014,AGENCY ADMIN & CLERICAL,Corporate Services,CY EXECUTIVE RESOURCING LTD,0000296996,2832.00,
Department of Health,East Sussex Healthcare NHS Trust,07/05/2014,LOCUM STAFF GRADE,Integrated Care,MYLOCUM LTD,0000297014,987.00,
Department of Health,East Sussex Healthcare NHS Trust,07/05/2014,AGENCY CONSULTANT,Integrated Care,NC HEALTHCARE LTD,0000297015,4218.00,
Department of Health,East Sussex Healthcare NHS Trust,07/05/2014,AGENCY SHO,Integrated Care,NC HEALTHCARE LTD,0000297016,1050.00,
Department of Health,East Sussex Healthcare NHS Trust,07/05/2014,AGENCY SPECIALIST REG,Integrated Care,INTERACT MEDICAL,0000297017,1964.40,
Department of Health,East Sussex Healthcare NHS Trust,07/05/2014,AGENCY SPECIALIST REG,Integrated Care,NC HEALTHCARE LTD,0000297020,3528.00,
Department of Health,East Sussex Healthcare NHS Trust,07/05/2014,AGENCY SPECIALIST REG,Integrated Care,NC HEALTHCARE LTD,0000297022,2268.00,
Department of Health,East Sussex Healthcare NHS Trust,07/05/2014,AGENCY NURSE - QUALIFIED,Integrated Care,MAYDAY HEALTHCARE PLC,0000297032,1199.10,
Department of Health,East Sussex Healthcare NHS Trust,07/05/2014,AGENCY NURSE - QUALIFIED,Integrated Care,MAYDAY HEALTHCARE PLC,0000297058,1071.46,
Department of Health,East Sussex Healthcare NHS Trust,07/05/2014,AGENCY NURSE - QUALIFIED,Integrated Care,MAYDAY HEALTHCARE PLC,0000297059,1071.46,
Department of Health,East Sussex Healthcare NHS Trust,07/05/2014,AGENCY SPECIALIST REG,Integrated Care,EVERGOOD ASSOCIATES,0000297074,2485.39,
Department of Health,East Sussex Healthcare NHS Trust,07/05/2014,AGENCY SHO,Integrated Care,MEDACS HEALTHCARE SERVICES LTD,0000297078,1867.63,
Department of Health,East Sussex Healthcare NHS Trust,07/05/2014,AGENCY ADMIN & CLERICAL,Corporate Services,CY EXECUTIVE RESOURCING LTD,0000297091,3398.40,
Department of Health,East Sussex Healthcare NHS Trust,07/05/2014,AGENCY CONSULTANT,Integrated Care,EVERGOOD ASSOCIATES,0000297092,1489.46,
Department of Health,East Sussex Healthcare NHS Trust,07/05/2014,AGENCY RADIOGRAPHY STAFF,Integrated Care,RIG MEDICAL RECRUIT LTD,0000297187,1620.00,
Department of Health,East Sussex Healthcare NHS Trust,07/05/2014,AGENCY RADIOGRAPHY STAFF,Integrated Care,RIG MEDICAL RECRUIT LTD,0000297190,1197.00,
Department of Health,East Sussex Healthcare NHS Trust,07/05/2014,ENGINEERING MATERIALS,Commercial,WHITTLE VALVE REPAIRS,0000364028,611.40,
Department of Health,East Sussex Healthcare NHS Trust,07/05/2014,PROSTHESES-HIP,Integrated Care,STRYKER UK,0000364049,1767.53,
Department of Health,East Sussex Healthcare NHS Trust,07/05/2014,PROFESSIONAL FEES,Commercial,NIGEL HOLLAND,0000364186,2478.80,
Department of Health,East Sussex Healthcare NHS Trust,07/05/2014,MINOR WORKS - BUILDING,Integrated Care,EASTBOURNE ELECTRICAL,0000364188,1575.60,
Department of Health,East Sussex Healthcare NHS Trust,07/05/2014,CAPITAL EXPENDITURE,Other Central,EASTBOURNE ELECTRICAL,0000364189,2007.56,
Department of Health,East Sussex Healthcare NHS Trust,07/05/2014,MINOR WORKS - BUILDING,Integrated Care,BOOKER & BEST LIMITED,0000364190,1721.25,
Department of Health,East Sussex Healthcare NHS Trust,07/05/2014,SLE,Integrated Care,SLE LTD,0000624107,1137.00,
Department of Health,East Sussex Healthcare NHS Trust,07/05/2014,MEDICAL GAS - VIE RENTAL,Commercial,BOC (MANCHESTER)LTD,0000624152,787.81,
Department of Health,East Sussex Healthcare NHS Trust,07/05/2014,MEDICAL GAS - VIE RENTAL,Commercial,BOC (MANCHESTER)LTD,0000624155,542.82,
Department of Health,East Sussex Healthcare NHS Trust,07/05/2014,CONT.MAIN-MED & SURG EQUIP,Integrated Care,OLYMPUS KEYMED,0000624211,7864.26,
Department of Health,East Sussex Healthcare NHS Trust,07/05/2014,KEYMED (SURGERY),Planned Care,OLYMPUS KEYMED,0000624212,7875.51,
Department of Health,East Sussex Healthcare NHS Trust,07/05/2014,KEYMED (SURGERY),Planned Care,OLYMPUS KEYMED,0000624213,25492.82,
Department of Health,East Sussex Healthcare NHS Trust,07/05/2014,KEYMED (SURGERY),Planned Care,OLYMPUS KEYMED,0000624214,69818.17,
Department of Health,East Sussex Healthcare NHS Trust,07/05/2014,KEYMED (SURGERY),Planned Care,OLYMPUS KEYMED,0000624215,211011.81,
Department of Health,East Sussex Healthcare NHS Trust,07/05/2014,PATS APPL - FOOTWARE,Integrated Care,KENWARD ORTHOPAEDICS LTD,0000757701,491.24,
Department of Health,East Sussex Healthcare NHS Trust,07/05/2014,PATS APPL - FOOTWARE,Integrated Care,KENWARD ORTHOPAEDICS LTD,0000757702,562.23,
Department of Health,East Sussex Healthcare NHS Trust,07/05/2014,PATS APPL - FOOTWARE,Integrated Care,KENWARD ORTHOPAEDICS LTD,0000757703,508.69,
Department of Health,East Sussex Healthcare NHS Trust,07/05/2014,PATIENTS APPLIANCES - OTHER,Integrated Care,MEDI UK LTD (DONJOY),0000757736,624.00,
Department of Health,East Sussex Healthcare NHS Trust,07/05/2014,PATS APPL - FOOTWARE,Integrated Care,KENWARD ORTHOPAEDICS LTD,0000757766,491.24,
Department of Health,East Sussex Healthcare NHS Trust,07/05/2014,PATS APPL - LEG SUPPORTS,Integrated Care,ESSEX ORTHOPAEDICS,0000757768,565.97,
Department of Health,East Sussex Healthcare NHS Trust,07/05/2014,PATS APPL - FOOTWARE,Integrated Care,KENWARD ORTHOPAEDICS LTD,0000757792,466.23,
Department of Health,East Sussex Healthcare NHS Trust,07/05/2014,PATS APPL - LEG SUPPORTS,Integrated Care,T&S ORTHOFAB LTD,0000757806,734.67,
Department of Health,East Sussex Healthcare NHS Trust,07/05/2014,PATIENTS APPLIANCES - OTHER,Integrated Care,T&S ORTHOFAB LTD,0000757819,743.04,
Department of Health,East Sussex Healthcare NHS Trust,07/05/2014,H/CARE PURCH COMMERCIAL- OTHER,Integrated Care,KINGS MEDICAL LTD,0000757822,653.75,
Department of Health,East Sussex Healthcare NHS Trust,07/05/2014,H/CARE PURCH COMMERCIAL- OTHER,Integrated Care,KINGS MEDICAL LTD,0000757823,1307.95,
Department of Health,East Sussex Healthcare NHS Trust,07/05/2014,H/CARE PURCH COMMERCIAL- OTHER,Integrated Care,KINGS MEDICAL LTD,0000757824,980.85,
Department of Health,East Sussex Healthcare NHS Trust,07/05/2014,H/CARE PURCH COMMERCIAL- OTHER,Integrated Care,KINGS MEDICAL LTD,0000757859,997.20,
Department of Health,East Sussex Healthcare NHS Trust,07/05/2014,STOCK-ASCRIBE CONQUEST,Pharmacy Stock,BOEHRINGER INGELHEIM LTD,0001229148,2160.00,
Department of Health,East Sussex Healthcare NHS Trust,07/05/2014,STOCK-ASCRIBE CONQUEST,Pharmacy Stock,PIERRE FABRE ONCOLOGY,0001229154,1319.52,
Department of Health,East Sussex Healthcare NHS Trust,07/05/2014,STOCK-ASCRIBE CONQUEST,Pharmacy Stock,NOVARTIS PHARMACEUTICALS UK LTD,0001229156,4038.61,
Department of Health,East Sussex Healthcare NHS Trust,07/05/2014,STOCK-ASCRIBE CONQUEST,Pharmacy Stock,PHARMARAMA INTERNATIONAL LIMITED,0001229158,543.00,
Department of Health,East Sussex Healthcare NHS Trust,07/05/2014,STOCK-ASCRIBE CONQUEST,Pharmacy Stock,AMGEN LTD,0001229160,5285.16,
Department of Health,East Sussex Healthcare NHS Trust,07/05/2014,STOCK-ASCRIBE CONQUEST,Pharmacy Stock,CELGENE LTD,0001229161,10660.80,
Department of Health,East Sussex Healthcare NHS Trust,07/05/2014,YEAR END NRVS JV GENERAL CRS,NHS Creditors,OXFORD HEALTH NHS FOUNDATION TRUST,0001229164,673.38,
Department of Health,East Sussex Healthcare NHS Trust,07/05/2014,STOCK-ASCRIBE CONQUEST,Pharmacy Stock,HEALTHCARE PRODUCT SERVICES LTD,0001229168,1299.60,
Department of Health,East Sussex Healthcare NHS Trust,07/05/2014,STOCK-ASCRIBE CONQUEST,Pharmacy Stock,ROCHE PRODUCTS LTD,0001229170,22801.52,
Department of Health,East Sussex Healthcare NHS Trust,07/05/2014,STOCK-ASCRIBE CONQUEST,Pharmacy Stock,CHIESI  LTD,0001229171,1200.00,
Department of Health,East Sussex Healthcare NHS Trust,07/05/2014,STOCK-ASCRIBE CONQUEST,Pharmacy Stock,BRITANNIA PHARMACEUTICALS LTD,0001229172,877.32,
Department of Health,East Sussex Healthcare NHS Trust,07/05/2014,STOCK-ASCRIBE CONQUEST,Pharmacy Stock,BRISTOL-MYERS SQUIBB PHARMACEUTICAL,0001229225,4064.16,
Department of Health,East Sussex Healthcare NHS Trust,07/05/2014,STOCK-ASCRIBE CONQUEST,Pharmacy Stock,ABBVIE LTD,0001229230,4225.68,
Department of Health,East Sussex Healthcare NHS Trust,07/05/2014,STOCK-ASCRIBE CONQUEST,Pharmacy Stock,ELI LILLY & CO LTD,0001229231,14784.00,
Department of Health,East Sussex Healthcare NHS Trust,07/05/2014,STOCK-ASCRIBE CONQUEST,Pharmacy Stock,BOEHRINGER INGELHEIM LTD,0001229232,2160.00,
Department of Health,East Sussex Healthcare NHS Trust,07/05/2014,STOCK-ASCRIBE CONQUEST,Pharmacy Stock,HEALTHCARE PRODUCT SERVICES LTD,0001229237,1299.60,
Department of Health,East Sussex Healthcare NHS Trust,07/05/2014,STOCK-ASCRIBE CONQUEST,Pharmacy Stock,BRITANNIA PHARMACEUTICALS LTD,0001229239,526.39,
Department of Health,East Sussex Healthcare NHS Trust,07/05/2014,STOCK-ASCRIBE CONQUEST,Pharmacy Stock,CELGENE LTD,0001229240,11076.00,
Department of Health,East Sussex Healthcare NHS Trust,07/05/2014,STOCK-ASCRIBE CONQUEST,Pharmacy Stock,CELGENE LTD,0001229241,2889.00,
Department of Health,East Sussex Healthcare NHS Trust,07/05/2014,STOCK-ASCRIBE CONQUEST,Pharmacy Stock,AMGEN LTD,0001229242,5280.00,
Department of Health,East Sussex Healthcare NHS Trust,07/05/2014,STOCK-ASCRIBE CONQUEST,Pharmacy Stock,PIERRE FABRE ONCOLOGY,0001229243,1583.52,
Department of Health,East Sussex Healthcare NHS Trust,07/05/2014,STOCK-ASCRIBE CONQUEST,Pharmacy Stock,DIAGMED HEALTHCARE LTD,0001229468,535.68,
Department of Health,East Sussex Healthcare NHS Trust,07/05/2014,STOCK-ASCRIBE CONQUEST,Pharmacy Stock,SOUTH DEVON HEALTHCARE NHS (TORBAY PMU),0001229471,708.00,
Department of Health,East Sussex Healthcare NHS Trust,07/05/2014,STOCK-ASCRIBE CONQUEST,Pharmacy Stock,ALCURA UK LTD,0001229507,715.00,
Department of Health,East Sussex Healthcare NHS Trust,07/05/2014,STOCK-ASCRIBE CONQUEST,Pharmacy Stock,ALCURA UK LTD,0001229508,704.28,
Department of Health,East Sussex Healthcare NHS Trust,07/05/2014,STOCK-ASCRIBE CONQUEST,Pharmacy Stock,ALCURA UK LTD,0001229509,704.28,
Department of Health,East Sussex Healthcare NHS Trust,07/05/2014,STOCK-ASCRIBE CONQUEST,Pharmacy Stock,ALCURA UK LTD,0001229510,715.00,
Department of Health,East Sussex Healthcare NHS Trust,07/05/2014,STOCK-ASCRIBE CONQUEST,Pharmacy Stock,ALCURA UK LTD,0001229511,715.00,
Department of Health,East Sussex Healthcare NHS Trust,07/05/2014,STOCK-ASCRIBE CONQUEST,Pharmacy Stock,ALCURA UK LTD,0001229512,715.00,
Department of Health,East Sussex Healthcare NHS Trust,07/05/2014,STOCK-ASCRIBE CONQUEST,Pharmacy Stock,ALCURA UK LTD,0001229513,715.00,
Department of Health,East Sussex Healthcare NHS Trust,07/05/2014,STOCK-ASCRIBE CONQUEST,Pharmacy Stock,ALCURA UK LTD,0001229515,704.28,
Department of Health,East Sussex Healthcare NHS Trust,07/05/2014,STOCK-ASCRIBE CONQUEST,Pharmacy Stock,ALCURA UK LTD,0001229516,715.00,
Department of Health,East Sussex Healthcare NHS Trust,07/05/2014,STOCK-ASCRIBE CONQUEST,Pharmacy Stock,ALCURA UK LTD,0001229518,704.28,
Department of Health,East Sussex Healthcare NHS Trust,07/05/2014,STOCK-ASCRIBE CONQUEST,Pharmacy Stock,ALCURA UK LTD,0001229521,704.28,
Department of Health,East Sussex Healthcare NHS Trust,07/05/2014,STOCK-ASCRIBE CONQUEST,Pharmacy Stock,ALCURA UK LTD,0001229524,704.28,
Department of Health,East Sussex Healthcare NHS Trust,07/05/2014,STOCK-ASCRIBE CONQUEST,Pharmacy Stock,ALCURA UK LTD,0001229526,704.28,
Department of Health,East Sussex Healthcare NHS Trust,07/05/2014,STOCK-ASCRIBE CONQUEST,Pharmacy Stock,ALCURA UK LTD,0001229527,1408.56,
Department of Health,East Sussex Healthcare NHS Trust,07/05/2014,STOCK-ASCRIBE CONQUEST,Pharmacy Stock,ALCURA UK LTD,0001229528,1408.56,
Department of Health,East Sussex Healthcare NHS Trust,07/05/2014,STOCK-ASCRIBE CONQUEST,Pharmacy Stock,ALCURA UK LTD,0001229529,704.28,
Department of Health,East Sussex Healthcare NHS Trust,07/05/2014,STOCK-ASCRIBE CONQUEST,Pharmacy Stock,ALCURA UK LTD,0001229531,715.00,
Department of Health,East Sussex Healthcare NHS Trust,07/05/2014,STOCK-ASCRIBE CONQUEST,Pharmacy Stock,ALCURA UK LTD,0001229532,715.00,
Department of Health,East Sussex Healthcare NHS Trust,07/05/2014,STOCK-ASCRIBE CONQUEST,Pharmacy Stock,ALCURA UK LTD,0001229533,715.00,
Department of Health,East Sussex Healthcare NHS Trust,07/05/2014,STOCK-ASCRIBE CONQUEST,Pharmacy Stock,ALCURA UK LTD,0001229534,715.00,
Department of Health,East Sussex Healthcare NHS Trust,07/05/2014,STOCK-ASCRIBE CONQUEST,Pharmacy Stock,ALCURA UK LTD,0001229535,704.28,
Department of Health,East Sussex Healthcare NHS Trust,07/05/2014,STOCK-ASCRIBE CONQUEST,Pharmacy Stock,ALCURA UK LTD,0001229536,1408.56,
Department of Health,East Sussex Healthcare NHS Trust,07/05/2014,STOCK-ASCRIBE CONQUEST,Pharmacy Stock,BAYER PLC,0001229538,52440.00,
Department of Health,East Sussex Healthcare NHS Trust,07/05/2014,STOCK-ASCRIBE CONQUEST,Pharmacy Stock,ALLERGAN LTD,0001229539,5220.00,
Department of Health,East Sussex Healthcare NHS Trust,07/05/2014,STOCK-ASCRIBE CONQUEST,Pharmacy Stock,ALLERGAN LTD,0001229540,1194.00,
Department of Health,East Sussex Healthcare NHS Trust,07/05/2014,STOCK-ASCRIBE CONQUEST,Pharmacy Stock,SIEMENS HEALTHCARE DIAGNOSTICS LTD,0001229542,1311.55,
Department of Health,East Sussex Healthcare NHS Trust,07/05/2014,STOCK-ASCRIBE CONQUEST,Pharmacy Stock,ROCHE PRODUCTS LTD,0001229658,2020.10,
Department of Health,East Sussex Healthcare NHS Trust,07/05/2014,STOCK-ASCRIBE CONQUEST,Pharmacy Stock,NOVARTIS PHARMACEUTICALS UK LTD,0001229664,1254.10,
Department of Health,East Sussex Healthcare NHS Trust,07/05/2014,STOCK-ASCRIBE CONQUEST,Pharmacy Stock,ROCHE PRODUCTS LTD,0001229677,3184.87,
Department of Health,East Sussex Healthcare NHS Trust,07/05/2014,STOCK-ASCRIBE CONQUEST,Pharmacy Stock,BAXTER HEALTHCARE (BERKSHIRE)LTD,0001229721,1782.44,
Department of Health,East Sussex Healthcare NHS Trust,07/05/2014,STOCK-ASCRIBE CONQUEST,Pharmacy Stock,UNIDRUG DISTRIBUTION GROUP LTD,0001229722,2094.78,
Department of Health,East Sussex Healthcare NHS Trust,07/05/2014,STOCK-ASCRIBE CONQUEST,Pharmacy Stock,UNIDRUG DISTRIBUTION GROUP LTD,0001229725,810.00,
Department of Health,East Sussex Healthcare NHS Trust,07/05/2014,ESPERANCE - SERVICES RECEIVED,Integrated Care,BMI HEALTHCARE COLLECTIONS,0001424519,5012.00,
Department of Health,East Sussex Healthcare NHS Trust,07/05/2014,POSTAGE - FRANKING MACHINE,Commercial,PURCHASE POWER,0001424633,942.69,
Department of Health,East Sussex Healthcare NHS Trust,07/05/2014,ESPERANCE - SERVICES RECEIVED,Integrated Care,BMI HEALTHCARE COLLECTIONS,0001424640,9612.00,
Department of Health,East Sussex Healthcare NHS Trust,07/05/2014,CONTINENCE PRODUCTS,Integrated Care,PAUL HARTMANN LTD,0001424680,102.50,
Department of Health,East Sussex Healthcare NHS Trust,07/05/2014,CONTINENCE PRODUCTS,Integrated Care,PAUL HARTMANN LTD,0001424680,117.55,
Department of Health,East Sussex Healthcare NHS Trust,07/05/2014,CONTINENCE PRODUCTS,Integrated Care,PAUL HARTMANN LTD,0001424680,95.25,
Department of Health,East Sussex Healthcare NHS Trust,07/05/2014,CONTINENCE PRODUCTS,Integrated Care,PAUL HARTMANN LTD,0001424680,11.20,
Department of Health,East Sussex Healthcare NHS Trust,07/05/2014,CONTINENCE PRODUCTS,Integrated Care,PAUL HARTMANN LTD,0001424680,58.71,
Department of Health,East Sussex Healthcare NHS Trust,07/05/2014,CONTINENCE PRODUCTS,Integrated Care,PAUL HARTMANN LTD,0001424680,24.50,
Department of Health,East Sussex Healthcare NHS Trust,07/05/2014,CONTINENCE PRODUCTS,Integrated Care,PAUL HARTMANN LTD,0001424680,62.91,
Department of Health,East Sussex Healthcare NHS Trust,07/05/2014,CONTINENCE PRODUCTS,Integrated Care,PAUL HARTMANN LTD,0001424680,81.32,
Department of Health,East Sussex Healthcare NHS Trust,07/05/2014,CONTINENCE PRODUCTS,Integrated Care,PAUL HARTMANN LTD,0001424680,64.96,
Department of Health,East Sussex Healthcare NHS Trust,07/05/2014,CONTINENCE PRODUCTS,Integrated Care,PAUL HARTMANN LTD,0001424680,26.00,
Department of Health,East Sussex Healthcare NHS Trust,07/05/2014,CONTINENCE PRODUCTS,Integrated Care,PAUL HARTMANN LTD,0001424683,95.25,
Department of Health,East Sussex Healthcare NHS Trust,07/05/2014,CONTINENCE PRODUCTS,Integrated Care,PAUL HARTMANN LTD,0001424683,130.79,
Department of Health,East Sussex Healthcare NHS Trust,07/05/2014,CONTINENCE PRODUCTS,Integrated Care,PAUL HARTMANN LTD,0001424683,46.54,
Department of Health,East Sussex Healthcare NHS Trust,07/05/2014,CONTINENCE PRODUCTS,Integrated Care,PAUL HARTMANN LTD,0001424683,28.34,
Department of Health,East Sussex Healthcare NHS Trust,07/05/2014,CONTINENCE PRODUCTS,Integrated Care,PAUL HARTMANN LTD,0001424683,7.98,
Department of Health,East Sussex Healthcare NHS Trust,07/05/2014,CONTINENCE PRODUCTS,Integrated Care,PAUL HARTMANN LTD,0001424683,7.98,
Department of Health,East Sussex Healthcare NHS Trust,07/05/2014,CONTINENCE PRODUCTS,Integrated Care,PAUL HARTMANN LTD,0001424683,108.18,
Department of Health,East Sussex Healthcare NHS Trust,07/05/2014,CONTINENCE PRODUCTS,Integrated Care,PAUL HARTMANN LTD,0001424683,41.36,
Department of Health,East Sussex Healthcare NHS Trust,07/05/2014,CONTINENCE PRODUCTS,Integrated Care,PAUL HARTMANN LTD,0001424683,7.98,
Department of Health,East Sussex Healthcare NHS Trust,07/05/2014,CONTINENCE PRODUCTS,Integrated Care,PAUL HARTMANN LTD,0001424683,45.57,
Department of Health,East Sussex Healthcare NHS Trust,07/05/2014,AGENCY RADIOGRAPHY STAFF,Integrated Care,RIG MEDICAL RECRUIT LTD,0001424715,-1843.20,
Department of Health,East Sussex Healthcare NHS Trust,07/05/2014,INSURANCE PREMIUMS,Commercial,ASTERISK LIMITED,0001424804,2807.93,
Department of Health,East Sussex Healthcare NHS Trust,07/05/2014,BEDDING & LINEN - BED LINEN,Commercial,TONROSE LTD,0001424825,4838.40,
Department of Health,East Sussex Healthcare NHS Trust,07/05/2014,BEDDING & LINEN - BED LINEN,Commercial,TONROSE LTD,0001424826,14892.00,
Department of Health,East Sussex Healthcare NHS Trust,07/05/2014,GENERAL PRACTITIONERS,Integrated Care,SAXONBURY HOUSE MEDICAL GROUP,0001532977,1693.44,
Department of Health,East Sussex Healthcare NHS Trust,07/05/2014,PROFESSIONAL FEES,Integrated Care,SCRIBETECH,0001533850,608.39,
Department of Health,East Sussex Healthcare NHS Trust,07/05/2014,PROFESSIONAL FEES,Integrated Care,SCRIBETECH,0001533850,519.05,
Department of Health,East Sussex Healthcare NHS Trust,07/05/2014,PROFESSIONAL FEES,Integrated Care,SCRIBETECH,0001533850,1249.67,
Department of Health,East Sussex Healthcare NHS Trust,07/05/2014,PROFESSIONAL FEES,Integrated Care,SCRIBETECH,0001533850,151.07,
Department of Health,East Sussex Healthcare NHS Trust,07/05/2014,PROFESSIONAL FEES,Integrated Care,SCRIBETECH,0001533850,54.37,
Department of Health,East Sussex Healthcare NHS Trust,07/05/2014,PROFESSIONAL FEES,Integrated Care,SCRIBETECH,0001533850,661.37,
Department of Health,East Sussex Healthcare NHS Trust,07/05/2014,PROFESSIONAL FEES,Integrated Care,SCRIBETECH,0001533850,458.28,
Department of Health,East Sussex Healthcare NHS Trust,07/05/2014,PROFESSIONAL FEES,Integrated Care,SCRIBETECH,0001533850,676.03,
Department of Health,East Sussex Healthcare NHS Trust,07/05/2014,PROFESSIONAL FEES,Integrated Care,SCRIBETECH,0001533850,2239.09,
Department of Health,East Sussex Healthcare NHS Trust,07/05/2014,PROFESSIONAL FEES,Integrated Care,SCRIBETECH,0001533850,873.10,
Department of Health,East Sussex Healthcare NHS Trust,07/05/2014,PROFESSIONAL FEES,Integrated Care,SCRIBETECH,0001533850,679.51,
Department of Health,East Sussex Healthcare NHS Trust,07/05/2014,PROFESSIONAL FEES,Integrated Care,SCRIBETECH,0001534239,856.25,
Department of Health,East Sussex Healthcare NHS Trust,07/05/2014,PROFESSIONAL FEES,Integrated Care,SCRIBETECH,0001534239,683.80,
Department of Health,East Sussex Healthcare NHS Trust,07/05/2014,PROFESSIONAL FEES,Integrated Care,SCRIBETECH,0001534239,1257.12,
Department of Health,East Sussex Healthcare NHS Trust,07/05/2014,PROFESSIONAL FEES,Integrated Care,SCRIBETECH,0001534239,8.67,
Department of Health,East Sussex Healthcare NHS Trust,07/05/2014,PROFESSIONAL FEES,Integrated Care,SCRIBETECH,0001534239,35.88,
Department of Health,East Sussex Healthcare NHS Trust,07/05/2014,PROFESSIONAL FEES,Integrated Care,SCRIBETECH,0001534239,717.82,
Department of Health,East Sussex Healthcare NHS Trust,07/05/2014,PROFESSIONAL FEES,Integrated Care,SCRIBETECH,0001534239,517.75,
Department of Health,East Sussex Healthcare NHS Trust,07/05/2014,PROFESSIONAL FEES,Integrated Care,SCRIBETECH,0001534239,700.57,
Department of Health,East Sussex Healthcare NHS Trust,07/05/2014,PROFESSIONAL FEES,Integrated Care,SCRIBETECH,0001534239,2345.92,
Department of Health,East Sussex Healthcare NHS Trust,07/05/2014,PROFESSIONAL FEES,Integrated Care,SCRIBETECH,0001534239,722.85,
Department of Health,East Sussex Healthcare NHS Trust,07/05/2014,PROFESSIONAL FEES,Integrated Care,SCRIBETECH,0001534239,791.37,
Department of Health,East Sussex Healthcare NHS Trust,07/05/2014,CONTRACTED-OUT H.CARE SERVICES,Integrated Care,MEDICI HEALTHCARE,0001534358,4206.00,
Department of Health,East Sussex Healthcare NHS Trust,07/05/2014,OTHER MEMBERSHIP FEES,Corporate Services,THE NHS CONFEDERATION GROUP COMPANY LTD,0001534623,4944.00,
Department of Health,East Sussex Healthcare NHS Trust,07/05/2014,INTERNAL AUDIT - LCFS,Corporate Services,MAZARS PUBLIC SECTOR INTERNAL AUDIT LTD,0001534799,1058.40,
Department of Health,East Sussex Healthcare NHS Trust,07/05/2014,CONSULTANCY FEES,Corporate Services,HARVEY NASH PLC,0001534868,10000.00,
Department of Health,East Sussex Healthcare NHS Trust,07/05/2014,TRAINING FEES - NURSE CONT ED,Corporate Services,ST WILFRIDS HOSPICE,0001534873,1200.00,
Department of Health,East Sussex Healthcare NHS Trust,07/05/2014,LEGAL FEES(PERSONNEL ISSUES),Corporate Services,HEMPSONS,0001534877,486.88,
Department of Health,East Sussex Healthcare NHS Trust,07/05/2014,LEGAL FEES(PERSONNEL ISSUES),Corporate Services,HEMPSONS,0001534878,2762.06,
Department of Health,East Sussex Healthcare NHS Trust,07/05/2014,POSTAGE - FRANKING MACHINE,Commercial,NEOPOST FINANCE LIMITED,0001534963,4505.93,
Department of Health,East Sussex Healthcare NHS Trust,07/05/2014,GENERAL PRACTITIONERS,Integrated Care,PARK PRACTICE EASTBOURNE,0001534973,2989.59,
Department of Health,East Sussex Healthcare NHS Trust,07/05/2014,PROFESSIONAL FEES,Integrated Care,ROYAL COLLEGE OF PAED & CHILD  HEALTH,0001535086,8100.00,
Department of Health,East Sussex Healthcare NHS Trust,07/05/2014,GENERAL PRACTITIONERS,Integrated Care,PARK PRACTICE EASTBOURNE,0001535099,2989.59,
Department of Health,East Sussex Healthcare NHS Trust,07/05/2014,LAB-CONTAINERS/BOTTLES & CAPS,Integrated Care,WAINS (OF TUNBRIDGE WELLS) LTD,0001616717,663.92,
Department of Health,East Sussex Healthcare NHS Trust,07/05/2014,DRUGS-OTHER,Integrated Care,ABBVIE LTD,0001616729,2739.94,
Department of Health,East Sussex Healthcare NHS Trust,07/05/2014,DRUGS-OTHER,Integrated Care,ABBVIE LTD,0001616730,2739.94,
Department of Health,East Sussex Healthcare NHS Trust,07/05/2014,DRUGS-OTHER,Integrated Care,GILEAD SCIENCES LTD,0001616735,5089.73,
Department of Health,East Sussex Healthcare NHS Trust,07/05/2014,LAB-CONTAINERS/BOTTLES & CAPS,Integrated Care,GEORGE HOWARD PACKAGING LTD,0001616736,2068.50,
Department of Health,East Sussex Healthcare NHS Trust,07/05/2014,DRUGS-OTHER,Integrated Care,MACFARLAN SMITH LTD,0001616738,10200.00,
Department of Health,East Sussex Healthcare NHS Trust,07/05/2014,CONTRACT ENGINEERING MAINT,Integrated Care,QUANTUM AIR TECHNOLOGY LTD,0001616749,1095.60,
Department of Health,East Sussex Healthcare NHS Trust,07/05/2014,DRUGS-OTHER,Integrated Care,GILEAD SCIENCES LTD,0001616751,5089.73,
Department of Health,East Sussex Healthcare NHS Trust,07/05/2014,GENERAL LAB. CONSUMABLES,Integrated Care,ACTIVE PHARMA SUPPLIES,0001616755,900.00,
Department of Health,East Sussex Healthcare NHS Trust,07/05/2014,DRUGS-OTHER,Integrated Care,AAH PHARMACEUTICALS LTD,0001616764,540.00,
Department of Health,East Sussex Healthcare NHS Trust,07/05/2014,DRUGS-OTHER,Integrated Care,AAH PHARMACEUTICALS LTD,0001616769,894.48,
Department of Health,East Sussex Healthcare NHS Trust,07/05/2014,DRUGS-OTHER,Integrated Care,AAH PHARMACEUTICALS LTD,0001616773,529.20,
Department of Health,East Sussex Healthcare NHS Trust,07/05/2014,DRUGS-OTHER,Integrated Care,AAH PHARMACEUTICALS LTD,0001616785,557.23,
Department of Health,East Sussex Healthcare NHS Trust,07/05/2014,DRUGS-OTHER,Integrated Care,AAH PHARMACEUTICALS LTD,0001616788,863.52,
Department of Health,East Sussex Healthcare NHS Trust,07/05/2014,DRUGS-OTHER,Integrated Care,EXOVA (UK) LTD,0001616792,600.00,
Department of Health,East Sussex Healthcare NHS Trust,07/05/2014,PHOTOCOPIER HIRE,Commercial,RICOH UK LTD,0001706324,586.43,
Department of Health,East Sussex Healthcare NHS Trust,07/05/2014,TELEPHONES-RENTAL&CALLS,Integrated Care,CLOUDXL NETWORKS LTD,0001706548,1027.82,
Department of Health,East Sussex Healthcare NHS Trust,07/05/2014,TELEPHONES-RENTAL&CALLS,Commercial,EDGE TELECOM,0001706574,3184.51,
Department of Health,East Sussex Healthcare NHS Trust,07/05/2014,TELEPHONES-MAINTENANCE,Commercial,MAINTEL EUROPE LIMITED,0001706607,10740.00,
Department of Health,East Sussex Healthcare NHS Trust,07/05/2014,PHOTOCOPIER HIRE,Integrated Care,RICOH UK LTD,0001706628,445.53,
Department of Health,East Sussex Healthcare NHS Trust,07/05/2014,PROVISIONS,Commercial,MPD (UK SALES) LTD,0001908758,1478.40,
Department of Health,East Sussex Healthcare NHS Trust,07/05/2014,HARDWARE & CROCKERY,Commercial,MPD (UK SALES) LTD,0001908758,1058.40,
Department of Health,East Sussex Healthcare NHS Trust,07/05/2014,HARDWARE & CROCKERY,Commercial,BUNZL CATERING SUPPLIES,0001908983,497.54,
Department of Health,East Sussex Healthcare NHS Trust,07/05/2014,HARDWARE & CROCKERY,Commercial,BUNZL CATERING SUPPLIES,0001909027,464.83,
Department of Health,East Sussex Healthcare NHS Trust,07/05/2014,PROVISIONS,Commercial,YEARSLEY GROUP,0001909037,-1972.84,
Department of Health,East Sussex Healthcare NHS Trust,07/05/2014,PROVISIONS,Commercial,BRAEFORGE LTD T/A PENSWORTH DAIRIES,0001909167,1269.70,
Department of Health,East Sussex Healthcare NHS Trust,07/05/2014,HARDWARE & CROCKERY,Commercial,BUNZL CATERING SUPPLIES,0001909251,479.88,
Department of Health,East Sussex Healthcare NHS Trust,07/05/2014,PROVISIONS,Commercial,3663,0001909270,677.30,
Department of Health,East Sussex Healthcare NHS Trust,07/05/2014,PROVISIONS,Commercial,YEARSLEY GROUP,0001909404,897.55,
Department of Health,East Sussex Healthcare NHS Trust,07/05/2014,PROVISIONS,Commercial,BRAKE BROS (FROZEN FOODS) LTD,0001909457,507.91,
Department of Health,East Sussex Healthcare NHS Trust,07/05/2014,PROVISIONS,Commercial,3663,0001909463,1519.10,
Department of Health,East Sussex Healthcare NHS Trust,07/05/2014,PROVISIONS,Commercial,3663,0001909465,601.18,
Department of Health,East Sussex Healthcare NHS Trust,07/05/2014,SURGICAL INSTRUMENTS,Integrated Care,ALTOMED LTD,0001909497,1091.40,
Department of Health,East Sussex Healthcare NHS Trust,07/05/2014,M&S GENERAL SUPPLIES-OTHER,Integrated Care,FEMCARE-NIKOMED LIMITED,0001909498,522.70,
Department of Health,East Sussex Healthcare NHS Trust,07/05/2014,PROVISIONS,Commercial,BRAKE BROS (FROZEN FOODS) LTD,0001909518,531.77,
Department of Health,East Sussex Healthcare NHS Trust,07/05/2014,PROVISIONS,Commercial,THE CUISINE CENTRE,0001909532,39097.92,
Department of Health,East Sussex Healthcare NHS Trust,07/05/2014,PROVISIONS,Commercial,THE CUISINE CENTRE,0001909541,-1954.90,
Department of Health,East Sussex Healthcare NHS Trust,07/05/2014,PROVISIONS,Commercial,BRAEFORGE LTD T/A PENSWORTH DAIRIES,0001909561,1257.60,
Department of Health,East Sussex Healthcare NHS Trust,07/05/2014,PROVISIONS,Commercial,BRAEFORGE LTD T/A PENSWORTH DAIRIES,0001909574,1287.00,
Department of Health,East Sussex Healthcare NHS Trust,07/05/2014,PROVISIONS,Commercial,BRAEFORGE LTD T/A PENSWORTH DAIRIES,0001909584,1301.60,
Department of Health,East Sussex Healthcare NHS Trust,07/05/2014,PROVISIONS,Commercial,3663,0001909608,2459.40,
Department of Health,East Sussex Healthcare NHS Trust,07/05/2014,VAC WOUND M&S SUPPLIES,Integrated Care,KCI UK MEDICAL LTD,0002122737,535.72,
Department of Health,East Sussex Healthcare NHS Trust,07/05/2014,VAC WOUND M&S SUPPLIES,Integrated Care,KCI UK MEDICAL LTD,0002125934,722.05,
Department of Health,East Sussex Healthcare NHS Trust,07/05/2014,H/CARE PURCH MEDICA,Integrated Care,MEDICA REPORTING LTD,0002129998,15960.00,
Department of Health,East Sussex Healthcare NHS Trust,07/05/2014,LOANER KITS - HIRE CHARGE,Integrated Care,BIOMET UK HEALTHCARE LTD,0002131085,1068.00,
Department of Health,East Sussex Healthcare NHS Trust,07/05/2014,CARDIOLOGY STENTS,Integrated Care,MEDTRONIC LTD,0002131269,696.00,
Department of Health,East Sussex Healthcare NHS Trust,07/05/2014,CARDIOLOGY CATHETERS,Integrated Care,MEDTRONIC LTD,0002131371,3744.00,
Department of Health,East Sussex Healthcare NHS Trust,07/05/2014,LOANER KITS - HIRE CHARGE,Integrated Care,BIOMET UK HEALTHCARE LTD,0002131473,540.00,
Department of Health,East Sussex Healthcare NHS Trust,07/05/2014,PROSTHESES-OTHER,Integrated Care,BIOMET UK HEALTHCARE LTD,0002131473,10920.00,
Department of Health,East Sussex Healthcare NHS Trust,07/05/2014,NATIONAL JOINT REGISTRY LEVY,Integrated Care,BIOMET UK HEALTHCARE LTD,0002131473,40.01,
Department of Health,East Sussex Healthcare NHS Trust,07/05/2014,CARDIOLOGY STENTS,Integrated Care,MEDTRONIC LTD,0002131475,3480.00,
Department of Health,East Sussex Healthcare NHS Trust,07/05/2014,CAPITAL EXPENDITURE,Other Central,SIEMENS BUILDING TECHNOLOGIES LTD,0002131483,19364.00,
Department of Health,East Sussex Healthcare NHS Trust,07/05/2014,STORAGE - EXTERNAL FACILITIES,Integrated Care,CELLPATH PLC,0002131567,693.16,
Department of Health,East Sussex Healthcare NHS Trust,07/05/2014,LOANER KITS - HIRE CHARGE,Integrated Care,SMITH & NEPHEW ADVANCED SURGICAL DEVICES,0002131638,3042.00,
Department of Health,East Sussex Healthcare NHS Trust,07/05/2014,PROSTHESES-OTHER,Integrated Care,SMITH & NEPHEW ADVANCED SURGICAL DEVICES,0002131638,156.47,
Department of Health,East Sussex Healthcare NHS Trust,07/05/2014,LAB MATERIALS - OXOID,Integrated Care,OXOID LIMITED,0002131643,1245.49,
Department of Health,East Sussex Healthcare NHS Trust,07/05/2014,LOANER KITS - HIRE CHARGE,Integrated Care,ACUMED LTD,0002131690,300.00,
Department of Health,East Sussex Healthcare NHS Trust,07/05/2014,PROSTHESES-OTHER,Integrated Care,ACUMED LTD,0002131690,1503.55,
Department of Health,East Sussex Healthcare NHS Trust,07/05/2014,M&S GENERAL SUPPLIES-OTHER,Integrated Care,BOSTON SCIENTIFIC LTD,0002131792,162.00,
Department of Health,East Sussex Healthcare NHS Trust,07/05/2014,INTERVENTIONAL DISPOSABLES,Integrated Care,BOSTON SCIENTIFIC LTD,0002131792,660.00,
Department of Health,East Sussex Healthcare NHS Trust,07/05/2014,CAPITAL EXPENDITURE,Other Central,FUJIFILM SONOSITE LTD,0002131894,39770.40,
Department of Health,East Sussex Healthcare NHS Trust,07/05/2014,CAPITAL EXPENDITURE,Other Central,WELCH ALLYN UK LTD,0002132007,6646.08,
Department of Health,East Sussex Healthcare NHS Trust,07/05/2014,M&S EQUIPMENT - OTHER,Integrated Care,RESMED (UK) LTD,0002132011,540.00,
Department of Health,East Sussex Healthcare NHS Trust,07/05/2014,M&S GENERAL SUPPLIES-OTHER,Integrated Care,RESMED (UK) LTD,0002132011,660.00,
Department of Health,East Sussex Healthcare NHS Trust,07/05/2014,M&S EQUIPMENT - OTHER,Integrated Care,RESMED (UK) LTD,0002132012,3300.00,
Department of Health,East Sussex Healthcare NHS Trust,07/05/2014,M&S EQUIPMENT - OTHER,Integrated Care,RESMED (UK) LTD,0002132013,936.00,
Department of Health,East Sussex Healthcare NHS Trust,07/05/2014,M&S GENERAL SUPPLIES-OTHER,Integrated Care,RESMED (UK) LTD,0002132013,70.20,
Department of Health,East Sussex Healthcare NHS Trust,07/05/2014,INTERVASCULAR STENTS,Integrated Care,MAQUET LIMITED,0002132017,1299.60,
Department of Health,East Sussex Healthcare NHS Trust,07/05/2014,SURGICAL INSTRUMENTS,Integrated Care,POLAR SPEED DISTRIBUTION LIMITED,0002132018,1920.00,
Department of Health,East Sussex Healthcare NHS Trust,07/05/2014,M&S GENERAL SUPPLIES-OTHER,Integrated Care,WELLSPECT HEALTHCARE,0002132020,1044.96,
Department of Health,East Sussex Healthcare NHS Trust,07/05/2014,M&S GENERAL SUPPLIES-OTHER,Integrated Care,WELLSPECT HEALTHCARE,0002132021,1044.96,
Department of Health,East Sussex Healthcare NHS Trust,07/05/2014,CPAP VENTILATOR,Integrated Care,RESMED (UK) LTD,0002132025,4416.00,
Department of Health,East Sussex Healthcare NHS Trust,07/05/2014,M&S GENERAL SUPPLIES-OTHER,Integrated Care,RESMED (UK) LTD,0002132025,432.00,
Department of Health,East Sussex Healthcare NHS Trust,07/05/2014,ELECTRO MEDICAL EQUIPMENT,Integrated Care,LINA MEDICAL UK LTD,0002132069,624.00,
Department of Health,East Sussex Healthcare NHS Trust,07/05/2014,INTERVASCULAR STENTS,Integrated Care,W L  GORE & ASSOCIATES,0002132077,2520.00,
Department of Health,East Sussex Healthcare NHS Trust,07/05/2014,INTERVASCULAR STENTS,Integrated Care,W L  GORE & ASSOCIATES,0002132078,840.00,
Department of Health,East Sussex Healthcare NHS Trust,07/05/2014,CATARACT CONSUMABLES,Integrated Care,ALTOMED LTD,0002132084,455.40,
Department of Health,East Sussex Healthcare NHS Trust,07/05/2014,M&S GENERAL SUPPLIES-OTHER,Integrated Care,ALTOMED LTD,0002132084,422.40,
Department of Health,East Sussex Healthcare NHS Trust,07/05/2014,IMMUNE STOCKS,Integrated Care,LEICA MICROSYSTEMS (UK) LTD,0002132094,4650.41,
Department of Health,East Sussex Healthcare NHS Trust,07/05/2014,SURGICAL INSTRUMENTS,Integrated Care,STERICOM LTD,0002132120,582.00,
Department of Health,East Sussex Healthcare NHS Trust,07/05/2014,CAPITAL EXPENDITURE,Other Central,MAINTEL EUROPE LIMITED,0002132161,34395.00,
Department of Health,East Sussex Healthcare NHS Trust,07/05/2014,INTERVENTIONAL RADIOLOGY LEASE,Integrated Care,SIEMENS FINANCIAL SERVICES LTD,0002132162,30313.87,
Department of Health,East Sussex Healthcare NHS Trust,07/05/2014,CAPITAL EXPENDITURE,Other Central,GENESIS MEDICAL LTD,0002132175,28440.00,
Department of Health,East Sussex Healthcare NHS Trust,07/05/2014,PROSTHESIS - SPINAL,Integrated Care,ZIMMER LTD,0002132183,3942.00,
Department of Health,East Sussex Healthcare NHS Trust,07/05/2014,PROSTHESES-OTHER,Integrated Care,ZIMMER LTD,0002132184,3079.08,
Department of Health,East Sussex Healthcare NHS Trust,07/05/2014,ENDOSCOPY CONSUMABLES,Integrated Care,BOSTON SCIENTIFIC LTD,0002132185,1248.00,
Department of Health,East Sussex Healthcare NHS Trust,07/05/2014,M&S GENERAL SUPPLIES-OTHER,Integrated Care,BOSTON SCIENTIFIC LTD,0002132185,582.00,
Department of Health,East Sussex Healthcare NHS Trust,07/05/2014,SURGICAL INSTRUMENTS,Integrated Care,BOSTON SCIENTIFIC LTD,0002132185,624.00,
Department of Health,East Sussex Healthcare NHS Trust,07/05/2014,BILIARY STENTS,Integrated Care,BOSTON SCIENTIFIC LTD,0002132185,108.00,
Department of Health,East Sussex Healthcare NHS Trust,07/05/2014,M&S GENERAL SUPPLIES-OTHER,Integrated Care,DELTEX MEDICAL,0002132187,1400.40,
Department of Health,East Sussex Healthcare NHS Trust,07/05/2014,PROSTHESES-KNEES,Integrated Care,BIOMET UK HEALTHCARE LTD,0002132188,2447.81,
Department of Health,East Sussex Healthcare NHS Trust,07/05/2014,PROSTHESES-OTHER,Integrated Care,BIOMET UK HEALTHCARE LTD,0002132188,4510.92,
Department of Health,East Sussex Healthcare NHS Trust,07/05/2014,M&S GENERAL SUPPLIES-OTHER,Integrated Care,UK MEDICAL LTD,0002132194,841.50,
Department of Health,East Sussex Healthcare NHS Trust,07/05/2014,INTERVENTIONAL DISPOSABLES,Integrated Care,ST JUDE MEDICAL UK LIMITED,0002132198,2520.00,
Department of Health,East Sussex Healthcare NHS Trust,07/05/2014,PROSTHESES-OTHER,Integrated Care,ZIMMER LTD,0002132202,1157.76,
Department of Health,East Sussex Healthcare NHS Trust,07/05/2014,PROSTHESIS - SPINAL,Integrated Care,ZIMMER LTD,0002132203,8508.24,
Department of Health,East Sussex Healthcare NHS Trust,07/05/2014,M&S GENERAL SUPPLIES-OTHER,Integrated Care,BRACCO UK LTD,0002132204,1728.00,
Department of Health,East Sussex Healthcare NHS Trust,07/05/2014,FUNERAL EXPENSES,Corporate Services,DIGNITY FUNERALS LTD,0002132240,1545.00,
Department of Health,East Sussex Healthcare NHS Trust,07/05/2014,LAB MATERIALS - CEPHEID,Integrated Care,CEPHEID UK LTD,0002132247,509.46,
Department of Health,East Sussex Healthcare NHS Trust,07/05/2014,GENERAL CHEMICALS,Integrated Care,CEPHEID UK LTD,0002132247,920.30,
Department of Health,East Sussex Healthcare NHS Trust,07/05/2014,M&S GENERAL SUPPLIES-OTHER,Integrated Care,BOSTON SCIENTIFIC LTD,0002132253,180.00,
Department of Health,East Sussex Healthcare NHS Trust,07/05/2014,INTERVENTIONAL DISPOSABLES,Integrated Care,BOSTON SCIENTIFIC LTD,0002132253,240.00,
Department of Health,East Sussex Healthcare NHS Trust,07/05/2014,CARDIOLOGY CATHETERS,Integrated Care,BOSTON SCIENTIFIC LTD,0002132253,295.20,
Department of Health,East Sussex Healthcare NHS Trust,07/05/2014,BILIARY STENTS,Integrated Care,BOSTON SCIENTIFIC LTD,0002132254,2040.00,
Department of Health,East Sussex Healthcare NHS Trust,07/05/2014,POSTAGE,Integrated Care,GLEN DIMPLEX HOME APPLIANCES LTD,0002132303,54.00,
Department of Health,East Sussex Healthcare NHS Trust,07/05/2014,FURNITURE & FITTINGS,Integrated Care,GLEN DIMPLEX HOME APPLIANCES LTD,0002132303,570.00,
Department of Health,East Sussex Healthcare NHS Trust,07/05/2014,M&S GENERAL SUPPLIES-OTHER,Integrated Care,B BRAUN MEDICAL LTD,0002132304,1392.70,
Department of Health,East Sussex Healthcare NHS Trust,07/05/2014,LAB MATERIALS - BECTON,Integrated Care,BECTON DICKINSON U.K. LTD,0002132319,2367.47,
Department of Health,East Sussex Healthcare NHS Trust,07/05/2014,LAB-CONTAINERS/BOTTLES & CAPS,Integrated Care,BECTON DICKINSON U.K. LTD,0002132319,61.80,
Department of Health,East Sussex Healthcare NHS Trust,07/05/2014,M&S GENERAL SUPPLIES-OTHER,Integrated Care,MEDICAL IMAGING SYSTEMS,0002132431,2868.00,
Department of Health,East Sussex Healthcare NHS Trust,07/05/2014,POSTAGE,Integrated Care,MEDICAL IMAGING SYSTEMS,0002132431,53.40,
Department of Health,East Sussex Healthcare NHS Trust,07/05/2014,PROSTHESIS - SPINAL,Integrated Care,ZIMMER LTD,0002132463,2812.32,
Department of Health,East Sussex Healthcare NHS Trust,07/05/2014,CARDIOLOGY CATHETERS,Integrated Care,BOSTON SCIENTIFIC LTD,0002132466,633.60,
Department of Health,East Sussex Healthcare NHS Trust,07/05/2014,CARDIOLOGY STENTS,Integrated Care,BOSTON SCIENTIFIC LTD,0002132466,1260.00,
Department of Health,East Sussex Healthcare NHS Trust,07/05/2014,SUTURES,Integrated Care,BOSTON SCIENTIFIC LTD,0002132468,90.00,
Department of Health,East Sussex Healthcare NHS Trust,07/05/2014,SURGICAL INSTRUMENTS,Integrated Care,BOSTON SCIENTIFIC LTD,0002132468,3000.00,
Department of Health,East Sussex Healthcare NHS Trust,07/05/2014,ENDOSCOPY CONSUMABLES,Integrated Care,BOSTON SCIENTIFIC LTD,0002132469,528.00,
Department of Health,East Sussex Healthcare NHS Trust,07/05/2014,M&S GENERAL SUPPLIES-OTHER,Integrated Care,BOSTON SCIENTIFIC LTD,0002132469,84.00,
Department of Health,East Sussex Healthcare NHS Trust,07/05/2014,LOANER KITS - HIRE CHARGE,Integrated Care,BIOMET UK HEALTHCARE LTD,0002132473,1580.00,
Department of Health,East Sussex Healthcare NHS Trust,07/05/2014,PROSTHESES-OTHER,Integrated Care,BIOMET UK HEALTHCARE LTD,0002132473,8193.24,
Department of Health,East Sussex Healthcare NHS Trust,07/05/2014,GENERAL CHEMICALS,Integrated Care,CSL BEHRING,0002132476,1400.00,
Department of Health,East Sussex Healthcare NHS Trust,07/05/2014,BLOOD PRODUCTS - BPL,Integrated Care,BIO PRODUCTS LABORATORY,0002132512,2898.00,
Department of Health,East Sussex Healthcare NHS Trust,07/05/2014,M&S GENERAL SUPPLIES-OTHER,Integrated Care,STRYKER UK,0002132517,216.00,
Department of Health,East Sussex Healthcare NHS Trust,07/05/2014,SURGICAL INSTRUMENTS,Integrated Care,STRYKER UK,0002132517,81.62,
Department of Health,East Sussex Healthcare NHS Trust,07/05/2014,PROSTHESES-HIP,Integrated Care,STRYKER UK,0002132517,1549.80,
Department of Health,East Sussex Healthcare NHS Trust,07/05/2014,GENERAL CHEMICALS,Integrated Care,CSL BEHRING,0002132522,1400.00,
Department of Health,East Sussex Healthcare NHS Trust,07/05/2014,PROSTHESES-HIP,Integrated Care,STRYKER UK,0002132526,830.09,
Department of Health,East Sussex Healthcare NHS Trust,07/05/2014,PROSTHESIS - SPINAL,Integrated Care,ZIMMER LTD,0002132527,1275.48,
Department of Health,East Sussex Healthcare NHS Trust,07/05/2014,PROSTHESES-HIP,Integrated Care,JOHNSON & JOHNSON MEDICAL LTD,0002132528,569.52,
Department of Health,East Sussex Healthcare NHS Trust,07/05/2014,PROSTHESES-HIP,Integrated Care,JOHNSON & JOHNSON MEDICAL LTD,0002132529,1422.55,
Department of Health,East Sussex Healthcare NHS Trust,07/05/2014,ELECTRO MEDICAL EQUIPMENT,Integrated Care,EDWARDS LIFESCIENCES LTD,0002132531,557.07,
Department of Health,East Sussex Healthcare NHS Trust,07/05/2014,M&S GENERAL SUPPLIES-OTHER,Integrated Care,STRYKER UK,0002132532,777.60,
Department of Health,East Sussex Healthcare NHS Trust,07/05/2014,SURGICAL INSTRUMENTS,Integrated Care,STRYKER UK,0002132532,345.60,
Department of Health,East Sussex Healthcare NHS Trust,07/05/2014,OTHER STATIONERY,Commercial,ID MANAGEMENT SYSTEMS,0002132537,82.20,
Department of Health,East Sussex Healthcare NHS Trust,07/05/2014,OFFICE EQUIPMENT,Commercial,ID MANAGEMENT SYSTEMS,0002132537,1434.00,
Department of Health,East Sussex Healthcare NHS Trust,07/05/2014,WHEELCHAIR REPAIRS,Integrated Care,GERALD SIMONDS HEALTHCARE LTD,0002132544,600.84,
Department of Health,East Sussex Healthcare NHS Trust,07/05/2014,WHEELCHAIR,Integrated Care,SOUTHERN MOBILITY CENTRE,0002132568,1147.20,
Department of Health,East Sussex Healthcare NHS Trust,07/05/2014,WHEELCHAIR,Integrated Care,SOUTHERN MOBILITY CENTRE,0002132569,1340.40,
Department of Health,East Sussex Healthcare NHS Trust,07/05/2014,WHEELCHAIR,Integrated Care,REHABILITATION MANUFACTURING SRVS. LTD,0002132572,1170.40,
Department of Health,East Sussex Healthcare NHS Trust,07/05/2014,PRINTING/PRINTED MATERIALS,Integrated Care,X FILES GB LTD,0002132582,1272.00,
Department of Health,East Sussex Healthcare NHS Trust,07/05/2014,WHEELCHAIR,Integrated Care,AJ MOBILITY LTD,0002132583,5841.60,
Department of Health,East Sussex Healthcare NHS Trust,07/05/2014,WHEELCHAIR REPAIRS,Integrated Care,GERALD SIMONDS HEALTHCARE LTD,0002132591,648.84,
Department of Health,East Sussex Healthcare NHS Trust,07/05/2014,WHEELCHAIR,Integrated Care,SOUTHERN MOBILITY CENTRE,0002132595,706.80,
Department of Health,East Sussex Healthcare NHS Trust,07/05/2014,SPECIAL SEATING,Integrated Care,CONTOUR886 LTD,0002132596,5822.40,
Department of Health,East Sussex Healthcare NHS Trust,07/05/2014,SPECIAL SEATING,Integrated Care,CONTOUR886 LTD,0002132597,750.00,
Department of Health,East Sussex Healthcare NHS Trust,07/05/2014,SPECIAL SEATING,Integrated Care,CONTOUR886 LTD,0002132598,750.00,
Department of Health,East Sussex Healthcare NHS Trust,07/05/2014,WHEELCHAIR REPAIRS,Integrated Care,REHABILITATION MANUFACTURING SRVS. LTD,0002132600,520.80,
Department of Health,East Sussex Healthcare NHS Trust,07/05/2014,LOW VISUAL APPLIANCES,Integrated Care,OPTELEC,0002132615,1272.73,
Department of Health,East Sussex Healthcare NHS Trust,07/05/2014,LOW VISUAL APPLIANCES,Integrated Care,OPTELEC,0002132616,595.30,
Department of Health,East Sussex Healthcare NHS Trust,07/05/2014,SPECIAL SEATING,Integrated Care,CONSOLOR  LTD,0002132623,2673.14,
Department of Health,East Sussex Healthcare NHS Trust,07/05/2014,SPECIAL SEATING,Integrated Care,CONSOLOR  LTD,0002132624,3055.99,
Department of Health,East Sussex Healthcare NHS Trust,07/05/2014,SPECIAL SEATING,Integrated Care,CONSOLOR  LTD,0002132625,2598.33,
Department of Health,East Sussex Healthcare NHS Trust,07/05/2014,SPECIAL SEATING,Integrated Care,CONSOLOR  LTD,0002132626,2085.80,
Department of Health,East Sussex Healthcare NHS Trust,07/05/2014,SPECIAL SEATING,Integrated Care,CONSOLOR  LTD,0002132629,1064.26,
Department of Health,East Sussex Healthcare NHS Trust,07/05/2014,WHEELCHAIR,Integrated Care,CONSOLOR  LTD,0002132630,1929.60,
Department of Health,East Sussex Healthcare NHS Trust,07/05/2014,PROCEDURE PACKS,Integrated Care,ARCROYAL LTD,0002132637,727.20,
Department of Health,East Sussex Healthcare NHS Trust,07/05/2014,INTERVENTIONAL DISPOSABLES,Integrated Care,VOLCANO EUROPE,0002132638,2000.00,
Department of Health,East Sussex Healthcare NHS Trust,07/05/2014,SUTURES,Integrated Care,BOSTON SCIENTIFIC LTD,0002132641,864.00,
Department of Health,East Sussex Healthcare NHS Trust,07/05/2014,CARDIOLOGY CATHETERS,Integrated Care,BOSTON SCIENTIFIC LTD,0002132642,320.40,
Department of Health,East Sussex Healthcare NHS Trust,07/05/2014,CARDIOLOGY STENTS,Integrated Care,BOSTON SCIENTIFIC LTD,0002132642,840.00,
Department of Health,East Sussex Healthcare NHS Trust,07/05/2014,ENDOSCOPY CONSUMABLES,Integrated Care,BOSTON SCIENTIFIC LTD,0002132643,480.00,
Department of Health,East Sussex Healthcare NHS Trust,07/05/2014,M&S GENERAL SUPPLIES-OTHER,Integrated Care,BOSTON SCIENTIFIC LTD,0002132643,1188.00,
Department of Health,East Sussex Healthcare NHS Trust,07/05/2014,SURGICAL INSTRUMENTS,Integrated Care,BOSTON SCIENTIFIC LTD,0002132643,62.40,
Department of Health,East Sussex Healthcare NHS Trust,07/05/2014,SUTURES,Integrated Care,SMITH & NEPHEW ADVANCED SURGICAL DEVICES,0002132646,532.66,
Department of Health,East Sussex Healthcare NHS Trust,07/05/2014,LOANER KITS - HIRE CHARGE,Integrated Care,BIOMET UK HEALTHCARE LTD,0002132647,1050.00,
Department of Health,East Sussex Healthcare NHS Trust,07/05/2014,M&S GENERAL SUPPLIES-OTHER,Integrated Care,BIOMET UK HEALTHCARE LTD,0002132649,46.80,
Department of Health,East Sussex Healthcare NHS Trust,07/05/2014,SURGICAL INSTRUMENTS,Integrated Care,BIOMET UK HEALTHCARE LTD,0002132649,130.20,
Department of Health,East Sussex Healthcare NHS Trust,07/05/2014,PROSTHESES-OTHER,Integrated Care,BIOMET UK HEALTHCARE LTD,0002132649,611.10,
Department of Health,East Sussex Healthcare NHS Trust,07/05/2014,STAFF UNIFORMS,Integrated Care,BUNZL HEALTHCARE,0002132653,613.32,
Department of Health,East Sussex Healthcare NHS Trust,07/05/2014,WHEELCHAIR,Integrated Care,CLINICAL ENGINEERING CONSULTANTS LTD,0002132673,2772.00,
Department of Health,East Sussex Healthcare NHS Trust,07/05/2014,SURGICAL INSTRUMENTS,Integrated Care,ARTHREX LTD,0002132676,1350.00,
Department of Health,East Sussex Healthcare NHS Trust,07/05/2014,WHEELCHAIR,Integrated Care,JAMES LECKEY,0002132682,1861.20,
Department of Health,East Sussex Healthcare NHS Trust,07/05/2014,M&S GENERAL SUPPLIES-OTHER,Integrated Care,BAXTER HEALTHCARE (BERKSHIRE)LTD,0002132684,517.20,
Department of Health,East Sussex Healthcare NHS Trust,07/05/2014,DRESSINGS-OTHER,Integrated Care,BAXTER HEALTHCARE (BERKSHIRE)LTD,0002132685,1267.20,
Department of Health,East Sussex Healthcare NHS Trust,07/05/2014,M&S GENERAL SUPPLIES-OTHER,Integrated Care,ARTHROCARE UK LIMITED,0002132691,501.00,
Department of Health,East Sussex Healthcare NHS Trust,07/05/2014,COMPUTER HARDWARE,Corporate Services,HEWLETT-PACKARD LTD,0002132700,4124.23,
Department of Health,East Sussex Healthcare NHS Trust,07/05/2014,COMPUTER HARDWARE,Corporate Services,HEWLETT-PACKARD LTD,0002132701,4569.56,
Department of Health,East Sussex Healthcare NHS Trust,07/05/2014,X-RAY - EQUIPMENT,Integrated Care,TOSHIBA MEDICAL SYSTEMS LTD,0002132702,5400.00,
Department of Health,East Sussex Healthcare NHS Trust,07/05/2014,FUNERAL EXPENSES,Corporate Services,DIGNITY FUNERALS LTD,0002132742,1506.00,
Department of Health,East Sussex Healthcare NHS Trust,07/05/2014,ENDOSCOPY CONSUMABLES,Integrated Care,OLYMPUS KEYMED,0002133007,431.28,
Department of Health,East Sussex Healthcare NHS Trust,07/05/2014,M&S GENERAL SUPPLIES-OTHER,Integrated Care,OLYMPUS KEYMED,0002133007,251.58,
Department of Health,East Sussex Healthcare NHS Trust,07/05/2014,INTERVENTIONAL DISPOSABLES,Integrated Care,OLYMPUS KEYMED,0002133007,661.30,
Department of Health,East Sussex Healthcare NHS Trust,07/05/2014,CAPITAL EXPENDITURE,Other Central,OLYMPUS KEYMED,0002133008,66135.59,
Department of Health,East Sussex Healthcare NHS Trust,07/05/2014,WASTE DISPOSAL SERVICES,Commercial,VEOLIA ENVIRONMENTAL SERVICES (UK) PLC,0002226863,2100.84,
Department of Health,East Sussex Healthcare NHS Trust,07/05/2014,OESOPHAGEAL (UPPER GI) STENTS,Integrated Care,AQUILANT INTERVENTIONAL,0002227399,942.00,
Department of Health,East Sussex Healthcare NHS Trust,07/05/2014,LAUNDRY MACHINES,Commercial,JLA TOTAL CARE LTD,0002227489,607.20,
Department of Health,East Sussex Healthcare NHS Trust,07/05/2014,MEDICAL GAS - VIE RENTAL,Commercial,BOC (MANCHESTER)LTD,0002227576,774.41,
Department of Health,East Sussex Healthcare NHS Trust,07/05/2014,CAPITAL EXPENDITURE,Other Central,PHILIPS MEDICAL SYSTEMS UK LTD,0002227598,246239.88,
Department of Health,East Sussex Healthcare NHS Trust,07/05/2014,CAPITAL EXPENDITURE,Other Central,HEWLETT-PACKARD LTD,0002227644,4748.76,
Department of Health,East Sussex Healthcare NHS Trust,07/05/2014,CAPITAL EXPENDITURE,Other Central,HEWLETT-PACKARD LTD,0002227759,833.72,
Department of Health,East Sussex Healthcare NHS Trust,07/05/2014,MEDICAL GAS - CYLINDER RENTAL,Integrated Care,BOC (MANCHESTER)LTD,0002227780,847.00,
Department of Health,East Sussex Healthcare NHS Trust,07/05/2014,CONTRACT-SECURITY,Commercial,VISTEC SYSTEMS,0002227803,495.00,
Department of Health,East Sussex Healthcare NHS Trust,07/05/2014,CARDIOLOGY CATHETERS,Integrated Care,BOSTON SCIENTIFIC LTD,0002227875,115.20,
Department of Health,East Sussex Healthcare NHS Trust,07/05/2014,CARDIOLOGY STENTS,Integrated Care,BOSTON SCIENTIFIC LTD,0002227875,840.00,
Department of Health,East Sussex Healthcare NHS Trust,07/05/2014,ENDOSCOPY CONSUMABLES,Integrated Care,BOSTON SCIENTIFIC LTD,0002227876,888.00,
Department of Health,East Sussex Healthcare NHS Trust,07/05/2014,BILIARY STENTS,Integrated Care,BOSTON SCIENTIFIC LTD,0002227876,76.80,
Department of Health,East Sussex Healthcare NHS Trust,07/05/2014,CARDIOLOGY CATHETERS,Integrated Care,BOSTON SCIENTIFIC LTD,0002227877,506.38,
Department of Health,East Sussex Healthcare NHS Trust,07/05/2014,TSSU INSTRUMENTATION,Commercial,B BRAUN MEDICAL,0002227893,709.76,
Department of Health,East Sussex Healthcare NHS Trust,07/05/2014,UCKFIELD INSTRUMENTS REPAIR,Commercial,B BRAUN MEDICAL,0002227907,850.00,
Department of Health,East Sussex Healthcare NHS Trust,07/05/2014,FURNITURE & FITTINGS,Integrated Care,MEDISCO MEDICAL SYSTEMS,0002227957,1252.80,
Department of Health,East Sussex Healthcare NHS Trust,07/05/2014,M & S EQUIP REPAIR MATERIALS,Integrated Care,VERATHON MEDICAL,0002227958,1185.95,
Department of Health,East Sussex Healthcare NHS Trust,07/05/2014,CONT.MAIN-MED & SURG EQUIP,Commercial,SINTON'S SURGICAL INSTRUMENTS,0002227963,763.00,
Department of Health,East Sussex Healthcare NHS Trust,07/05/2014,BEDDING & LINEN - BED LINEN,Commercial,INTERWEAVE TEXTILES LTD,0002227968,3408.00,
Department of Health,East Sussex Healthcare NHS Trust,07/05/2014,BEDDING & LINEN - BED LINEN,Commercial,INTERWEAVE TEXTILES LTD,0002227969,7440.00,
Department of Health,East Sussex Healthcare NHS Trust,07/05/2014,STAFF UNIFORMS,Integrated Care,INTERWEAVE TEXTILES LTD,0002227970,6958.44,
Department of Health,East Sussex Healthcare NHS Trust,07/05/2014,STAFF UNIFORMS,Integrated Care,INTERWEAVE TEXTILES LTD,0002227970,7976.40,
Department of Health,East Sussex Healthcare NHS Trust,07/05/2014,CONT.MAIN-MED & SURG EQUIP,Commercial,LINDSAY SURGICAL SUPPLIES LTD,0002227976,740.00,
Department of Health,East Sussex Healthcare NHS Trust,07/05/2014,LAUNDRY-DETERGENTS,Commercial,CHRISTEYNS UK LTD,0002227993,7152.00,
Department of Health,East Sussex Healthcare NHS Trust,07/05/2014,M&S GENERAL SUPPLIES-OTHER,Integrated Care,INTERSURGICAL LTD,0002228024,624.00,
Department of Health,East Sussex Healthcare NHS Trust,07/05/2014,PROSTHESES-OTHER,Integrated Care,BIOMET UK HEALTHCARE LTD,0002228037,680.40,
Department of Health,East Sussex Healthcare NHS Trust,07/05/2014,M&S GENERAL SUPPLIES-OTHER,Commercial,UNISURGE INTERNATIONAL LTD,0002228040,529.88,
Department of Health,East Sussex Healthcare NHS Trust,07/05/2014,SURGICAL INSTRUMENTS,Commercial,UNISURGE INTERNATIONAL LTD,0002228040,384.00,
Department of Health,East Sussex Healthcare NHS Trust,07/05/2014,PRE-STERILE COMMERCIAL PACKS,Commercial,UNISURGE INTERNATIONAL LTD,0002228040,1293.15,
Department of Health,East Sussex Healthcare NHS Trust,07/05/2014,HIRE OF SPECIAL BEDS,Integrated Care,POSHCHAIR MEDICAL LTD,0002228057,2340.00,
Department of Health,East Sussex Healthcare NHS Trust,07/05/2014,LOANER KITS - HIRE CHARGE,Integrated Care,BIOMET UK HEALTHCARE LTD,0002228064,540.00,
Department of Health,East Sussex Healthcare NHS Trust,07/05/2014,PROSTHESES-OTHER,Integrated Care,BIOMET UK HEALTHCARE LTD,0002228064,1812.00,
Department of Health,East Sussex Healthcare NHS Trust,07/05/2014,GENERAL LAB. CONSUMABLES,Integrated Care,ALPHA LABORATORIES LTD,0002228068,648.00,
Department of Health,East Sussex Healthcare NHS Trust,07/05/2014,LAB MATERIALS - MAIN ANALYSER,Integrated Care,ALPHA LABORATORIES LTD,0002228068,402.60,
Department of Health,East Sussex Healthcare NHS Trust,07/05/2014,LAB.REAGENTS-MISCELLANEOUS,Integrated Care,ALPHA LABORATORIES LTD,0002228068,465.84,
Department of Health,East Sussex Healthcare NHS Trust,07/05/2014,IMMUNONOLOGY REAGENTS,Integrated Care,PHADIA LTD,0002228070,879.84,
Department of Health,East Sussex Healthcare NHS Trust,07/05/2014,PRE-STERILE COMMERCIAL PACKS,Commercial,GUARDIAN,0002228073,814.46,
Department of Health,East Sussex Healthcare NHS Trust,07/05/2014,TSSU INSTRUMENTATION,Commercial,JOHNSON & JOHNSON MEDICAL LTD,0002228076,595.79,
Department of Health,East Sussex Healthcare NHS Trust,07/05/2014,COMPUTER HARDWARE,Corporate Services,SCC CONSUMABLES,0002228077,1685.02,
Department of Health,East Sussex Healthcare NHS Trust,07/05/2014,LAB MATERIALS - SIEMENS HEALTH,Integrated Care,SIEMENS HEALTHCARE DIAGNOSTICS LTD,0002228081,704.50,
Department of Health,East Sussex Healthcare NHS Trust,07/05/2014,TSSU INSTRUMENTATION,Commercial,REAM SURGICAL LTD,0002228082,1359.89,
Department of Health,East Sussex Healthcare NHS Trust,07/05/2014,LAB MATERIALS - G & N,Integrated Care,G & N LABORATORY LTD,0002228083,1681.80,
Department of Health,East Sussex Healthcare NHS Trust,07/05/2014,LAB-CONTAINERS/BOTTLES & CAPS,Integrated Care,G & N LABORATORY LTD,0002228083,88.73,
Department of Health,East Sussex Healthcare NHS Trust,07/05/2014,M&S GENERAL SUPPLIES-OTHER,Commercial,CLINIPAK LTD,0002228087,1616.16,
Department of Health,East Sussex Healthcare NHS Trust,07/05/2014,SURGICAL INSTRUMENTS,Integrated Care,OLYMPUS KEYMED,0002228088,3474.20,
Department of Health,East Sussex Healthcare NHS Trust,07/05/2014,CARDIOLOGY CATHETERS,Integrated Care,MAQUET LIMITED,0002228096,1869.60,
Department of Health,East Sussex Healthcare NHS Trust,07/05/2014,BLOOD PRODUCTS - BPL,Integrated Care,BIO PRODUCTS LABORATORY,0002228098,2178.00,
Department of Health,East Sussex Healthcare NHS Trust,07/05/2014,TSSU INSTRUMENTATION,Commercial,REAM SURGICAL LTD,0002228105,514.09,
Department of Health,East Sussex Healthcare NHS Trust,07/05/2014,UCKFIELD INSTRUMENTS REPAIR,Commercial,REAM SURGICAL LTD,0002228105,495.83,
Department of Health,East Sussex Healthcare NHS Trust,07/05/2014,M&S GENERAL SUPPLIES-OTHER,Integrated Care,BIOMET UK HEALTHCARE LTD,0002228115,122.40,
Department of Health,East Sussex Healthcare NHS Trust,07/05/2014,PROSTHESES-KNEES,Integrated Care,BIOMET UK HEALTHCARE LTD,0002228115,1706.40,
Department of Health,East Sussex Healthcare NHS Trust,07/05/2014,TSSU INSTRUMENTATION,Commercial,JOHN WEISS & SONS LTD,0002228123,540.91,
Department of Health,East Sussex Healthcare NHS Trust,07/05/2014,PROCEDURE PACKS,Commercial,MEDLINE INDUSTRIES LIMITED,0002228127,4769.71,
Department of Health,East Sussex Healthcare NHS Trust,07/05/2014,CAPITAL EXPENDITURE,Other Central,WELCH ALLYN UK LTD,0002228128,504.00,
Department of Health,East Sussex Healthcare NHS Trust,07/05/2014,FURNITURE & FITTINGS,Integrated Care,HILL-ROM LTD,0002228137,508.77,
Department of Health,East Sussex Healthcare NHS Trust,07/05/2014,MATTRESSES,Integrated Care,HILL-ROM LTD,0002228137,1269.27,
Department of Health,East Sussex Healthcare NHS Trust,07/05/2014,ENGINEERING MATERIALS,Commercial,FILEDER FILTER SYSTEMS LTD,0002228222,688.32,
Department of Health,East Sussex Healthcare NHS Trust,07/05/2014,TSSU INSTRUMENTATION,Commercial,OLYMPUS KEYMED,0002228256,1150.08,
Department of Health,East Sussex Healthcare NHS Trust,07/05/2014,STOCK-ASCRIBE EDGH,Pharmacy Stock,ALCURA UK LTD,0013015646,715.00,
Department of Health,East Sussex Healthcare NHS Trust,07/05/2014,STOCK-ASCRIBE EDGH,Pharmacy Stock,CSL BEHRING,0013015682,11160.00,
Department of Health,East Sussex Healthcare NHS Trust,07/05/2014,STOCK-ASCRIBE EDGH,Pharmacy Stock,ELI LILLY & CO LTD,0013015691,9600.00,
Department of Health,East Sussex Healthcare NHS Trust,07/05/2014,STOCK-ASCRIBE EDGH,Pharmacy Stock,ROCHE PRODUCTS LTD,0013015693,5135.10,
Department of Health,East Sussex Healthcare NHS Trust,07/05/2014,STOCK-ASCRIBE EDGH,Pharmacy Stock,ROCHE PRODUCTS LTD,0013015694,14004.72,
Department of Health,East Sussex Healthcare NHS Trust,07/05/2014,STOCK-ASCRIBE EDGH,Pharmacy Stock,CELGENE LTD,0013015695,4536.00,
Department of Health,East Sussex Healthcare NHS Trust,07/05/2014,STOCK-ASCRIBE EDGH,Pharmacy Stock,NOVARTIS PHARMACEUTICALS UK LTD,0013015696,10692.00,
Department of Health,East Sussex Healthcare NHS Trust,07/05/2014,STOCK-ASCRIBE EDGH,Pharmacy Stock,GRIFOLS UK LTD,0013015697,680.00,
Department of Health,East Sussex Healthcare NHS Trust,07/05/2014,STOCK-ASCRIBE EDGH,Pharmacy Stock,NOVARTIS PHARMACEUTICALS UK LTD,0013015698,4138.54,
Department of Health,East Sussex Healthcare NHS Trust,07/05/2014,STOCK-ASCRIBE EDGH,Pharmacy Stock,ALCURA UK LTD,0013015700,704.28,
Department of Health,East Sussex Healthcare NHS Trust,07/05/2014,STOCK-ASCRIBE EDGH,Pharmacy Stock,ALCURA UK LTD,0013015701,704.28,
Department of Health,East Sussex Healthcare NHS Trust,07/05/2014,STOCK-ASCRIBE EDGH,Pharmacy Stock,ALCURA UK LTD,0013015702,704.28,
Department of Health,East Sussex Healthcare NHS Trust,07/05/2014,STOCK-ASCRIBE EDGH,Pharmacy Stock,ALCURA UK LTD,0013015703,704.28,
Department of Health,East Sussex Healthcare NHS Trust,07/05/2014,STOCK-ASCRIBE EDGH,Pharmacy Stock,ALCURA UK LTD,0013015712,715.00,
Department of Health,East Sussex Healthcare NHS Trust,07/05/2014,STOCK-ASCRIBE EDGH,Pharmacy Stock,ALCURA UK LTD,0013015714,715.00,
Department of Health,East Sussex Healthcare NHS Trust,07/05/2014,STOCK-ASCRIBE EDGH,Pharmacy Stock,ALCURA UK LTD,0013015717,715.00,
Department of Health,East Sussex Healthcare NHS Trust,07/05/2014,STOCK-ASCRIBE EDGH,Pharmacy Stock,ALCURA UK LTD,0013015729,715.00,
Department of Health,East Sussex Healthcare NHS Trust,07/05/2014,STOCK-ASCRIBE EDGH,Pharmacy Stock,ALCURA UK LTD,0013015730,715.00,
Department of Health,East Sussex Healthcare NHS Trust,07/05/2014,STOCK-ASCRIBE EDGH,Pharmacy Stock,GILEAD SCIENCES LTD,0013015935,5801.40,
Department of Health,East Sussex Healthcare NHS Trust,07/05/2014,STOCK-ASCRIBE EDGH,Pharmacy Stock,ROCHE PRODUCTS LTD,0013015936,42666.00,
Department of Health,East Sussex Healthcare NHS Trust,07/05/2014,STOCK-ASCRIBE EDGH,Pharmacy Stock,CELGENE LTD,0013015937,10660.80,
Department of Health,East Sussex Healthcare NHS Trust,07/05/2014,STOCK-ASCRIBE EDGH,Pharmacy Stock,ALCURA UK LTD,0013016248,5212.92,
Department of Health,East Sussex Healthcare NHS Trust,07/05/2014,STOCK-ASCRIBE EDGH,Pharmacy Stock,UNIDRUG DISTRIBUTION GROUP LTD,0013016277,945.46,
Department of Health,East Sussex Healthcare NHS Trust,07/05/2014,PROSTHESIS - LENS,Integrated Care,ALCON EYE CARE UK LTD,0080004482,1190.40,
Department of Health,East Sussex Healthcare NHS Trust,07/05/2014,SURGICAL INSTRUMENTS,Integrated Care,SMITH & NEPHEW ADVANCED SURGICAL DEVICES,0080004496,192.96,
Department of Health,East Sussex Healthcare NHS Trust,07/05/2014,PROSTHESES-OTHER,Integrated Care,SMITH & NEPHEW ADVANCED SURGICAL DEVICES,0080004496,540.18,
Department of Health,East Sussex Healthcare NHS Trust,07/05/2014,CONTINENCE PRODUCTS,Integrated Care,PAUL HARTMANN LTD,0080004563,42.97,
Department of Health,East Sussex Healthcare NHS Trust,07/05/2014,CONTINENCE PRODUCTS,Integrated Care,PAUL HARTMANN LTD,0080004563,7.58,
Department of Health,East Sussex Healthcare NHS Trust,07/05/2014,CONTINENCE PRODUCTS,Integrated Care,PAUL HARTMANN LTD,0080004563,83.38,
Department of Health,East Sussex Healthcare NHS Trust,07/05/2014,CONTINENCE PRODUCTS,Integrated Care,PAUL HARTMANN LTD,0080004563,72.39,
Department of Health,East Sussex Healthcare NHS Trust,07/05/2014,CONTINENCE PRODUCTS,Integrated Care,PAUL HARTMANN LTD,0080004563,158.68,
Department of Health,East Sussex Healthcare NHS Trust,07/05/2014,CONTINENCE PRODUCTS,Integrated Care,PAUL HARTMANN LTD,0080004563,37.25,
Department of Health,East Sussex Healthcare NHS Trust,07/05/2014,CONTINENCE PRODUCTS,Integrated Care,PAUL HARTMANN LTD,0080004563,43.61,
Department of Health,East Sussex Healthcare NHS Trust,07/05/2014,CONTINENCE PRODUCTS,Integrated Care,PAUL HARTMANN LTD,0080004563,43.92,
Department of Health,East Sussex Healthcare NHS Trust,07/05/2014,CONTINENCE PRODUCTS,Integrated Care,PAUL HARTMANN LTD,0080004563,32.96,
Department of Health,East Sussex Healthcare NHS Trust,07/05/2014,CONTINENCE PRODUCTS,Integrated Care,PAUL HARTMANN LTD,0080004563,67.24,
Department of Health,East Sussex Healthcare NHS Trust,07/05/2014,PROSTHESIS - SPINAL,Integrated Care,FANNIN (UK) LIMITED,0080004602,858.00,
Department of Health,East Sussex Healthcare NHS Trust,07/05/2014,PROSTHESIS - SHOULDERS,Integrated Care,ACUMED LTD,0080004611,1072.56,
Department of Health,East Sussex Healthcare NHS Trust,07/05/2014,PROSTHESES-OTHER,Integrated Care,ACUMED LTD,0080004611,164.30,
Department of Health,East Sussex Healthcare NHS Trust,07/05/2014,SURGICAL INSTRUMENTS,Integrated Care,LINA MEDICAL UK LTD,0080004614,425.04,
Department of Health,East Sussex Healthcare NHS Trust,07/05/2014,VAGINAL/HYSTERECT REPAIR INSTR,Integrated Care,LINA MEDICAL UK LTD,0080004614,540.00,
Department of Health,East Sussex Healthcare NHS Trust,07/05/2014,PROSTHESIS - SHOULDERS,Integrated Care,LOCKDOWN MEDICAL,0080004630,927.60,
Department of Health,East Sussex Healthcare NHS Trust,07/05/2014,M&S GENERAL SUPPLIES-OTHER,Integrated Care,INTERSURGICAL LTD,0080004646,1021.20,
Department of Health,East Sussex Healthcare NHS Trust,07/05/2014,LAPARASCOPIC EQUIP-UROLOGICAL,Integrated Care,TPS HEALTHCARE,0080004674,352.80,
Department of Health,East Sussex Healthcare NHS Trust,07/05/2014,M&S GENERAL SUPPLIES-OTHER,Integrated Care,TPS HEALTHCARE,0080004674,180.00,
Department of Health,East Sussex Healthcare NHS Trust,07/05/2014,M&S GENERAL SUPPLIES-OTHER,Integrated Care,ARTHROCARE UK LIMITED,0080004693,729.00,
Department of Health,East Sussex Healthcare NHS Trust,07/05/2014,SURGICAL INSTRUMENTS,Integrated Care,POLAR SPEED DISTRIBUTION LIMITED,0080004695,960.00,
Department of Health,East Sussex Healthcare NHS Trust,07/05/2014,LASER/LAPARASCOPIC EQUIPMENT,Integrated Care,BOSTON SCIENTIFIC LTD,0080004697,1800.00,
Department of Health,East Sussex Healthcare NHS Trust,07/05/2014,UTETEROSCOPY CONSUMABLES,Integrated Care,BOSTON SCIENTIFIC LTD,0080004697,1080.00,
Department of Health,East Sussex Healthcare NHS Trust,07/05/2014,M&S GENERAL SUPPLIES-OTHER,Integrated Care,BOSTON SCIENTIFIC LTD,0080004697,216.00,
Department of Health,East Sussex Healthcare NHS Trust,07/05/2014,INTERVENTIONAL DISPOSABLES,Integrated Care,BOSTON SCIENTIFIC LTD,0080004697,390.00,
Department of Health,East Sussex Healthcare NHS Trust,07/05/2014,RENAL STENTS,Integrated Care,BOSTON SCIENTIFIC LTD,0080004697,468.00,
Department of Health,East Sussex Healthcare NHS Trust,07/05/2014,M&S GENERAL SUPPLIES-OTHER,Integrated Care,STRYKER UK,0080004978,907.20,
Department of Health,East Sussex Healthcare NHS Trust,07/05/2014,M&S GENERAL SUPPLIES-OTHER,Integrated Care,STRYKER UK,0080004991,108.00,
Department of Health,East Sussex Healthcare NHS Trust,07/05/2014,SURGICAL INSTRUMENTS,Integrated Care,STRYKER UK,0080004991,16.20,
Department of Health,East Sussex Healthcare NHS Trust,07/05/2014,PROSTHESES-HIP,Integrated Care,STRYKER UK,0080004991,719.88,
Department of Health,East Sussex Healthcare NHS Trust,07/05/2014,CONTINENCE PRODUCTS,Integrated Care,PAUL HARTMANN LTD,0080005064,129.68,
Department of Health,East Sussex Healthcare NHS Trust,07/05/2014,CONTINENCE PRODUCTS,Integrated Care,PAUL HARTMANN LTD,0080005064,67.21,
Department of Health,East Sussex Healthcare NHS Trust,07/05/2014,CONTINENCE PRODUCTS,Integrated Care,PAUL HARTMANN LTD,0080005064,129.49,
Department of Health,East Sussex Healthcare NHS Trust,07/05/2014,CONTINENCE PRODUCTS,Integrated Care,PAUL HARTMANN LTD,0080005064,7.58,
Department of Health,East Sussex Healthcare NHS Trust,07/05/2014,CONTINENCE PRODUCTS,Integrated Care,PAUL HARTMANN LTD,0080005064,93.01,
Department of Health,East Sussex Healthcare NHS Trust,07/05/2014,CONTINENCE PRODUCTS,Integrated Care,PAUL HARTMANN LTD,0080005064,196.58,
Department of Health,East Sussex Healthcare NHS Trust,07/05/2014,CONTINENCE PRODUCTS,Integrated Care,PAUL HARTMANN LTD,0080005064,66.78,
Department of Health,East Sussex Healthcare NHS Trust,07/05/2014,CONTINENCE PRODUCTS,Integrated Care,PAUL HARTMANN LTD,0080005064,45.08,
Department of Health,East Sussex Healthcare NHS Trust,07/05/2014,CONTINENCE PRODUCTS,Integrated Care,PAUL HARTMANN LTD,0080005064,22.34,
Department of Health,East Sussex Healthcare NHS Trust,07/05/2014,CONTINENCE PRODUCTS,Integrated Care,PAUL HARTMANN LTD,0080005065,26.23,
Department of Health,East Sussex Healthcare NHS Trust,07/05/2014,CONTINENCE PRODUCTS,Integrated Care,PAUL HARTMANN LTD,0080005065,33.68,
Department of Health,East Sussex Healthcare NHS Trust,07/05/2014,CONTINENCE PRODUCTS,Integrated Care,PAUL HARTMANN LTD,0080005065,31.74,
Department of Health,East Sussex Healthcare NHS Trust,07/05/2014,CONTINENCE PRODUCTS,Integrated Care,PAUL HARTMANN LTD,0080005065,13.11,
Department of Health,East Sussex Healthcare NHS Trust,07/05/2014,CONTINENCE PRODUCTS,Integrated Care,PAUL HARTMANN LTD,0080005065,58.56,
Department of Health,East Sussex Healthcare NHS Trust,07/05/2014,CONTINENCE PRODUCTS,Integrated Care,PAUL HARTMANN LTD,0080005065,84.08,
Department of Health,East Sussex Healthcare NHS Trust,07/05/2014,CONTINENCE PRODUCTS,Integrated Care,PAUL HARTMANN LTD,0080005065,58.95,
Department of Health,East Sussex Healthcare NHS Trust,07/05/2014,CONTINENCE PRODUCTS,Integrated Care,PAUL HARTMANN LTD,0080005065,207.96,
Department of Health,East Sussex Healthcare NHS Trust,07/05/2014,CONTINENCE PRODUCTS,Integrated Care,PAUL HARTMANN LTD,0080005065,78.07,
Department of Health,East Sussex Healthcare NHS Trust,07/05/2014,CONTINENCE PRODUCTS,Integrated Care,PAUL HARTMANN LTD,0080005065,63.94,
Department of Health,East Sussex Healthcare NHS Trust,07/05/2014,CONTINENCE PRODUCTS,Integrated Care,PAUL HARTMANN LTD,0080005065,22.34,
Department of Health,East Sussex Healthcare NHS Trust,07/05/2014,TURIS UROLOGY M&S,Integrated Care,OLYMPUS KEYMED,0080005078,7283.84,
Department of Health,East Sussex Healthcare NHS Trust,07/05/2014,TURIS UROLOGY M&S,Integrated Care,OLYMPUS KEYMED,0080005080,1832.94,
Department of Health,East Sussex Healthcare NHS Trust,07/05/2014,TURIS UROLOGY M&S,Integrated Care,OLYMPUS KEYMED,0080005081,7283.84,
Department of Health,East Sussex Healthcare NHS Trust,07/05/2014,CONTINENCE PRODUCTS,Integrated Care,PAUL HARTMANN LTD,0080005097,52.47,
Department of Health,East Sussex Healthcare NHS Trust,07/05/2014,CONTINENCE PRODUCTS,Integrated Care,PAUL HARTMANN LTD,0080005097,28.28,
Department of Health,East Sussex Healthcare NHS Trust,07/05/2014,CONTINENCE PRODUCTS,Integrated Care,PAUL HARTMANN LTD,0080005097,7.34,
Department of Health,East Sussex Healthcare NHS Trust,07/05/2014,CONTINENCE PRODUCTS,Integrated Care,PAUL HARTMANN LTD,0080005097,56.04,
Department of Health,East Sussex Healthcare NHS Trust,07/05/2014,CONTINENCE PRODUCTS,Integrated Care,PAUL HARTMANN LTD,0080005097,54.52,
Department of Health,East Sussex Healthcare NHS Trust,07/05/2014,CONTINENCE PRODUCTS,Integrated Care,PAUL HARTMANN LTD,0080005097,233.89,
Department of Health,East Sussex Healthcare NHS Trust,07/05/2014,CONTINENCE PRODUCTS,Integrated Care,PAUL HARTMANN LTD,0080005097,58.75,
Department of Health,East Sussex Healthcare NHS Trust,07/05/2014,CONTINENCE PRODUCTS,Integrated Care,PAUL HARTMANN LTD,0080005097,42.87,
Department of Health,East Sussex Healthcare NHS Trust,07/05/2014,CONTINENCE PRODUCTS,Integrated Care,PAUL HARTMANN LTD,0080005097,7.58,
Department of Health,East Sussex Healthcare NHS Trust,07/05/2014,CONTINENCE PRODUCTS,Integrated Care,PAUL HARTMANN LTD,0080005097,47.56,
Department of Health,East Sussex Healthcare NHS Trust,07/05/2014,CONTINENCE PRODUCTS,Integrated Care,PAUL HARTMANN LTD,0080005098,27.56,
Department of Health,East Sussex Healthcare NHS Trust,07/05/2014,CONTINENCE PRODUCTS,Integrated Care,PAUL HARTMANN LTD,0080005098,76.97,
Department of Health,East Sussex Healthcare NHS Trust,07/05/2014,CONTINENCE PRODUCTS,Integrated Care,PAUL HARTMANN LTD,0080005098,30.03,
Department of Health,East Sussex Healthcare NHS Trust,07/05/2014,CONTINENCE PRODUCTS,Integrated Care,PAUL HARTMANN LTD,0080005098,90.96,
Department of Health,East Sussex Healthcare NHS Trust,07/05/2014,CONTINENCE PRODUCTS,Integrated Care,PAUL HARTMANN LTD,0080005098,90.48,
Department of Health,East Sussex Healthcare NHS Trust,07/05/2014,CONTINENCE PRODUCTS,Integrated Care,PAUL HARTMANN LTD,0080005098,114.50,
Department of Health,East Sussex Healthcare NHS Trust,07/05/2014,CONTINENCE PRODUCTS,Integrated Care,PAUL HARTMANN LTD,0080005098,132.86,
Department of Health,East Sussex Healthcare NHS Trust,07/05/2014,CONTINENCE PRODUCTS,Integrated Care,PAUL HARTMANN LTD,0080005098,55.72,
Department of Health,East Sussex Healthcare NHS Trust,07/05/2014,CONTINENCE PRODUCTS,Integrated Care,PAUL HARTMANN LTD,0080005098,172.36,
Department of Health,East Sussex Healthcare NHS Trust,07/05/2014,CONTINENCE PRODUCTS,Integrated Care,PAUL HARTMANN LTD,0080005098,86.05,
Department of Health,East Sussex Healthcare NHS Trust,07/05/2014,CONTINENCE PRODUCTS,Integrated Care,PAUL HARTMANN LTD,0080005098,40.29,
Department of Health,East Sussex Healthcare NHS Trust,07/05/2014,CONTINENCE PRODUCTS,Integrated Care,PAUL HARTMANN LTD,0080005098,15.98,
Department of Health,East Sussex Healthcare NHS Trust,07/05/2014,CONTINENCE PRODUCTS,Integrated Care,PAUL HARTMANN LTD,0080005098,16.44,
Department of Health,East Sussex Healthcare NHS Trust,09/05/2014,PURCHASING CARDS,Cross Site,LLOYDS TSB CORPORATE MARKETS,0001425047,17734.18,
Department of Health,East Sussex Healthcare NHS Trust,14/05/2014,SR BRIGHTON & SUSSEX UNIV HOSP,Integrated Care,BRIGHTON AND SUSSEX UNIV HOSPS NHS TRUST,0000139046,1944.49,
Department of Health,East Sussex Healthcare NHS Trust,14/05/2014,SR BRIGHTON & SUSSEX UNIV HOSP,Integrated Care,BRIGHTON AND SUSSEX UNIV HOSPS NHS TRUST,0000139046,568.00,
Department of Health,East Sussex Healthcare NHS Trust,14/05/2014,SR BRIGHTON & SUSSEX UNIV HOSP,Integrated Care,BRIGHTON AND SUSSEX UNIV HOSPS NHS TRUST,0000139144,1069.94,
Department of Health,East Sussex Healthcare NHS Trust,14/05/2014,SR BRIGHTON & SUSSEX UNIV HOSP,Integrated Care,BRIGHTON AND SUSSEX UNIV HOSPS NHS TRUST,0000139145,1310.19,
Department of Health,East Sussex Healthcare NHS Trust,14/05/2014,SR BRIGHTON & SUSSEX UNIV HOSP,Integrated Care,BRIGHTON AND SUSSEX UNIV HOSPS NHS TRUST,0000139146,49465.00,
Department of Health,East Sussex Healthcare NHS Trust,14/05/2014,RADIOISOTOPES,Integrated Care,BRIGHTON AND SUSSEX UNIV HOSPS NHS TRUST,0000139173,8364.27,
Department of Health,East Sussex Healthcare NHS Trust,14/05/2014,RADIOISOTOPES,Integrated Care,BRIGHTON AND SUSSEX UNIV HOSPS NHS TRUST,0000139174,4428.09,
Department of Health,East Sussex Healthcare NHS Trust,14/05/2014,SR BRIGHTON & SUSSEX UNIV HOSP,Integrated Care,BRIGHTON AND SUSSEX UNIV HOSPS NHS TRUST,0000139265,1860.46,
Department of Health,East Sussex Healthcare NHS Trust,14/05/2014,SR BRIGHTON & SUSSEX UNIV HOSP,Integrated Care,BRIGHTON AND SUSSEX UNIV HOSPS NHS TRUST,0000139269,2104.78,
Department of Health,East Sussex Healthcare NHS Trust,14/05/2014,YEAR END NRVS JV GENERAL CRS,NHS Creditors,BRIGHTON AND SUSSEX UNIV HOSPS NHS TRUST,0000139270,1332.76,
Department of Health,East Sussex Healthcare NHS Trust,14/05/2014,SR BRIGHTON & SUSSEX UNIV HOSP,Corporate Services,BRIGHTON AND SUSSEX UNIV HOSPS NHS TRUST,0000139372,65534.00,
Department of Health,East Sussex Healthcare NHS Trust,14/05/2014,RADIOISOTOPES,Integrated Care,BRIGHTON AND SUSSEX UNIV HOSPS NHS TRUST,0000139373,7411.65,
Department of Health,East Sussex Healthcare NHS Trust,14/05/2014,RADIOISOTOPES,Integrated Care,BRIGHTON AND SUSSEX UNIV HOSPS NHS TRUST,0000139374,3889.91,
Department of Health,East Sussex Healthcare NHS Trust,14/05/2014,SR BRIGHTON & SUSSEX UNIV HOSP,Corporate Services,BRIGHTON AND SUSSEX UNIV HOSPS NHS TRUST,0000139375,1349.00,
Department of Health,East Sussex Healthcare NHS Trust,14/05/2014,SLA WITH BSUH,Integrated Care,BRIGHTON AND SUSSEX UNIV HOSPS NHS TRUST,0000139380,15708.72,
Department of Health,East Sussex Healthcare NHS Trust,14/05/2014,SR BRIGHTON & SUSSEX UNIV HOSP,Integrated Care,BRIGHTON AND SUSSEX UNIV HOSPS NHS TRUST,0000139435,5221.61,
Department of Health,East Sussex Healthcare NHS Trust,14/05/2014,YEAR END NRVS JV GENERAL CRS,NHS Creditors,BRIGHTON AND SUSSEX UNIV HOSPS NHS TRUST,0000139439,2139.88,
Department of Health,East Sussex Healthcare NHS Trust,14/05/2014,YEAR END NRVS JV GENERAL CRS,NHS Creditors,BRIGHTON AND SUSSEX UNIV HOSPS NHS TRUST,0000139440,2988.37,
Department of Health,East Sussex Healthcare NHS Trust,14/05/2014,SR BRIGHTON & SUSSEX UNIV HOSP,Integrated Care,BRIGHTON AND SUSSEX UNIV HOSPS NHS TRUST,0000139441,6249.34,
Department of Health,East Sussex Healthcare NHS Trust,14/05/2014,YEAR END NRVS JV GENERAL CRS,NHS Creditors,BRIGHTON AND SUSSEX UNIV HOSPS NHS TRUST,0000139444,3464.89,
Department of Health,East Sussex Healthcare NHS Trust,14/05/2014,YEAR END NRVS JV GENERAL CRS,NHS Creditors,BRIGHTON AND SUSSEX UNIV HOSPS NHS TRUST,0000139514,780.42,
Department of Health,East Sussex Healthcare NHS Trust,14/05/2014,YEAR END NRVS JV GENERAL CRS,NHS Creditors,BRIGHTON AND SUSSEX UNIV HOSPS NHS TRUST,0000139515,2292.78,
Department of Health,East Sussex Healthcare NHS Trust,14/05/2014,YEAR END NRVS JV GENERAL CRS,NHS Creditors,BRIGHTON AND SUSSEX UNIV HOSPS NHS TRUST,0000139516,585.60,
Department of Health,East Sussex Healthcare NHS Trust,14/05/2014,YEAR END NRVS JV GENERAL CRS,NHS Creditors,BRIGHTON AND SUSSEX UNIV HOSPS NHS TRUST,0000139517,1363.00,
Department of Health,East Sussex Healthcare NHS Trust,14/05/2014,SR BRIGHTON & SUSSEX UNIV HOSP,Integrated Care,BRIGHTON AND SUSSEX UNIV HOSPS NHS TRUST,0000139519,1609.23,
Department of Health,East Sussex Healthcare NHS Trust,14/05/2014,YEAR END NRVS JV GENERAL CRS,NHS Creditors,BRIGHTON AND SUSSEX UNIV HOSPS NHS TRUST,0000139522,1432.85,
Department of Health,East Sussex Healthcare NHS Trust,14/05/2014,YEAR END NRVS JV GENERAL CRS,NHS Creditors,BRIGHTON AND SUSSEX UNIV HOSPS NHS TRUST,0000139546,3300.00,
Department of Health,East Sussex Healthcare NHS Trust,14/05/2014,YEAR END NRVS JV GENERAL CRS,NHS Creditors,MAIDSTONE & TUNBRIDGE WELLS NHS TRUST,0000139597,97770.08,
Department of Health,East Sussex Healthcare NHS Trust,14/05/2014,ENGINEER CONTRACT - REPAIR,Commercial,BRIGHTON AND SUSSEX UNIV HOSPS NHS TRUST,0000139817,759.00,
Department of Health,East Sussex Healthcare NHS Trust,14/05/2014,AGENCY SPECIALIST REG,Integrated Care,RM MEDICS LTD,0000294813,672.00,
Department of Health,East Sussex Healthcare NHS Trust,14/05/2014,LOCUM S.H.O.,Integrated Care,NC HEALTHCARE LTD,0000296203,5511.00,
Department of Health,East Sussex Healthcare NHS Trust,14/05/2014,AGENCY SPECIALIST REG,Integrated Care,TLC - THE LOCUM CONSULTANCY,0000296317,2730.00,
Department of Health,East Sussex Healthcare NHS Trust,14/05/2014,AGENCY SPECIALIST REG,Integrated Care,TLC - THE LOCUM CONSULTANCY,0000296318,3486.00,
Department of Health,East Sussex Healthcare NHS Trust,14/05/2014,AGENCY SPECIALIST REG,Integrated Care,TLC - THE LOCUM CONSULTANCY,0000296319,2058.00,
Department of Health,East Sussex Healthcare NHS Trust,14/05/2014,AGENCY SPECIALIST REG,Integrated Care,TLC - THE LOCUM CONSULTANCY,0000296320,1428.00,
Department of Health,East Sussex Healthcare NHS Trust,14/05/2014,AGENCY CONSULTANT,Integrated Care,FIRST MEDICAL STAFFING SOLUTIONS,0000296339,2293.66,
Department of Health,East Sussex Healthcare NHS Trust,14/05/2014,AGENCY CONSULTANT,Integrated Care,FIRST MEDICAL STAFFING SOLUTIONS,0000296538,2293.66,
Department of Health,East Sussex Healthcare NHS Trust,14/05/2014,AGENCY CONSULTANT,Integrated Care,FIRST MEDICAL STAFFING SOLUTIONS,0000296546,2293.66,
Department of Health,East Sussex Healthcare NHS Trust,14/05/2014,AGENCY CONSULTANT,Integrated Care,FIRST MEDICAL STAFFING SOLUTIONS,0000296628,2293.66,
Department of Health,East Sussex Healthcare NHS Trust,14/05/2014,AGENCY NURSE - QUALIFIED,Integrated Care,MAYDAY HEALTHCARE PLC,0000296734,535.73,
Department of Health,East Sussex Healthcare NHS Trust,14/05/2014,AGENCY NURSE - QUALIFIED,Integrated Care,MAYDAY HEALTHCARE PLC,0000296743,535.73,
Department of Health,East Sussex Healthcare NHS Trust,14/05/2014,AGENCY NURSE - QUALIFIED,Integrated Care,MAYDAY HEALTHCARE PLC,0000296768,615.25,
Department of Health,East Sussex Healthcare NHS Trust,14/05/2014,AGENCY SHO,Integrated Care,NC HEALTHCARE LTD,0000296806,5643.00,
Department of Health,East Sussex Healthcare NHS Trust,14/05/2014,LOCUM SPECIALIST REGISTRAR,Integrated Care,MEDACS HEALTHCARE SERVICES LTD,0000296807,3081.61,
Department of Health,East Sussex Healthcare NHS Trust,14/05/2014,LOCUM SPECIALTY REGISTRAR,Integrated Care,MEDACS HEALTHCARE SERVICES LTD,0000296808,3636.29,
Department of Health,East Sussex Healthcare NHS Trust,14/05/2014,AGENCY SHO,Integrated Care,MEDACS HEALTHCARE SERVICES LTD,0000296809,3595.20,
Department of Health,East Sussex Healthcare NHS Trust,14/05/2014,LOCUM SPECIALIST REGISTRAR,Integrated Care,MEDACS HEALTHCARE SERVICES LTD,0000296810,3944.45,
Department of Health,East Sussex Healthcare NHS Trust,14/05/2014,AGENCY SHO,Integrated Care,NC HEALTHCARE LTD,0000296814,5709.00,
Department of Health,East Sussex Healthcare NHS Trust,14/05/2014,AGENCY CONSULTANT,Integrated Care,FIRST MEDICAL STAFFING SOLUTIONS,0000296862,2293.66,
Department of Health,East Sussex Healthcare NHS Trust,14/05/2014,AGENCY TECHNICIAN,Integrated Care,THE PLACEMENT GROUP,0000296948,589.86,
Department of Health,East Sussex Healthcare NHS Trust,14/05/2014,AGENCY TECHNICIAN,Integrated Care,THE PLACEMENT GROUP,0000296949,1592.63,
Department of Health,East Sussex Healthcare NHS Trust,14/05/2014,AGENCY TECHNICIAN,Integrated Care,THE PLACEMENT GROUP,0000296950,1365.52,
Department of Health,East Sussex Healthcare NHS Trust,14/05/2014,AGENCY MLSO,Integrated Care,THE PLACEMENT GROUP,0000296951,1386.90,
Department of Health,East Sussex Healthcare NHS Trust,14/05/2014,AGENCY NURSE - QUALIFIED,Integrated Care,YOURWORLD NURSING,0000296961,1813.00,
Department of Health,East Sussex Healthcare NHS Trust,14/05/2014,AGENCY NURSE - QUALIFIED,Integrated Care,YOURWORLD NURSING,0000296962,1541.90,
Department of Health,East Sussex Healthcare NHS Trust,14/05/2014,AGENCY NURSE - QUALIFIED,Integrated Care,YOURWORLD NURSING,0000296963,1480.00,
Department of Health,East Sussex Healthcare NHS Trust,14/05/2014,AGENCY MTO,Integrated Care,YOUR WORLD RECRUITMENT LTD,0000296968,1620.60,
Department of Health,East Sussex Healthcare NHS Trust,14/05/2014,AGENCY MTO,Integrated Care,YOUR WORLD RECRUITMENT LTD,0000296969,2135.44,
Department of Health,East Sussex Healthcare NHS Trust,14/05/2014,AGENCY MTO,Integrated Care,YOUR WORLD RECRUITMENT LTD,0000296970,2104.13,
Department of Health,East Sussex Healthcare NHS Trust,14/05/2014,AGENCY SPECIALIST REG,Integrated Care,TOTAL ASSIST RECRUITMENT LTD,0000296992,1636.84,
Department of Health,East Sussex Healthcare NHS Trust,14/05/2014,AGENCY SPECIALIST REG,Integrated Care,TEMPLARS MEDICAL,0000296997,734.05,
Department of Health,East Sussex Healthcare NHS Trust,14/05/2014,AGENCY ANCILLARY,Commercial,TEMPORARY & PERMANENT REC SERVICES LTD,0000296998,4613.98,
Department of Health,East Sussex Healthcare NHS Trust,14/05/2014,AGENCY MLSO,Integrated Care,LABMED,0000297006,1150.20,
Department of Health,East Sussex Healthcare NHS Trust,14/05/2014,AGENCY ANCILLARY,Commercial,TEMPORARY & PERMANENT REC SERVICES LTD,0000297007,720.72,
Department of Health,East Sussex Healthcare NHS Trust,14/05/2014,AGENCY ANCILLARY,Commercial,TEMPORARY & PERMANENT REC SERVICES LTD,0000297008,682.00,
Department of Health,East Sussex Healthcare NHS Trust,14/05/2014,AGENCY MLSO,Integrated Care,LABMED,0000297012,1186.02,
Department of Health,East Sussex Healthcare NHS Trust,14/05/2014,AGENCY DRIVERS,Commercial,GRAFTERS RECRUITMENT CONSULTANTS LTD,0000297018,1050.30,
Department of Health,East Sussex Healthcare NHS Trust,14/05/2014,AGENCY SHO,Integrated Care,NC HEALTHCARE LTD,0000297021,5082.00,
Department of Health,East Sussex Healthcare NHS Trust,14/05/2014,AGENCY SPECIALIST REG,Integrated Care,LOCUM PEOPLE LTD,0000297024,3521.32,
Department of Health,East Sussex Healthcare NHS Trust,14/05/2014,AGENCY NURSE - QUALIFIED,Integrated Care,MAYDAY HEALTHCARE PLC,0000297036,1154.03,
Department of Health,East Sussex Healthcare NHS Trust,14/05/2014,AGENCY NURSE - QUALIFIED,Integrated Care,MAYDAY HEALTHCARE PLC,0000297037,1035.40,
Department of Health,East Sussex Healthcare NHS Trust,14/05/2014,AGENCY NURSE - QUALIFIED,Integrated Care,MAYDAY HEALTHCARE PLC,0000297038,1013.50,
Department of Health,East Sussex Healthcare NHS Trust,14/05/2014,AGENCY NURSE - QUALIFIED,Integrated Care,MAYDAY HEALTHCARE PLC,0000297040,1071.46,
Department of Health,East Sussex Healthcare NHS Trust,14/05/2014,AGENCY NURSE - QUALIFIED,Integrated Care,MAYDAY HEALTHCARE PLC,0000297041,572.03,
Department of Health,East Sussex Healthcare NHS Trust,14/05/2014,AGENCY NURSE - QUALIFIED,Integrated Care,MAYDAY HEALTHCARE PLC,0000297042,535.73,
Department of Health,East Sussex Healthcare NHS Trust,14/05/2014,AGENCY NURSE - QUALIFIED,Integrated Care,MAYDAY HEALTHCARE PLC,0000297043,535.73,
Department of Health,East Sussex Healthcare NHS Trust,14/05/2014,AGENCY NURSE - QUALIFIED,Integrated Care,MAYDAY HEALTHCARE PLC,0000297044,1154.03,
Department of Health,East Sussex Healthcare NHS Trust,14/05/2014,AGENCY NURSE - QUALIFIED,Integrated Care,MAYDAY HEALTHCARE PLC,0000297045,535.73,
Department of Health,East Sussex Healthcare NHS Trust,14/05/2014,AGENCY NURSE - QUALIFIED,Integrated Care,MAYDAY HEALTHCARE PLC,0000297046,535.73,
Department of Health,East Sussex Healthcare NHS Trust,14/05/2014,AGENCY NURSE - QUALIFIED,Integrated Care,MAYDAY HEALTHCARE PLC,0000297047,1071.46,
Department of Health,East Sussex Healthcare NHS Trust,14/05/2014,AGENCY NURSE - QUALIFIED,Integrated Care,MAYDAY HEALTHCARE PLC,0000297048,572.03,
Department of Health,East Sussex Healthcare NHS Trust,14/05/2014,AGENCY NURSE - QUALIFIED,Integrated Care,MAYDAY HEALTHCARE PLC,0000297049,506.75,
Department of Health,East Sussex Healthcare NHS Trust,14/05/2014,AGENCY NURSE - QUALIFIED,Integrated Care,MAYDAY HEALTHCARE PLC,0000297050,582.00,
Department of Health,East Sussex Healthcare NHS Trust,14/05/2014,AGENCY NURSE - QUALIFIED,Integrated Care,MAYDAY HEALTHCARE PLC,0000297051,559.15,
Department of Health,East Sussex Healthcare NHS Trust,14/05/2014,AGENCY SHO,Integrated Care,THE ACCIDENT & EMERGENCY AGENCY LTD,0000297064,768.97,
Department of Health,East Sussex Healthcare NHS Trust,14/05/2014,AGENCY SPECIALIST REG,Integrated Care,ATHONA LIMITED,0000297065,559.90,
Department of Health,East Sussex Healthcare NHS Trust,14/05/2014,AGENCY ADMIN & CLERICAL,Corporate Services,VENN GROUP LTD,0000297066,2292.66,
Department of Health,East Sussex Healthcare NHS Trust,14/05/2014,AGENCY ADMIN & CLERICAL,Corporate Services,VENN GROUP LTD,0000297067,1399.54,
Department of Health,East Sussex Healthcare NHS Trust,14/05/2014,AGENCY STAFF GRADE,Integrated Care,INTERACT MEDICAL,0000297134,-4935.76,
Department of Health,East Sussex Healthcare NHS Trust,14/05/2014,AGENCY SHO,Integrated Care,MEDACS HEALTHCARE SERVICES LTD,0000297136,2840.04,
Department of Health,East Sussex Healthcare NHS Trust,14/05/2014,AGENCY CONSULTANT,Integrated Care,MEDACS HEALTHCARE SERVICES LTD,0000297141,3990.00,
Department of Health,East Sussex Healthcare NHS Trust,14/05/2014,AGENCY ADMIN & CLERICAL,Corporate Services,VENN GROUP LTD,0000297142,2292.66,
Department of Health,East Sussex Healthcare NHS Trust,14/05/2014,AGENCY ADMIN & CLERICAL,Corporate Services,VENN GROUP LTD,0000297143,1399.54,
Department of Health,East Sussex Healthcare NHS Trust,14/05/2014,AGENCY CONSULTANT,Integrated Care,INTERACT MEDICAL,0000297144,7316.40,
Department of Health,East Sussex Healthcare NHS Trust,14/05/2014,AGENCY ADMIN & CLERICAL,Corporate Services,CY EXECUTIVE RESOURCING LTD,0000297155,2832.00,
Department of Health,East Sussex Healthcare NHS Trust,14/05/2014,AGENCY SPECIALIST REG,Integrated Care,MYLOCUM LTD,0000297178,2604.00,
Department of Health,East Sussex Healthcare NHS Trust,14/05/2014,AGENCY RADIOGRAPHY STAFF,Integrated Care,RIG MEDICAL RECRUIT LTD,0000297184,957.60,
Department of Health,East Sussex Healthcare NHS Trust,14/05/2014,AGENCY RADIOGRAPHY STAFF,Integrated Care,RIG MEDICAL RECRUIT LTD,0000297185,1328.40,
Department of Health,East Sussex Healthcare NHS Trust,14/05/2014,AGENCY RADIOGRAPHY STAFF,Integrated Care,RIG LOCUMS LIMITED,0000297186,3198.00,
Department of Health,East Sussex Healthcare NHS Trust,14/05/2014,CONTRACT ENGINEERING MAINT,Commercial,BOOKER & BEST LIMITED,0000363833,750.98,
Department of Health,East Sussex Healthcare NHS Trust,14/05/2014,CONT.MAIN-MED & SURG EQUIP,Integrated Care,PHILIPS MEDICAL SYSTEMS UK LTD,0000364008,19152.00,
Department of Health,East Sussex Healthcare NHS Trust,14/05/2014,VITECH ( INTEGRATED),Integrated Care,BIOMERIEUX UK LTD,0000364013,1576.32,
Department of Health,East Sussex Healthcare NHS Trust,14/05/2014,ENGINEERING MATERIALS,Commercial,RUBAX LIFTS LTD,0000364024,10.67,
Department of Health,East Sussex Healthcare NHS Trust,14/05/2014,CONTRACT ENGINEERING MAINT,Commercial,RUBAX LIFTS LTD,0000364024,288.00,
Department of Health,East Sussex Healthcare NHS Trust,14/05/2014,CONTRACT ENGINEERING MAINT,Commercial,RUBAX LIFTS LTD,0000364024,42.67,
Department of Health,East Sussex Healthcare NHS Trust,14/05/2014,CONTRACT ENGINEERING MAINT,Commercial,RUBAX LIFTS LTD,0000364024,32.00,
Department of Health,East Sussex Healthcare NHS Trust,14/05/2014,CONTRACT ENGINEERING MAINT,Commercial,RUBAX LIFTS LTD,0000364024,32.00,
Department of Health,East Sussex Healthcare NHS Trust,14/05/2014,CONTRACT ENGINEERING MAINT,Commercial,RUBAX LIFTS LTD,0000364024,10.67,
Department of Health,East Sussex Healthcare NHS Trust,14/05/2014,CONTRACT ENGINEERING MAINT,Commercial,RUBAX LIFTS LTD,0000364024,330.67,
Department of Health,East Sussex Healthcare NHS Trust,14/05/2014,CONTRACT ENGINEERING MAINT,Commercial,RUBAX LIFTS LTD,0000364024,96.00,
Department of Health,East Sussex Healthcare NHS Trust,14/05/2014,SC-CONQUEST UNIT WORKS,Commercial,SPIRAX SARCO LTD,0000364045,890.78,
Department of Health,East Sussex Healthcare NHS Trust,14/05/2014,SYSMEX,Integrated Care,SYSMEX UK LTD,0000364059,45150.88,
Department of Health,East Sussex Healthcare NHS Trust,14/05/2014,MEDRAD,Integrated Care,MEDRAD UK LTD,0000364061,2964.00,
Department of Health,East Sussex Healthcare NHS Trust,14/05/2014,CAPITAL EXPENDITURE,Other Central,VERNACARE LTD,0000364064,3154.00,
Department of Health,East Sussex Healthcare NHS Trust,14/05/2014,CONTRACT ENGINEERING MAINT,Commercial,IMAGE CONTRACT FLOORING LTD,0000364068,1000.00,
Department of Health,East Sussex Healthcare NHS Trust,14/05/2014,ENGINEER CONTRACT - REPAIR,Commercial,RUBAX LIFTS LTD,0000364080,1869.15,
Department of Health,East Sussex Healthcare NHS Trust,14/05/2014,ENGINEERING MATERIALS,Commercial,RUBAX LIFTS LTD,0000364096,10.67,
Department of Health,East Sussex Healthcare NHS Trust,14/05/2014,CONTRACT ENGINEERING MAINT,Commercial,RUBAX LIFTS LTD,0000364096,288.00,
Department of Health,East Sussex Healthcare NHS Trust,14/05/2014,CONTRACT ENGINEERING MAINT,Commercial,RUBAX LIFTS LTD,0000364096,42.67,
Department of Health,East Sussex Healthcare NHS Trust,14/05/2014,CONTRACT ENGINEERING MAINT,Commercial,RUBAX LIFTS LTD,0000364096,32.00,
Department of Health,East Sussex Healthcare NHS Trust,14/05/2014,CONTRACT ENGINEERING MAINT,Commercial,RUBAX LIFTS LTD,0000364096,32.00,
Department of Health,East Sussex Healthcare NHS Trust,14/05/2014,CONTRACT ENGINEERING MAINT,Commercial,RUBAX LIFTS LTD,0000364096,10.67,
Department of Health,East Sussex Healthcare NHS Trust,14/05/2014,CONTRACT ENGINEERING MAINT,Commercial,RUBAX LIFTS LTD,0000364096,330.67,
Department of Health,East Sussex Healthcare NHS Trust,14/05/2014,CONTRACT ENGINEERING MAINT,Commercial,RUBAX LIFTS LTD,0000364096,96.00,
Department of Health,East Sussex Healthcare NHS Trust,14/05/2014,CONTRACT ENGINEERING MAINT,Commercial,BENDER UK LTD,0000364097,2201.71,
Department of Health,East Sussex Healthcare NHS Trust,14/05/2014,POSTAGE - MAINTENANCE STOCK,Commercial,B & B SLUICING SOLUTIONS,0000364102,12.00,
Department of Health,East Sussex Healthcare NHS Trust,14/05/2014,SC-CONQUEST UNIT WORKS,Commercial,B & B SLUICING SOLUTIONS,0000364102,1494.00,
Department of Health,East Sussex Healthcare NHS Trust,14/05/2014,ACOUSTIC METROLOGY,Planned Care,ACOUSTIC METROLOGY LTD,0000364106,655.76,
Department of Health,East Sussex Healthcare NHS Trust,14/05/2014,CAPITAL EXPENDITURE,Other Central,PD HARRIS LTD (ALAN HARRIS),0000364114,9078.71,
Department of Health,East Sussex Healthcare NHS Trust,14/05/2014,CAPITAL EXPENDITURE,Other Central,PD HARRIS LTD (ALAN HARRIS),0000364115,4197.64,
Department of Health,East Sussex Healthcare NHS Trust,14/05/2014,CONTRACT ENGINEERING MAINT,Commercial,PHS COMPLIANCE,0000364179,753.10,
Department of Health,East Sussex Healthcare NHS Trust,14/05/2014,CAPITAL EXPENDITURE,Other Central,AGGREKO UK LTD,0000364197,2910.49,
Department of Health,East Sussex Healthcare NHS Trust,14/05/2014,CONTRACT ENGINEERING MAINT,Commercial,QUIREPACE LTD,0000624120,1141.17,
Department of Health,East Sussex Healthcare NHS Trust,14/05/2014,CONT.MAIN-MED & SURG EQUIP,Integrated Care,CARL ZEISS LTD,0000624142,3663.00,
Department of Health,East Sussex Healthcare NHS Trust,14/05/2014,M & S EQUIP REPAIR MATERIALS,Integrated Care,THOMAS DOOR & WINDOW CONTROLS,0000624159,1850.00,
Department of Health,East Sussex Healthcare NHS Trust,14/05/2014,VITECH ( INTEGRATED),Integrated Care,BIOMERIEUX UK LTD,0000624184,11851.63,
Department of Health,East Sussex Healthcare NHS Trust,14/05/2014,VITECH ( INTEGRATED),Integrated Care,BIOMERIEUX UK LTD,0000624185,1891.58,
Department of Health,East Sussex Healthcare NHS Trust,14/05/2014,CONTRACT ENGINEERING MAINT,Commercial,SIEMENS BUILDING TECHNOLOGIES LTD,0000624217,2324.50,
Department of Health,East Sussex Healthcare NHS Trust,14/05/2014,CAPITAL EXPENDITURE,Other Central,KING BROTHERS SOUTHERN LIMITED,0000624221,1953.60,
Department of Health,East Sussex Healthcare NHS Trust,14/05/2014,CONTRACT ENGINEERING MAINT,Commercial,PROECONOMY LTD,0000624224,5300.00,
Department of Health,East Sussex Healthcare NHS Trust,14/05/2014,ENGINEERING MATERIALS,Commercial,CAMFIL FARR,0000624247,782.33,
Department of Health,East Sussex Healthcare NHS Trust,14/05/2014,CONT.MAIN-MED & SURG EQUIP,Integrated Care,DEVON MEDICAL EQUIPMENT LTD,0000624259,15334.00,
Department of Health,East Sussex Healthcare NHS Trust,14/05/2014,MAINT-GE MEDICAL SY ULTRASOUND,Integrated Care,ELEKTRON TECHNOLOGY UK LTD,0000624279,2440.00,
Department of Health,East Sussex Healthcare NHS Trust,14/05/2014,PATIENTS APPLIANCES - OTHER,Integrated Care,KENWARD ORTHOPAEDICS LTD,0000757861,564.05,
Department of Health,East Sussex Healthcare NHS Trust,14/05/2014,PATS APPL - FOOTWARE,Integrated Care,KENWARD ORTHOPAEDICS LTD,0000757902,520.28,
Department of Health,East Sussex Healthcare NHS Trust,14/05/2014,PATS APPL - FOOTWARE,Integrated Care,KENWARD ORTHOPAEDICS LTD,0000757945,492.39,
Department of Health,East Sussex Healthcare NHS Trust,14/05/2014,STOCK-ASCRIBE CONQUEST,Pharmacy Stock,UNIDRUG DISTRIBUTION GROUP LTD,0001229440,2669.60,
Department of Health,East Sussex Healthcare NHS Trust,14/05/2014,STOCK-ASCRIBE CONQUEST,Pharmacy Stock,PHOENIX HEALTHCARE DISTRIBUTION LTD,0001229490,557.28,
Department of Health,East Sussex Healthcare NHS Trust,14/05/2014,STOCK-ASCRIBE CONQUEST,Pharmacy Stock,BAXTER HEALTHCARE (BERKSHIRE)LTD,0001229491,3620.28,
Department of Health,East Sussex Healthcare NHS Trust,14/05/2014,STOCK-ASCRIBE CONQUEST,Pharmacy Stock,BAXTER HEALTHCARE (BERKSHIRE)LTD,0001229496,682.08,
Department of Health,East Sussex Healthcare NHS Trust,14/05/2014,STOCK-ASCRIBE CONQUEST,Pharmacy Stock,ALCURA UK LTD,0001229517,704.28,
Department of Health,East Sussex Healthcare NHS Trust,14/05/2014,STOCK-ASCRIBE CONQUEST,Pharmacy Stock,ROCHE PRODUCTS LTD,0001229543,3617.28,
Department of Health,East Sussex Healthcare NHS Trust,14/05/2014,STOCK-ASCRIBE CONQUEST,Pharmacy Stock,GE HEALTHCARE LTD,0001229545,1254.53,
Department of Health,East Sussex Healthcare NHS Trust,14/05/2014,STOCK-ASCRIBE CONQUEST,Pharmacy Stock,GILEAD SCIENCES LTD,0001229546,5801.40,
Department of Health,East Sussex Healthcare NHS Trust,14/05/2014,STOCK-ASCRIBE CONQUEST,Pharmacy Stock,CELGENE LTD,0001229548,12451.68,
Department of Health,East Sussex Healthcare NHS Trust,14/05/2014,STOCK-ASCRIBE CONQUEST,Pharmacy Stock,IDIS LTD,0001229549,1285.56,
Department of Health,East Sussex Healthcare NHS Trust,14/05/2014,STOCK-ASCRIBE CONQUEST,Pharmacy Stock,IDIS LTD,0001229553,2032.80,
Department of Health,East Sussex Healthcare NHS Trust,14/05/2014,STOCK-ASCRIBE CONQUEST,Pharmacy Stock,HEALTHCARE PRODUCT SERVICES LTD,0001229554,2599.20,
Department of Health,East Sussex Healthcare NHS Trust,14/05/2014,STOCK-ASCRIBE CONQUEST,Pharmacy Stock,HAMELN PHARMACEUTICALS LTD,0001229557,540.30,
Department of Health,East Sussex Healthcare NHS Trust,14/05/2014,STOCK-ASCRIBE CONQUEST,Pharmacy Stock,GUERBET LABORATORIES,0001229560,612.00,
Department of Health,East Sussex Healthcare NHS Trust,14/05/2014,STOCK-ASCRIBE CONQUEST,Pharmacy Stock,NOVARTIS PHARMACEUTICALS UK LTD,0001229562,33585.48,
Department of Health,East Sussex Healthcare NHS Trust,14/05/2014,STOCK-ASCRIBE CONQUEST,Pharmacy Stock,ROCHE PRODUCTS LTD,0001229565,19907.70,
Department of Health,East Sussex Healthcare NHS Trust,14/05/2014,STOCK-ASCRIBE CONQUEST,Pharmacy Stock,CHIESI  LTD,0001229567,1500.00,
Department of Health,East Sussex Healthcare NHS Trust,14/05/2014,STOCK-ASCRIBE CONQUEST,Pharmacy Stock,BUPA HOME HEALTHCARE,0001229572,677.36,
Department of Health,East Sussex Healthcare NHS Trust,14/05/2014,STOCK-ASCRIBE CONQUEST,Pharmacy Stock,BUPA HOME HEALTHCARE,0001229573,677.36,
Department of Health,East Sussex Healthcare NHS Trust,14/05/2014,STOCK-ASCRIBE CONQUEST,Pharmacy Stock,BUPA HOME HEALTHCARE,0001229574,4294.00,
Department of Health,East Sussex Healthcare NHS Trust,14/05/2014,STOCK-ASCRIBE CONQUEST,Pharmacy Stock,ADVANCED MEDICAL SOLUTION (PLYMOUTH) LTD,0001229646,562.25,
Department of Health,East Sussex Healthcare NHS Trust,14/05/2014,STOCK-ASCRIBE CONQUEST,Pharmacy Stock,BRACCO UK LTD,0001229660,714.00,
Department of Health,East Sussex Healthcare NHS Trust,14/05/2014,STOCK-ASCRIBE CONQUEST,Pharmacy Stock,HOSPIRA ASEPTIC SERVICES LIMITED,0001229687,5040.43,
Department of Health,East Sussex Healthcare NHS Trust,14/05/2014,STOCK-ASCRIBE CONQUEST,Pharmacy Stock,BAYER PLC,0001229693,52440.00,
Department of Health,East Sussex Healthcare NHS Trust,14/05/2014,STOCK-ASCRIBE CONQUEST,Pharmacy Stock,CELGENE LTD,0001229701,2889.00,
Department of Health,East Sussex Healthcare NHS Trust,14/05/2014,STOCK-ASCRIBE CONQUEST,Pharmacy Stock,IDIS LTD,0001229702,763.08,
Department of Health,East Sussex Healthcare NHS Trust,14/05/2014,STOCK-ASCRIBE CONQUEST,Pharmacy Stock,FRESENIUS LTD,0001229703,620.71,
Department of Health,East Sussex Healthcare NHS Trust,14/05/2014,STOCK-ASCRIBE CONQUEST,Pharmacy Stock,ELI LILLY & CO LTD,0001229705,576.00,
Department of Health,East Sussex Healthcare NHS Trust,14/05/2014,STOCK-ASCRIBE CONQUEST,Pharmacy Stock,ELI LILLY & CO LTD,0001229706,6374.59,
Department of Health,East Sussex Healthcare NHS Trust,14/05/2014,STOCK-ASCRIBE CONQUEST,Pharmacy Stock,GUERBET LABORATORIES,0001229709,612.00,
Department of Health,East Sussex Healthcare NHS Trust,14/05/2014,STOCK-ASCRIBE CONQUEST,Pharmacy Stock,AMGEN LTD,0001229710,5808.00,
Department of Health,East Sussex Healthcare NHS Trust,14/05/2014,STOCK-ASCRIBE CONQUEST,Pharmacy Stock,PHARMARAMA INTERNATIONAL LIMITED,0001229712,637.58,
Department of Health,East Sussex Healthcare NHS Trust,14/05/2014,STOCK-ASCRIBE CONQUEST,Pharmacy Stock,OXFORD HEALTH NHS FOUNDATION TRUST,0001229713,523.50,
Department of Health,East Sussex Healthcare NHS Trust,14/05/2014,STOCK-ASCRIBE CONQUEST,Pharmacy Stock,ABBOTT LABORATORIES LTD,0001229716,3559.68,
Department of Health,East Sussex Healthcare NHS Trust,14/05/2014,STOCK-ASCRIBE CONQUEST,Pharmacy Stock,ABBOTT LABORATORIES LTD,0001229717,3355.20,
Department of Health,East Sussex Healthcare NHS Trust,14/05/2014,STOCK-ASCRIBE CONQUEST,Pharmacy Stock,ALLIANCE HEALTHCARE (DISTRIBUTION) LTD,0001229732,1192.05,
Department of Health,East Sussex Healthcare NHS Trust,14/05/2014,STOCK-ASCRIBE CONQUEST,Pharmacy Stock,UNIDRUG DISTRIBUTION GROUP LTD,0001229733,1406.62,
Department of Health,East Sussex Healthcare NHS Trust,14/05/2014,STOCK-ASCRIBE CONQUEST,Pharmacy Stock,JANSSEN-CILAG LTD,0001229741,2744.57,
Department of Health,East Sussex Healthcare NHS Trust,14/05/2014,STOCK-ASCRIBE CONQUEST,Pharmacy Stock,ALLIANCE HEALTHCARE (DISTRIBUTION) LTD,0001229774,15552.25,
Department of Health,East Sussex Healthcare NHS Trust,14/05/2014,SUSPENSE(ACCRUALS NOT ACCRUED),Corporate Services,ARVAL PHH LTD,0001415776,-1756.40,
Department of Health,East Sussex Healthcare NHS Trust,14/05/2014,SUSPENSE(ACCRUALS NOT ACCRUED),Corporate Services,ARVAL PHH LTD,0001415777,-2104.08,
Department of Health,East Sussex Healthcare NHS Trust,14/05/2014,SUSPENSE(ACCRUALS NOT ACCRUED),Corporate Services,ARVAL PHH LTD,0001415778,-2139.30,
Department of Health,East Sussex Healthcare NHS Trust,14/05/2014,CONTRACT MAINT-OFFICE EQUIP,Commercial,ZURICH MUNICIPAL,0001424517,177.19,
Department of Health,East Sussex Healthcare NHS Trust,14/05/2014,CONTRACT ENGINEERING MAINT,Commercial,ZURICH MUNICIPAL,0001424517,1943.57,
Department of Health,East Sussex Healthcare NHS Trust,14/05/2014,CONTRACT ENGINEERING MAINT,Commercial,ZURICH MUNICIPAL,0001424517,332.24,
Department of Health,East Sussex Healthcare NHS Trust,14/05/2014,ENGINEERING INSURANCE,Corporate Services,ZURICH MUNICIPAL,0001424517,27537.11,
Department of Health,East Sussex Healthcare NHS Trust,14/05/2014,GAS,Commercial,CORONA ENERGY,0001424527,62526.41,
Department of Health,East Sussex Healthcare NHS Trust,14/05/2014,GAS,Commercial,CORONA ENERGY,0001424528,63224.92,
Department of Health,East Sussex Healthcare NHS Trust,14/05/2014,GAS,Commercial,CORONA ENERGY,0001424556,72549.28,
Department of Health,East Sussex Healthcare NHS Trust,14/05/2014,GAS,Commercial,CORONA ENERGY,0001424561,20782.45,
Department of Health,East Sussex Healthcare NHS Trust,14/05/2014,GAS,Commercial,CORONA ENERGY,0001424562,113253.68,
Department of Health,East Sussex Healthcare NHS Trust,14/05/2014,GAS,Commercial,CORONA ENERGY,0001424575,-28424.71,
Department of Health,East Sussex Healthcare NHS Trust,14/05/2014,GAS,Commercial,CORONA ENERGY,0001424576,-40942.06,
Department of Health,East Sussex Healthcare NHS Trust,14/05/2014,GAS,Commercial,CORONA ENERGY,0001424577,-54238.64,
Department of Health,East Sussex Healthcare NHS Trust,14/05/2014,GAS,Commercial,CORONA ENERGY,0001424578,-67661.88,
Department of Health,East Sussex Healthcare NHS Trust,14/05/2014,GAS,Commercial,CORONA ENERGY,0001424579,-68602.62,
Department of Health,East Sussex Healthcare NHS Trust,14/05/2014,GAS,Commercial,CORONA ENERGY,0001424580,-57399.01,
Department of Health,East Sussex Healthcare NHS Trust,14/05/2014,GAS,Commercial,CORONA ENERGY,0001424582,-72451.28,
Department of Health,East Sussex Healthcare NHS Trust,14/05/2014,GAS,Commercial,CORONA ENERGY,0001424584,-55649.45,
Department of Health,East Sussex Healthcare NHS Trust,14/05/2014,GAS,Commercial,CORONA ENERGY,0001424585,-39544.34,
Department of Health,East Sussex Healthcare NHS Trust,14/05/2014,GAS,Commercial,CORONA ENERGY,0001424586,-28249.46,
Department of Health,East Sussex Healthcare NHS Trust,14/05/2014,GAS,Commercial,CORONA ENERGY,0001424587,-22844.90,
Department of Health,East Sussex Healthcare NHS Trust,14/05/2014,GAS,Commercial,CORONA ENERGY,0001424588,-21210.62,
Department of Health,East Sussex Healthcare NHS Trust,14/05/2014,GAS,Commercial,CORONA ENERGY,0001424589,-26167.82,
Department of Health,East Sussex Healthcare NHS Trust,14/05/2014,GAS,Commercial,CORONA ENERGY,0001424590,-42695.46,
Department of Health,East Sussex Healthcare NHS Trust,14/05/2014,GAS,Commercial,CORONA ENERGY,0001424591,-56424.07,
Department of Health,East Sussex Healthcare NHS Trust,14/05/2014,GAS,Commercial,CORONA ENERGY,0001424592,-65803.39,
Department of Health,East Sussex Healthcare NHS Trust,14/05/2014,GAS,Commercial,CORONA ENERGY,0001424593,-74293.12,
Department of Health,East Sussex Healthcare NHS Trust,14/05/2014,GAS,Commercial,CORONA ENERGY,0001424594,-78419.74,
Department of Health,East Sussex Healthcare NHS Trust,14/05/2014,GAS,Commercial,CORONA ENERGY,0001424595,-60518.89,
Department of Health,East Sussex Healthcare NHS Trust,14/05/2014,GAS,Commercial,CORONA ENERGY,0001424596,-46107.62,
Department of Health,East Sussex Healthcare NHS Trust,14/05/2014,GAS,Commercial,CORONA ENERGY,0001424597,-32171.27,
Department of Health,East Sussex Healthcare NHS Trust,14/05/2014,GAS,Commercial,CORONA ENERGY,0001424598,-22161.28,
Department of Health,East Sussex Healthcare NHS Trust,14/05/2014,GAS,Commercial,CORONA ENERGY,0001424599,-21824.12,
Department of Health,East Sussex Healthcare NHS Trust,14/05/2014,GAS,Commercial,CORONA ENERGY,0001424638,4958.14,
Department of Health,East Sussex Healthcare NHS Trust,14/05/2014,PROVISIONS,Integrated Care,THE JOLLY CHEF,0001424824,550.00,
Department of Health,East Sussex Healthcare NHS Trust,14/05/2014,LECTURE FEES,Corporate Services,MIAD UK LTD,0001424847,1800.00,
Department of Health,East Sussex Healthcare NHS Trust,14/05/2014,EAR MOULD MANUFACTURE,Integrated Care,MERCURY HEARING,0001424850,2044.02,
Department of Health,East Sussex Healthcare NHS Trust,14/05/2014,EAR MOULD MANUFACTURE,Integrated Care,MERCURY HEARING,0001424851,1839.36,
Department of Health,East Sussex Healthcare NHS Trust,14/05/2014,EAR MOULD MANUFACTURE,Integrated Care,MERCURY HEARING,0001424852,2349.54,
Department of Health,East Sussex Healthcare NHS Trust,14/05/2014,EAR MOULD MANUFACTURE,Integrated Care,MERCURY HEARING,0001424853,1220.64,
Department of Health,East Sussex Healthcare NHS Trust,14/05/2014,EAR MOULD MANUFACTURE,Integrated Care,MERCURY HEARING,0001424854,1261.62,
Department of Health,East Sussex Healthcare NHS Trust,14/05/2014,EAR MOULD MANUFACTURE,Integrated Care,MERCURY HEARING,0001424855,1466.52,
Department of Health,East Sussex Healthcare NHS Trust,14/05/2014,LEGAL FEES(PERSONNEL ISSUES),Corporate Services,CAPSTICKS,0001424880,2678.75,
Department of Health,East Sussex Healthcare NHS Trust,14/05/2014,LEGAL FEES(PERSONNEL ISSUES),Corporate Services,CAPSTICKS,0001424881,1130.60,
Department of Health,East Sussex Healthcare NHS Trust,14/05/2014,PROFESSIONAL FEES,Commercial,JOHN HARRATT,0001424885,1425.00,
Department of Health,East Sussex Healthcare NHS Trust,14/05/2014,ADVERTISING COSTS-NON STAFF,Integrated Care,YES PROMO PRODUCTS LTD,0001424889,722.50,
Department of Health,East Sussex Healthcare NHS Trust,14/05/2014,LECTURE FEES,Corporate Services,DR MARY SEABROOK,0001424914,500.00,
Department of Health,East Sussex Healthcare NHS Trust,14/05/2014,PROFESSIONAL FEES,Integrated Care,M J RODDIS ASSOCIATES LTD,0001424915,2225.70,
Department of Health,East Sussex Healthcare NHS Trust,14/05/2014,PATS.APPL.-DENTAL,Integrated Care,SOUTH EASTERN ORTHODONTICS,0001424926,2916.80,
Department of Health,East Sussex Healthcare NHS Trust,14/05/2014,FUEL,Integrated Care,ALLSTAR BUSINESS SOLUTIONS LTD,0001424948,65.64,
Department of Health,East Sussex Healthcare NHS Trust,14/05/2014,FUEL,Commercial,ALLSTAR BUSINESS SOLUTIONS LTD,0001424948,512.00,
Department of Health,East Sussex Healthcare NHS Trust,14/05/2014,FUEL,Commercial,ALLSTAR BUSINESS SOLUTIONS LTD,0001424948,139.04,
Department of Health,East Sussex Healthcare NHS Trust,14/05/2014,FUEL,Commercial,ALLSTAR BUSINESS SOLUTIONS LTD,0001424948,204.30,
Department of Health,East Sussex Healthcare NHS Trust,14/05/2014,FUEL,Integrated Care,ALLSTAR BUSINESS SOLUTIONS LTD,0001424951,91.04,
Department of Health,East Sussex Healthcare NHS Trust,14/05/2014,FUEL,Integrated Care,ALLSTAR BUSINESS SOLUTIONS LTD,0001424951,115.25,
Department of Health,East Sussex Healthcare NHS Trust,14/05/2014,FUEL,Commercial,ALLSTAR BUSINESS SOLUTIONS LTD,0001424951,80.50,
Department of Health,East Sussex Healthcare NHS Trust,14/05/2014,FUEL,Commercial,ALLSTAR BUSINESS SOLUTIONS LTD,0001424951,58.37,
Department of Health,East Sussex Healthcare NHS Trust,14/05/2014,FUEL,Commercial,ALLSTAR BUSINESS SOLUTIONS LTD,0001424951,95.57,
Department of Health,East Sussex Healthcare NHS Trust,14/05/2014,FUEL,Commercial,ALLSTAR BUSINESS SOLUTIONS LTD,0001424951,242.75,
Department of Health,East Sussex Healthcare NHS Trust,14/05/2014,FUEL,Commercial,ALLSTAR BUSINESS SOLUTIONS LTD,0001424951,116.87,
Department of Health,East Sussex Healthcare NHS Trust,14/05/2014,FUEL,Commercial,ALLSTAR BUSINESS SOLUTIONS LTD,0001424951,212.83,
Department of Health,East Sussex Healthcare NHS Trust,14/05/2014,FUEL,Commercial,ALLSTAR BUSINESS SOLUTIONS LTD,0001424951,265.98,
Department of Health,East Sussex Healthcare NHS Trust,14/05/2014,HIRE OF TRANSPORT,Commercial,I E NANJI,0001424955,690.00,
Department of Health,East Sussex Healthcare NHS Trust,14/05/2014,REGISTRATION FEES CRECHE,Corporate Services,EDENRED,0001424987,122.22,
Department of Health,East Sussex Healthcare NHS Trust,14/05/2014,REGISTRATION FEES CRECHE,Corporate Services,EDENRED,0001424987,122.21,
Department of Health,East Sussex Healthcare NHS Trust,14/05/2014,TRAINING COURSE FEES-OTHER,Corporate Services,CHILD GROWTH FOUNDATION,0001424989,677.00,
Department of Health,East Sussex Healthcare NHS Trust,14/05/2014,NHSLA-CNST INSURANCE,Corporate Services,NHS LITIGATION AUTHORITY,0001425240,786797.30,
Department of Health,East Sussex Healthcare NHS Trust,14/05/2014,OTHER INSURANCE NOT PROP/VHCL,Corporate Services,NHS LITIGATION AUTHORITY,0001425240,42213.10,
Department of Health,East Sussex Healthcare NHS Trust,14/05/2014,TRAINING COURSE FEES-OTHER,Corporate Services,BPP PROFESSIONAL EDUCATION,0001534789,1004.77,
Department of Health,East Sussex Healthcare NHS Trust,14/05/2014,COURIER SERVICES,Integrated Care,STREETWISE COURIERS SUSSEX LTD,0001534931,544.91,
Department of Health,East Sussex Healthcare NHS Trust,14/05/2014,"BOOKS, JOURNALS & SUBCRIPTIONS",Corporate Services,HFMA KENT SURREY & SUSSEX BRANCH,0001534950,1108.80,
Department of Health,East Sussex Healthcare NHS Trust,14/05/2014,DRUGS-OTHER,Integrated Care,BOOTS THE CHEMISTS,0001535005,1448.74,
Department of Health,East Sussex Healthcare NHS Trust,14/05/2014,DRUGS-OTHER,Integrated Care,BOOTS THE CHEMISTS,0001535006,1078.37,
Department of Health,East Sussex Healthcare NHS Trust,14/05/2014,PROFESSIONAL FEES,Integrated Care,LINDA MURRAY,0001535007,2160.00,
Department of Health,East Sussex Healthcare NHS Trust,14/05/2014,CONTINENCE PRODUCTS,Integrated Care,PAUL HARTMANN LTD,0001535012,7289.46,
Department of Health,East Sussex Healthcare NHS Trust,14/05/2014,TESTS SENT TO NON NHS LABS,Integrated Care,UNIVERSITY OF BIRMINGHAM,0001535019,834.63,
Department of Health,East Sussex Healthcare NHS Trust,14/05/2014,TESTS SENT TO NON NHS LABS,Integrated Care,UNIVERSITY OF BIRMINGHAM,0001535020,888.48,
Department of Health,East Sussex Healthcare NHS Trust,14/05/2014,ADVERTISING COSTS-NON STAFF,Integrated Care,JOHNSTON PUBLISHING LTD,0001535052,750.00,
Department of Health,East Sussex Healthcare NHS Trust,14/05/2014,LEASE CARS,Cross Site,ARVAL PHH LTD,0001535060,518.50,
Department of Health,East Sussex Healthcare NHS Trust,14/05/2014,CONTRACTED-OUT H.CARE SERVICES,Integrated Care,INHEALTH LIMITED,0001535063,2375.00,
Department of Health,East Sussex Healthcare NHS Trust,14/05/2014,CONTRACTED-OUT H.CARE SERVICES,Integrated Care,INHEALTH LIMITED,0001535064,2375.00,
Department of Health,East Sussex Healthcare NHS Trust,14/05/2014,CONTRACTED-OUT H.CARE SERVICES,Integrated Care,INHEALTH LIMITED,0001535065,2375.00,
Department of Health,East Sussex Healthcare NHS Trust,14/05/2014,CONTRACTED-OUT H.CARE SERVICES,Integrated Care,INHEALTH LIMITED,0001535066,2375.00,
Department of Health,East Sussex Healthcare NHS Trust,14/05/2014,CONTRACTED-OUT H.CARE SERVICES,Integrated Care,INHEALTH LIMITED,0001535067,2375.00,
Department of Health,East Sussex Healthcare NHS Trust,14/05/2014,CONTRACTED-OUT H.CARE SERVICES,Integrated Care,INHEALTH LIMITED,0001535068,2375.00,
Department of Health,East Sussex Healthcare NHS Trust,14/05/2014,CONTRACTED-OUT H.CARE SERVICES,Integrated Care,INHEALTH LIMITED,0001535069,2375.00,
Department of Health,East Sussex Healthcare NHS Trust,14/05/2014,CONTRACTED-OUT H.CARE SERVICES,Integrated Care,INHEALTH LIMITED,0001535070,14250.00,
Department of Health,East Sussex Healthcare NHS Trust,14/05/2014,CONTRACTED-OUT H.CARE SERVICES,Integrated Care,INHEALTH LIMITED,0001535071,16625.00,
Department of Health,East Sussex Healthcare NHS Trust,14/05/2014,AGENCY CONSULTANT,Corporate Services,HEALTH MANAGEMENT LTD,0001535082,2450.00,
Department of Health,East Sussex Healthcare NHS Trust,14/05/2014,SAMPLE TRANSPORT COST,Integrated Care,ARIEL DYNAMIC CARRIERS,0001535084,555.00,
Department of Health,East Sussex Healthcare NHS Trust,14/05/2014,GENERAL PRACTITIONERS,Integrated Care,SAXONBURY HOUSE MEDICAL GROUP,0001535093,2114.64,
Department of Health,East Sussex Healthcare NHS Trust,14/05/2014,TESTS SENT TO NON NHS LABS,Integrated Care,PREVENTX LIMITED,0001535094,8443.50,
Department of Health,East Sussex Healthcare NHS Trust,14/05/2014,STORAGE - EXTERNAL FACILITIES,Integrated Care,CELLPATH PLC,0001535095,2429.02,
Department of Health,East Sussex Healthcare NHS Trust,14/05/2014,INTERNAL AUDIT,Corporate Services,BDO LLP,0001535098,33951.00,
Department of Health,East Sussex Healthcare NHS Trust,14/05/2014,MEDICAL GAS - VIE RENTAL,Commercial,BOC (MANCHESTER)LTD,0001535123,823.70,
Department of Health,East Sussex Healthcare NHS Trust,14/05/2014,CARDIOLOGY CATHETERS,Integrated Care,BARD LTD,0001535131,984.00,
Department of Health,East Sussex Healthcare NHS Trust,14/05/2014,DRUGS-OTHER,Integrated Care,ALCURA UK LTD,0001535132,61502.08,
Department of Health,East Sussex Healthcare NHS Trust,14/05/2014,COMPUTER MAINT - SOFTWARE,Corporate Services,CAPITA IB SOLUTIONS (UK)LTD,0001535136,4000.00,
Department of Health,East Sussex Healthcare NHS Trust,14/05/2014,TAXI - OTHER,Commercial,EASTBOURNE & COUNTRY TAXIS LTD,0001535283,1663.60,
Department of Health,East Sussex Healthcare NHS Trust,14/05/2014,TAXI - OTHER,Commercial,EASTBOURNE & COUNTRY TAXIS LTD,0001535290,780.00,
Department of Health,East Sussex Healthcare NHS Trust,14/05/2014,BEDDING & LINEN - OTHER,Commercial,MIP (UK) LTD,0001535301,9000.00,
Department of Health,East Sussex Healthcare NHS Trust,14/05/2014,DRUGS-OTHER,Integrated Care,LLOYDS PHARMACY,0001535315,8281.92,
Department of Health,East Sussex Healthcare NHS Trust,14/05/2014,DRUGS-OTHER,Integrated Care,ABBVIE LTD,0001616748,8219.81,
Department of Health,East Sussex Healthcare NHS Trust,14/05/2014,DRUGS-OTHER,Integrated Care,GILEAD SCIENCES LTD,0001616757,5089.73,
Department of Health,East Sussex Healthcare NHS Trust,14/05/2014,OTHER STATIONERY,Integrated Care,PIROTO LABELLING LIMITED,0001616758,564.00,
Department of Health,East Sussex Healthcare NHS Trust,14/05/2014,DRUGS-OTHER,Integrated Care,GILEAD SCIENCES LTD,0001616760,5089.73,
Department of Health,East Sussex Healthcare NHS Trust,14/05/2014,DRUGS-OTHER,Integrated Care,ABBVIE LTD,0001616798,3424.92,
Department of Health,East Sussex Healthcare NHS Trust,14/05/2014,LAB-CONTAINERS/BOTTLES & CAPS,Integrated Care,NEVILLE & MORE LTD,0001616808,1468.80,
Department of Health,East Sussex Healthcare NHS Trust,14/05/2014,CONTRACT-PHARMACY TESTING,Integrated Care,ATP INSTRUMENTATION LTD,0001616814,2908.98,
Department of Health,East Sussex Healthcare NHS Trust,14/05/2014,TELEPHONES-MAINTENANCE,Commercial,MAINTEL EUROPE LIMITED,0001706606,9870.52,
Department of Health,East Sussex Healthcare NHS Trust,14/05/2014,TELEPHONES-RENTAL&CALLS,Commercial,BRITISH TELECOM,0001706610,1674.12,
Department of Health,East Sussex Healthcare NHS Trust,14/05/2014,PHOTOCOPIER HIRE,Integrated Care,RICOH UK LTD,0001706619,333.51,
Department of Health,East Sussex Healthcare NHS Trust,14/05/2014,CONQ SURGICAL SECS,Other Central,RICOH UK LTD,0001706619,175.22,
Department of Health,East Sussex Healthcare NHS Trust,14/05/2014,TELEPHONES-RENTAL&CALLS,Commercial,BRITISH TELECOM,0001706737,906.76,
Department of Health,East Sussex Healthcare NHS Trust,14/05/2014,PROVISIONS,Commercial,ANCHOR CATERING LTD,0001909424,1259.55,
Department of Health,East Sussex Healthcare NHS Trust,14/05/2014,FURNITURE & FITTINGS,Commercial,AUTOBAR UK LIMITED,0001909531,1440.29,
Department of Health,East Sussex Healthcare NHS Trust,14/05/2014,PROVISIONS,Commercial,ANCHOR CATERING LTD,0001909534,780.00,
Department of Health,East Sussex Healthcare NHS Trust,14/05/2014,PROVISIONS,Commercial,BRAEFORGE LTD T/A PENSWORTH DAIRIES,0001909537,1198.28,
Department of Health,East Sussex Healthcare NHS Trust,14/05/2014,PROVISIONS,Commercial,AUTOBAR UK LIMITED,0001909588,586.34,
Department of Health,East Sussex Healthcare NHS Trust,14/05/2014,PROVISIONS,Commercial,3663,0001909707,2384.96,
Department of Health,East Sussex Healthcare NHS Trust,14/05/2014,PROVISIONS,Commercial,3663,0001909711,815.65,
Department of Health,East Sussex Healthcare NHS Trust,14/05/2014,PROVISIONS,Commercial,3663,0001909713,711.31,
Department of Health,East Sussex Healthcare NHS Trust,14/05/2014,PROVISIONS,Commercial,3663,0001909717,506.99,
Department of Health,East Sussex Healthcare NHS Trust,14/05/2014,PROSTHESES-OTHER,Integrated Care,STRYKER UK,0002129435,1638.00,
Department of Health,East Sussex Healthcare NHS Trust,14/05/2014,OESOPHAGEAL (UPPER GI) STENTS,Integrated Care,AQUILANT INTERVENTIONAL,0002129757,918.00,
Department of Health,East Sussex Healthcare NHS Trust,14/05/2014,POSTAGE,Integrated Care,AQUILANT INTERVENTIONAL,0002129757,24.00,
Department of Health,East Sussex Healthcare NHS Trust,14/05/2014,PROSTHESES-HIP,Integrated Care,JOHNSON & JOHNSON MEDICAL LTD,0002130436,11602.00,
Department of Health,East Sussex Healthcare NHS Trust,14/05/2014,PROSTHESES-OTHER,Integrated Care,JOHNSON & JOHNSON MEDICAL LTD,0002130436,494.40,
Department of Health,East Sussex Healthcare NHS Trust,14/05/2014,NATIONAL JOINT REGISTRY LEVY,Integrated Care,JOHNSON & JOHNSON MEDICAL LTD,0002130436,100.04,
Department of Health,East Sussex Healthcare NHS Trust,14/05/2014,PRINTING/PRINTED MATERIALS,Commercial,ROTADEX SYSTEMS LTD,0002130576,738.00,
Department of Health,East Sussex Healthcare NHS Trust,14/05/2014,PROSTHESES-KNEES,Integrated Care,BIOMET UK HEALTHCARE LTD,0002130745,1370.00,
Department of Health,East Sussex Healthcare NHS Trust,14/05/2014,OESOPHAGEAL (UPPER GI) STENTS,Integrated Care,AQUILANT INTERVENTIONAL,0002131095,1836.00,
Department of Health,East Sussex Healthcare NHS Trust,14/05/2014,COLONIC STENTS,Integrated Care,AQUILANT INTERVENTIONAL,0002131095,1188.00,
Department of Health,East Sussex Healthcare NHS Trust,14/05/2014,POSTAGE,Integrated Care,AQUILANT INTERVENTIONAL,0002131095,24.00,
Department of Health,East Sussex Healthcare NHS Trust,14/05/2014,INTERVENTIONAL DISPOSABLES,Integrated Care,AQUILANT INTERVENTIONAL,0002131105,792.00,
Department of Health,East Sussex Healthcare NHS Trust,14/05/2014,POSTAGE,Integrated Care,AQUILANT INTERVENTIONAL,0002131105,24.00,
Department of Health,East Sussex Healthcare NHS Trust,14/05/2014,HARDWARE & CROCKERY,Commercial,DE LAGE LANDEN LEASING LTD,0002131111,4500.00,
Department of Health,East Sussex Healthcare NHS Trust,14/05/2014,M&S GENERAL SUPPLIES-OTHER,Integrated Care,BIOMET UK HEALTHCARE LTD,0002131203,513.60,
Department of Health,East Sussex Healthcare NHS Trust,14/05/2014,TRAINING COURSE FEES-OTHER,Commercial,RICHARD TAYLOR,0002131342,2700.00,
Department of Health,East Sussex Healthcare NHS Trust,14/05/2014,M&S GENERAL SUPPLIES-OTHER,Integrated Care,JOHNSON & JOHNSON MEDICAL LTD,0002131400,188.54,
Department of Health,East Sussex Healthcare NHS Trust,14/05/2014,INTERVENTIONAL DISPOSABLES,Integrated Care,JOHNSON & JOHNSON MEDICAL LTD,0002131400,928.80,
Department of Health,East Sussex Healthcare NHS Trust,14/05/2014,CAPITAL EXPENDITURE,Other Central,PURICORE ENDOSCOPY,0002131833,17839.50,
Department of Health,East Sussex Healthcare NHS Trust,14/05/2014,HAEMAGLOBINOPATHY REAGENTS,Integrated Care,MENARINI DIAGNOSTICS,0002131982,2401.81,
Department of Health,East Sussex Healthcare NHS Trust,14/05/2014,DRUGS-HAEMAPHILIA PRODUCTS,Integrated Care,CSL BEHRING,0002132068,1950.00,
Department of Health,East Sussex Healthcare NHS Trust,14/05/2014,CAPITAL EXPENDITURE,Other Central,KELWAY (UK) LTD,0002132113,1634.14,
Department of Health,East Sussex Healthcare NHS Trust,14/05/2014,CAPITAL EXPENDITURE,Other Central,KELWAY (UK) LTD,0002132115,133360.96,
Department of Health,East Sussex Healthcare NHS Trust,14/05/2014,COMPUTER MAINT - SOFTWARE,Corporate Services,CSC COMPUTER SCIENCES LTD,0002132116,53852.34,
Department of Health,East Sussex Healthcare NHS Trust,14/05/2014,COMPUTER MAINT - SOFTWARE,Corporate Services,CSC COMPUTER SCIENCES LTD,0002132117,86894.64,
Department of Health,East Sussex Healthcare NHS Trust,14/05/2014,LOANER KITS - HIRE CHARGE,Integrated Care,ACUMED LTD,0002132129,360.00,
Department of Health,East Sussex Healthcare NHS Trust,14/05/2014,PROSTHESES-OTHER,Integrated Care,ACUMED LTD,0002132129,201.72,
Department of Health,East Sussex Healthcare NHS Trust,14/05/2014,PROSTHESES-HIP,Integrated Care,JOINT REPLACEMENT INSTRUMENTATION  LTD,0002132195,613.20,
Department of Health,East Sussex Healthcare NHS Trust,14/05/2014,LAB-CONTAINERS/BOTTLES & CAPS,Integrated Care,G & N LABORATORY LTD,0002132281,663.60,
Department of Health,East Sussex Healthcare NHS Trust,14/05/2014,GENERAL LAB. CONSUMABLES,Integrated Care,G & N LABORATORY LTD,0002132281,1609.14,
Department of Health,East Sussex Healthcare NHS Trust,14/05/2014,PURICORE CONSUMABLES,Integrated Care,PURICORE ENDOSCOPY,0002132283,1173.07,
Department of Health,East Sussex Healthcare NHS Trust,14/05/2014,GENERAL LAB. CONSUMABLES,Integrated Care,SIEMENS HEALTHCARE DIAGNOSTICS LTD,0002132322,37.41,
Department of Health,East Sussex Healthcare NHS Trust,14/05/2014,LAB MATERIALS - SIEMENS HEALTH,Integrated Care,SIEMENS HEALTHCARE DIAGNOSTICS LTD,0002132322,874.37,
Department of Health,East Sussex Healthcare NHS Trust,14/05/2014,STAPLING DEVICES,Integrated Care,TPS HEALTHCARE,0002132331,1765.94,
Department of Health,East Sussex Healthcare NHS Trust,14/05/2014,M&S GENERAL SUPPLIES-OTHER,Integrated Care,KIMAL PLC (FOR ORDERS),0002132338,1284.00,
Department of Health,East Sussex Healthcare NHS Trust,14/05/2014,BREAST CARE PROTHESIS,Integrated Care,AMOENA (UK) LTD,0002132343,1227.07,
Department of Health,East Sussex Healthcare NHS Trust,14/05/2014,GENERAL LAB. CONSUMABLES,Integrated Care,R-BIOPHARM RHONE LTD,0002132345,964.80,
Department of Health,East Sussex Healthcare NHS Trust,14/05/2014,GENERAL LAB. CONSUMABLES,Integrated Care,SARSTEDT LTD,0002132347,533.52,
Department of Health,East Sussex Healthcare NHS Trust,14/05/2014,PROSTHESES-HIP,Integrated Care,BIOMET UK HEALTHCARE LTD,0002132348,675.00,
Department of Health,East Sussex Healthcare NHS Trust,14/05/2014,PROSTHESES-OTHER,Integrated Care,BIOMET UK HEALTHCARE LTD,0002132348,86.40,
Department of Health,East Sussex Healthcare NHS Trust,14/05/2014,M&S GENERAL SUPPLIES-OTHER,Integrated Care,ST JUDE MEDICAL UK LIMITED,0002132373,1998.72,
Department of Health,East Sussex Healthcare NHS Trust,14/05/2014,PROSTHESES-KNEES,Integrated Care,BIOMET UK HEALTHCARE LTD,0002132375,529.20,
Department of Health,East Sussex Healthcare NHS Trust,14/05/2014,M&S GENERAL SUPPLIES-OTHER,Integrated Care,CHEMSOL LIMITED,0002132379,546.00,
Department of Health,East Sussex Healthcare NHS Trust,14/05/2014,PROSTHESES-KNEES,Integrated Care,BIOMET UK HEALTHCARE LTD,0002132383,2172.60,
Department of Health,East Sussex Healthcare NHS Trust,14/05/2014,DIAMED CONSUMABLES,Integrated Care,DIAMED-GB LTD,0002132395,6789.66,
Department of Health,East Sussex Healthcare NHS Trust,14/05/2014,GENERAL CHEMICALS,Integrated Care,DIAMED-GB LTD,0002132395,340.36,
Department of Health,East Sussex Healthcare NHS Trust,14/05/2014,M&S GENERAL SUPPLIES-OTHER,Integrated Care,BIOMET UK HEALTHCARE LTD,0002132396,698.40,
Department of Health,East Sussex Healthcare NHS Trust,14/05/2014,PROSTHESES-KNEES,Integrated Care,BIOMET UK HEALTHCARE LTD,0002132397,1971.00,
Department of Health,East Sussex Healthcare NHS Trust,14/05/2014,COMPUTER CONSUMABLES,Integrated Care,DIAMED-GB LTD,0002132398,370.80,
Department of Health,East Sussex Healthcare NHS Trust,14/05/2014,OFFICE EQUIPMENT,Integrated Care,DIAMED-GB LTD,0002132398,457.20,
Department of Health,East Sussex Healthcare NHS Trust,14/05/2014,DRESSINGS-OTHER,Integrated Care,AQUILANT SURGICAL,0002132402,540.00,
Department of Health,East Sussex Healthcare NHS Trust,14/05/2014,OESOPHAGEAL (UPPER GI) STENTS,Integrated Care,AQUILANT INTERVENTIONAL,0002132403,1440.00,
Department of Health,East Sussex Healthcare NHS Trust,14/05/2014,COLONIC STENTS,Integrated Care,AQUILANT INTERVENTIONAL,0002132403,1188.00,
Department of Health,East Sussex Healthcare NHS Trust,14/05/2014,POSTAGE,Integrated Care,AQUILANT INTERVENTIONAL,0002132403,24.00,
Department of Health,East Sussex Healthcare NHS Trust,14/05/2014,GENERAL LAB. CONSUMABLES,Integrated Care,GENTA MEDICAL,0002132406,971.52,
Department of Health,East Sussex Healthcare NHS Trust,14/05/2014,PROSTHESES-HIP,Integrated Care,JOINT REPLACEMENT INSTRUMENTATION  LTD,0002132407,1616.70,
Department of Health,East Sussex Healthcare NHS Trust,14/05/2014,CARDIOLOGY CATHETERS,Integrated Care,BIOTRONIK UK LTD,0002132409,576.00,
Department of Health,East Sussex Healthcare NHS Trust,14/05/2014,GENERAL LAB. CONSUMABLES,Integrated Care,R-BIOPHARM RHONE LTD,0002132415,964.80,
Department of Health,East Sussex Healthcare NHS Trust,14/05/2014,PROSTHESES-HIP,Integrated Care,JOINT REPLACEMENT INSTRUMENTATION  LTD,0002132422,1209.60,
Department of Health,East Sussex Healthcare NHS Trust,14/05/2014,PROSTHESES-KNEES,Integrated Care,BIOMET UK HEALTHCARE LTD,0002132427,2091.90,
Department of Health,East Sussex Healthcare NHS Trust,14/05/2014,GENERAL LAB. CONSUMABLES,Integrated Care,LEICA MICROSYSTEMS (UK) LTD,0002132455,7242.01,
Department of Health,East Sussex Healthcare NHS Trust,14/05/2014,LAB.REAGENTS-MISCELLANEOUS,Integrated Care,LEICA MICROSYSTEMS (UK) LTD,0002132455,46.44,
Department of Health,East Sussex Healthcare NHS Trust,14/05/2014,DRESSINGS-OTHER,Integrated Care,FREELANCE SURGICAL LTD,0002132481,554.94,
Department of Health,East Sussex Healthcare NHS Trust,14/05/2014,PROSTHESES-OTHER,Integrated Care,STRYKER UK,0002132482,655.20,
Department of Health,East Sussex Healthcare NHS Trust,14/05/2014,M&S GENERAL SUPPLIES-OTHER,Integrated Care,STRYKER UK,0002132484,777.60,
Department of Health,East Sussex Healthcare NHS Trust,14/05/2014,SURGICAL INSTRUMENTS,Integrated Care,STRYKER UK,0002132484,345.60,
Department of Health,East Sussex Healthcare NHS Trust,14/05/2014,M&S GENERAL SUPPLIES-OTHER,Integrated Care,STRYKER UK,0002132485,648.00,
Department of Health,East Sussex Healthcare NHS Trust,14/05/2014,PROSTHESES-HIP,Integrated Care,STRYKER UK,0002132485,217.73,
Department of Health,East Sussex Healthcare NHS Trust,14/05/2014,M&S GENERAL SUPPLIES-OTHER,Integrated Care,ALTOMED LTD,0002132497,1353.60,
Department of Health,East Sussex Healthcare NHS Trust,14/05/2014,PROSTHESIS - SPINAL,Integrated Care,ZIMMER LTD,0002132499,1406.16,
Department of Health,East Sussex Healthcare NHS Trust,14/05/2014,PROSTHESIS - SPINAL,Integrated Care,ZIMMER LTD,0002132500,2812.32,
Department of Health,East Sussex Healthcare NHS Trust,14/05/2014,M&S GENERAL SUPPLIES-OTHER,Integrated Care,ELEKTRON TECHNOLOGY UK LTD,0002132502,2358.00,
Department of Health,East Sussex Healthcare NHS Trust,14/05/2014,M&S GENERAL SUPPLIES-OTHER,Integrated Care,ELEKTRON TECHNOLOGY UK LTD,0002132503,2358.00,
Department of Health,East Sussex Healthcare NHS Trust,14/05/2014,PROSTHESES-KNEES,Integrated Care,BIOMET UK HEALTHCARE LTD,0002132504,2067.20,
Department of Health,East Sussex Healthcare NHS Trust,14/05/2014,PROSTHESES-OTHER,Integrated Care,BIOMET UK HEALTHCARE LTD,0002132504,86.40,
Department of Health,East Sussex Healthcare NHS Trust,14/05/2014,STAPLING DEVICES,Integrated Care,COVIDIEN (UK) COMMERCIAL LTD,0002132505,2408.40,
Department of Health,East Sussex Healthcare NHS Trust,14/05/2014,STAPLING DEVICES,Integrated Care,TPS HEALTHCARE,0002132612,6798.42,
Department of Health,East Sussex Healthcare NHS Trust,14/05/2014,PRINTING/PRINTED MATERIALS,Integrated Care,COLLECTOR SET PRINTERS,0002132707,794.32,
Department of Health,East Sussex Healthcare NHS Trust,14/05/2014,CARDIOLOGY CATHETERS,Integrated Care,TERUMO UK,0002132711,864.00,
Department of Health,East Sussex Healthcare NHS Trust,14/05/2014,INTERVENTIONAL DISPOSABLES,Integrated Care,TERUMO UK,0002132712,684.00,
Department of Health,East Sussex Healthcare NHS Trust,14/05/2014,PROSTHESES-HIP,Integrated Care,JOHNSON & JOHNSON MEDICAL LTD,0002132718,711.28,
Department of Health,East Sussex Healthcare NHS Trust,14/05/2014,PROSTHESES-HIP,Integrated Care,JOHNSON & JOHNSON MEDICAL LTD,0002132719,3775.64,
Department of Health,East Sussex Healthcare NHS Trust,14/05/2014,PROSTHESES-HIP,Integrated Care,JOHNSON & JOHNSON MEDICAL LTD,0002132720,5335.52,
Department of Health,East Sussex Healthcare NHS Trust,14/05/2014,PROSTHESES-OTHER,Integrated Care,JOHNSON & JOHNSON MEDICAL LTD,0002132720,370.80,
Department of Health,East Sussex Healthcare NHS Trust,14/05/2014,COLPOSCOPY CONSUMABLES,Integrated Care,JOHNSON & JOHNSON MEDICAL LTD,0002132722,1927.80,
Department of Health,East Sussex Healthcare NHS Trust,14/05/2014,PROSTHESES-HIP,Integrated Care,JOHNSON & JOHNSON MEDICAL LTD,0002132723,1590.14,
Department of Health,East Sussex Healthcare NHS Trust,14/05/2014,PROSTHESES-OTHER,Integrated Care,JOHNSON & JOHNSON MEDICAL LTD,0002132723,123.60,
Department of Health,East Sussex Healthcare NHS Trust,14/05/2014,STAPLING DEVICES,Integrated Care,JOHNSON & JOHNSON MEDICAL LTD,0002132724,1053.80,
Department of Health,East Sussex Healthcare NHS Trust,14/05/2014,LAB MATERIALS - OXOID,Integrated Care,OXOID LIMITED,0002132732,813.00,
Department of Health,East Sussex Healthcare NHS Trust,14/05/2014,M&S GENERAL SUPPLIES-OTHER,Integrated Care,REMSERVE MEDICAL SUPPLIES LIMITED,0002132735,558.00,
Department of Health,East Sussex Healthcare NHS Trust,14/05/2014,PROSTHESIS - UROLOGICAL,Integrated Care,AMERICAN MEDICAL SYSTEMS UK LTD,0002132740,5670.00,
Department of Health,East Sussex Healthcare NHS Trust,14/05/2014,PROSTHESIS - UROLOGICAL,Integrated Care,AMERICAN MEDICAL SYSTEMS UK LTD,0002132741,2761.20,
Department of Health,East Sussex Healthcare NHS Trust,14/05/2014,PATS.APPL.-DENTAL,Integrated Care,SOUTH EASTERN ORTHODONTICS,0002132751,2844.34,
Department of Health,East Sussex Healthcare NHS Trust,14/05/2014,INTERVASCULAR STENTS,Integrated Care,COOK (UK) LTD,0002132753,594.00,
Department of Health,East Sussex Healthcare NHS Trust,14/05/2014,LAB MATERIALS - LAUNCH,Integrated Care,LAUNCH DIAGNOSTICS LTD,0002132761,3098.18,
Department of Health,East Sussex Healthcare NHS Trust,14/05/2014,PROSTHESIS - GRAFTS,Integrated Care,COOK (UK) LTD,0002132764,4914.00,
Department of Health,East Sussex Healthcare NHS Trust,14/05/2014,GENERAL LAB. CONSUMABLES,Integrated Care,MEDLINE SCIENTIFIC LTD,0002132766,26.64,
Department of Health,East Sussex Healthcare NHS Trust,14/05/2014,LAB-CONTAINERS/BOTTLES & CAPS,Integrated Care,MEDLINE SCIENTIFIC LTD,0002132766,555.60,
Department of Health,East Sussex Healthcare NHS Trust,14/05/2014,SUTURES,Integrated Care,SMITH & NEPHEW ADVANCED SURGICAL DEVICES,0002132782,532.66,
Department of Health,East Sussex Healthcare NHS Trust,14/05/2014,SUTURES,Integrated Care,BOSTON SCIENTIFIC LTD,0002132788,840.00,
Department of Health,East Sussex Healthcare NHS Trust,14/05/2014,CARDIOLOGY CATHETERS,Integrated Care,BOSTON SCIENTIFIC LTD,0002132790,633.60,
Department of Health,East Sussex Healthcare NHS Trust,14/05/2014,M&S GENERAL SUPPLIES-OTHER,Integrated Care,BAYER PLC,0002132791,522.90,
Department of Health,East Sussex Healthcare NHS Trust,14/05/2014,PROSTHESES-HIP,Integrated Care,LIMA ORTHOPAEDICS UK LIMITED,0002132794,639.60,
Department of Health,East Sussex Healthcare NHS Trust,14/05/2014,PROSTHESES-OTHER,Integrated Care,LIMA ORTHOPAEDICS UK LIMITED,0002132794,82.80,
Department of Health,East Sussex Healthcare NHS Trust,14/05/2014,PROSTHESES-HIP,Integrated Care,LIMA ORTHOPAEDICS UK LIMITED,0002132796,2398.40,
Department of Health,East Sussex Healthcare NHS Trust,14/05/2014,PROSTHESES-OTHER,Integrated Care,SMITH & NEPHEW ADVANCED SURGICAL DEVICES,0002132802,645.78,
Department of Health,East Sussex Healthcare NHS Trust,14/05/2014,PROSTHESES-OTHER,Integrated Care,SMITH & NEPHEW ADVANCED SURGICAL DEVICES,0002132806,527.57,
Department of Health,East Sussex Healthcare NHS Trust,14/05/2014,SUTURES,Integrated Care,SMITH & NEPHEW ADVANCED SURGICAL DEVICES,0002132807,1000.12,
Department of Health,East Sussex Healthcare NHS Trust,14/05/2014,SURGICAL INSTRUMENTS,Integrated Care,SMITH & NEPHEW ADVANCED SURGICAL DEVICES,0002132807,86.89,
Department of Health,East Sussex Healthcare NHS Trust,14/05/2014,SURGICAL INSTRUMENTS,Integrated Care,SMITH & NEPHEW HEALTHCARE LTD,0002132809,581.54,
Department of Health,East Sussex Healthcare NHS Trust,14/05/2014,PROSTHESES-OTHER,Integrated Care,SMITH & NEPHEW ADVANCED SURGICAL DEVICES,0002132810,986.74,
Department of Health,East Sussex Healthcare NHS Trust,14/05/2014,FURNITURE & FITTINGS,Integrated Care,SIR JACOB BEHRENS & SONS LTD,0002132818,669.60,
Department of Health,East Sussex Healthcare NHS Trust,14/05/2014,PROSTHESES-HIP,Integrated Care,JOHNSON & JOHNSON MEDICAL LTD,0002132831,1610.14,
Department of Health,East Sussex Healthcare NHS Trust,14/05/2014,SURGICAL INSTRUMENTS,Integrated Care,JOHNSON & JOHNSON MEDICAL LTD,0002132832,2333.10,
Department of Health,East Sussex Healthcare NHS Trust,14/05/2014,COLPOSCOPY CONSUMABLES,Integrated Care,JOHNSON & JOHNSON MEDICAL LTD,0002132833,1285.20,
Department of Health,East Sussex Healthcare NHS Trust,14/05/2014,M&S GENERAL SUPPLIES-OTHER,Integrated Care,JOHNSON & JOHNSON MEDICAL LTD,0002132833,506.88,
Department of Health,East Sussex Healthcare NHS Trust,14/05/2014,SURGICAL INSTRUMENTS,Integrated Care,JOHNSON & JOHNSON MEDICAL LTD,0002132833,506.88,
Department of Health,East Sussex Healthcare NHS Trust,14/05/2014,M&S GENERAL SUPPLIES-OTHER,Integrated Care,JOHNSON & JOHNSON MEDICAL LTD,0002132834,933.24,
Department of Health,East Sussex Healthcare NHS Trust,14/05/2014,PROSTHESES-HIP,Integrated Care,JOHNSON & JOHNSON MEDICAL LTD,0002132835,4049.09,
Department of Health,East Sussex Healthcare NHS Trust,14/05/2014,PROSTHESIS - GRAFTS,Integrated Care,BARD LTD,0002132840,1371.47,
Department of Health,East Sussex Healthcare NHS Trust,14/05/2014,M&S GENERAL SUPPLIES-OTHER,Integrated Care,OLYMPUS KEYMED,0002132842,467.22,
Department of Health,East Sussex Healthcare NHS Trust,14/05/2014,INTERVENTIONAL DISPOSABLES,Integrated Care,OLYMPUS KEYMED,0002132842,110.22,
Department of Health,East Sussex Healthcare NHS Trust,14/05/2014,M&S GENERAL SUPPLIES-OTHER,Integrated Care,STRYKER UK,0002132851,1555.20,
Department of Health,East Sussex Healthcare NHS Trust,14/05/2014,M&S GENERAL SUPPLIES-OTHER,Integrated Care,STRYKER UK,0002132852,1591.20,
Department of Health,East Sussex Healthcare NHS Trust,14/05/2014,PROSTHESES-HIP,Integrated Care,STRYKER UK,0002132852,1029.67,
Department of Health,East Sussex Healthcare NHS Trust,14/05/2014,PROSTHESES-HIP,Integrated Care,JOHNSON & JOHNSON MEDICAL LTD,0002132855,5533.35,
Department of Health,East Sussex Healthcare NHS Trust,14/05/2014,PROSTHESES-OTHER,Integrated Care,JOHNSON & JOHNSON MEDICAL LTD,0002132855,247.20,
Department of Health,East Sussex Healthcare NHS Trust,14/05/2014,PROSTHESES-HIP,Integrated Care,JOHNSON & JOHNSON MEDICAL LTD,0002132856,2896.78,
Department of Health,East Sussex Healthcare NHS Trust,14/05/2014,PROSTHESES-OTHER,Integrated Care,JOHNSON & JOHNSON MEDICAL LTD,0002132856,123.60,
Department of Health,East Sussex Healthcare NHS Trust,14/05/2014,INTERVASCULAR STENTS,Integrated Care,W L  GORE & ASSOCIATES,0002132865,4233.60,
Department of Health,East Sussex Healthcare NHS Trust,14/05/2014,PROSTHESES-HIP,Integrated Care,BIOMET UK HEALTHCARE LTD,0002132869,1512.00,
Department of Health,East Sussex Healthcare NHS Trust,14/05/2014,ENDOSCOPY CONSUMABLES,Integrated Care,DIAGMED HEALTHCARE LTD,0002132872,630.00,
Department of Health,East Sussex Healthcare NHS Trust,14/05/2014,FOETAL FIBRONECTIN SYS CONSUMS,Integrated Care,HOLOGIC UK LTD,0002132873,1092.00,
Department of Health,East Sussex Healthcare NHS Trust,14/05/2014,CPAP VENTILATOR,Integrated Care,RESMED (UK) LTD,0002132878,3312.00,
Department of Health,East Sussex Healthcare NHS Trust,14/05/2014,M&S GENERAL SUPPLIES-OTHER,Integrated Care,RESMED (UK) LTD,0002132878,324.00,
Department of Health,East Sussex Healthcare NHS Trust,14/05/2014,M&S EQUIPMENT - OTHER,Integrated Care,RESMED (UK) LTD,0002132879,540.00,
Department of Health,East Sussex Healthcare NHS Trust,14/05/2014,M&S GENERAL SUPPLIES-OTHER,Integrated Care,RESMED (UK) LTD,0002132879,660.00,
Department of Health,East Sussex Healthcare NHS Trust,14/05/2014,PROSTHESIS - SPINAL,Integrated Care,ZIMMER LTD,0002132885,703.08,
Department of Health,East Sussex Healthcare NHS Trust,14/05/2014,CATARACT CONSUMABLES,Integrated Care,ALCON EYE CARE UK LTD,0002132886,1273.44,
Department of Health,East Sussex Healthcare NHS Trust,14/05/2014,CATARACT CONSUMABLES,Integrated Care,ALCON EYE CARE UK LTD,0002132887,1273.44,
Department of Health,East Sussex Healthcare NHS Trust,14/05/2014,M&S EQUIPMENT - OTHER,Integrated Care,RESMED (UK) LTD,0002132890,1593.00,
Department of Health,East Sussex Healthcare NHS Trust,14/05/2014,M&S GENERAL SUPPLIES-OTHER,Integrated Care,RESMED (UK) LTD,0002132890,246.24,
Department of Health,East Sussex Healthcare NHS Trust,14/05/2014,DRUGS-HAEMAPHILIA PRODUCTS,Integrated Care,CSL BEHRING,0002132895,700.00,
Department of Health,East Sussex Healthcare NHS Trust,14/05/2014,GENERAL CHEMICALS,Integrated Care,CSL BEHRING,0002132895,840.00,
Department of Health,East Sussex Healthcare NHS Trust,14/05/2014,ENGINEERING MATERIALS,Commercial,HILL-ROM LTD,0002132896,873.18,
Department of Health,East Sussex Healthcare NHS Trust,14/05/2014,PROSTHESIS - LENS,Integrated Care,ALCON EYE CARE UK LTD,0002132901,892.80,
Department of Health,East Sussex Healthcare NHS Trust,14/05/2014,ENDOSCOPY CONSUMABLES,Integrated Care,BOSTON SCIENTIFIC LTD,0002132914,810.00,
Department of Health,East Sussex Healthcare NHS Trust,14/05/2014,M&S GENERAL SUPPLIES-OTHER,Integrated Care,BOSTON SCIENTIFIC LTD,0002132914,513.60,
Department of Health,East Sussex Healthcare NHS Trust,14/05/2014,BILIARY STENTS,Integrated Care,BOSTON SCIENTIFIC LTD,0002132914,246.00,
Department of Health,East Sussex Healthcare NHS Trust,14/05/2014,CATARACT CONSUMABLES,Integrated Care,ALTOMED LTD,0002132922,455.40,
Department of Health,East Sussex Healthcare NHS Trust,14/05/2014,M&S GENERAL SUPPLIES-OTHER,Integrated Care,ALTOMED LTD,0002132922,211.20,
Department of Health,East Sussex Healthcare NHS Trust,14/05/2014,OTHER STATIONERY,Commercial,POLYBAGS LTD,0002132923,677.70,
Department of Health,East Sussex Healthcare NHS Trust,14/05/2014,BILIARY STENTS,Integrated Care,AQUILANT INTERVENTIONAL,0002132924,2652.00,
Department of Health,East Sussex Healthcare NHS Trust,14/05/2014,LAPARASCOPIC EQUIP-UROLOGICAL,Integrated Care,PURPLE SURGICAL UK LTD,0002132953,3489.84,
Department of Health,East Sussex Healthcare NHS Trust,14/05/2014,INTERVENTIONAL DISPOSABLES,Integrated Care,TERUMO UK,0002133000,618.00,
Department of Health,East Sussex Healthcare NHS Trust,14/05/2014,CARDIOLOGY CATHETERS,Integrated Care,TERUMO UK,0002133000,126.00,
Department of Health,East Sussex Healthcare NHS Trust,14/05/2014,M&S GENERAL SUPPLIES-OTHER,Integrated Care,CONMED LINVATEC UK,0002133081,1584.00,
Department of Health,East Sussex Healthcare NHS Trust,14/05/2014,INTERVASCULAR STENTS,Integrated Care,COOK (UK) LTD,0002133093,594.00,
Department of Health,East Sussex Healthcare NHS Trust,14/05/2014,M&S GENERAL SUPPLIES-OTHER,Integrated Care,COOK (UK) LTD,0002133094,816.00,
Department of Health,East Sussex Healthcare NHS Trust,14/05/2014,WHEELCHAIR,Integrated Care,REHABILITATION MANUFACTURING SRVS. LTD,0002133096,714.00,
Department of Health,East Sussex Healthcare NHS Trust,14/05/2014,WHEELCHAIR,Integrated Care,REHABILITATION MANUFACTURING SRVS. LTD,0002133097,714.00,
Department of Health,East Sussex Healthcare NHS Trust,14/05/2014,M&S GENERAL SUPPLIES-OTHER,Integrated Care,STRYKER UK,0002133110,777.60,
Department of Health,East Sussex Healthcare NHS Trust,14/05/2014,GENERAL LAB. CONSUMABLES,Integrated Care,INSTRUMENTATION LABORATORIES UK LTD,0002133122,2954.02,
Department of Health,East Sussex Healthcare NHS Trust,14/05/2014,GENERAL LAB. CONSUMABLES,Integrated Care,INSTRUMENTATION LABORATORIES UK LTD,0002133123,2575.96,
Department of Health,East Sussex Healthcare NHS Trust,14/05/2014,M&S GENERAL SUPPLIES-OTHER,Integrated Care,COOK (UK) LTD,0002133126,630.00,
Department of Health,East Sussex Healthcare NHS Trust,14/05/2014,PROSTHESES-OTHER,Integrated Care,JOHNSON & JOHNSON MEDICAL LTD,0002133130,1262.40,
Department of Health,East Sussex Healthcare NHS Trust,14/05/2014,X-RAY - EQUIPMENT,Integrated Care,BARD LTD,0002133132,1716.00,
Department of Health,East Sussex Healthcare NHS Trust,14/05/2014,CARDIOLOGY CATHETERS,Integrated Care,BOSTON SCIENTIFIC LTD,0002133133,990.00,
Department of Health,East Sussex Healthcare NHS Trust,14/05/2014,CARDIOLOGY STENTS,Integrated Care,MEDTRONIC LTD,0002133140,2436.00,
Department of Health,East Sussex Healthcare NHS Trust,14/05/2014,CARDIOLOGY CATHETERS,Integrated Care,BOSTON SCIENTIFIC LTD,0002133143,518.40,
Department of Health,East Sussex Healthcare NHS Trust,14/05/2014,CARDIOLOGY STENTS,Integrated Care,BOSTON SCIENTIFIC LTD,0002133143,420.00,
Department of Health,East Sussex Healthcare NHS Trust,14/05/2014,M&S EQUIPMENT - OTHER,Integrated Care,RESMED (UK) LTD,0002133146,948.24,
Department of Health,East Sussex Healthcare NHS Trust,14/05/2014,ARTHROSCOPY INSTRUMENTS,Integrated Care,SMITH & NEPHEW HEALTHCARE LTD,0002133149,581.54,
Department of Health,East Sussex Healthcare NHS Trust,14/05/2014,M&S GENERAL SUPPLIES-OTHER,Integrated Care,DELTEX MEDICAL,0002133151,984.60,
Department of Health,East Sussex Healthcare NHS Trust,14/05/2014,CARDIOLOGY CATHETERS,Integrated Care,KIMAL PLC (FOR ORDERS),0002133153,962.16,
Department of Health,East Sussex Healthcare NHS Trust,14/05/2014,M&S GENERAL SUPPLIES-OTHER,Integrated Care,REMSERVE MEDICAL SUPPLIES LIMITED,0002133154,1446.00,
Department of Health,East Sussex Healthcare NHS Trust,14/05/2014,M&S GENERAL SUPPLIES-OTHER,Integrated Care,ST JUDE MEDICAL UK LIMITED,0002133158,999.36,
Department of Health,East Sussex Healthcare NHS Trust,14/05/2014,PROSTHESES-KNEES,Integrated Care,BIOMET UK HEALTHCARE LTD,0002133160,1863.90,
Department of Health,East Sussex Healthcare NHS Trust,14/05/2014,PROSTHESIS - SHOULDERS,Integrated Care,BIOMET UK HEALTHCARE LTD,0002133168,1380.00,
Department of Health,East Sussex Healthcare NHS Trust,14/05/2014,PROSTHESES-OTHER,Integrated Care,BIOMET UK HEALTHCARE LTD,0002133168,1620.00,
Department of Health,East Sussex Healthcare NHS Trust,14/05/2014,SURGICAL INSTRUMENTS,Integrated Care,TPS HEALTHCARE,0002133181,1152.00,
Department of Health,East Sussex Healthcare NHS Trust,14/05/2014,X-RAY - EQUIPMENT,Integrated Care,COOK (UK) LTD,0002133184,726.00,
Department of Health,East Sussex Healthcare NHS Trust,14/05/2014,STAFF UNIFORMS,Integrated Care,BUNZL HEALTHCARE,0002133189,700.56,
Department of Health,East Sussex Healthcare NHS Trust,14/05/2014,INTERVASCULAR STENTS,Integrated Care,COOK (UK) LTD,0002133191,1188.00,
Department of Health,East Sussex Healthcare NHS Trust,14/05/2014,M&S GENERAL SUPPLIES-OTHER,Integrated Care,COOK (UK) LTD,0002133196,276.00,
Department of Health,East Sussex Healthcare NHS Trust,14/05/2014,INTERVENTIONAL DISPOSABLES,Integrated Care,COOK (UK) LTD,0002133196,112.80,
Department of Health,East Sussex Healthcare NHS Trust,14/05/2014,X-RAY - EQUIPMENT,Integrated Care,COOK (UK) LTD,0002133196,288.00,
Department of Health,East Sussex Healthcare NHS Trust,14/05/2014,SURGICAL INSTRUMENTS,Integrated Care,SMITH & NEPHEW ADVANCED SURGICAL DEVICES,0002133201,34.37,
Department of Health,East Sussex Healthcare NHS Trust,14/05/2014,PROSTHESES-OTHER,Integrated Care,SMITH & NEPHEW ADVANCED SURGICAL DEVICES,0002133201,647.91,
Department of Health,East Sussex Healthcare NHS Trust,14/05/2014,PROSTHESES-KNEES,Integrated Care,BIOMET UK HEALTHCARE LTD,0002133203,627.00,
Department of Health,East Sussex Healthcare NHS Trust,14/05/2014,M&S GENERAL SUPPLIES-OTHER,Integrated Care,ST JUDE MEDICAL UK LIMITED,0002133206,1998.72,
Department of Health,East Sussex Healthcare NHS Trust,14/05/2014,M&S GENERAL SUPPLIES-OTHER,Integrated Care,ST JUDE MEDICAL UK LIMITED,0002133207,999.36,
Department of Health,East Sussex Healthcare NHS Trust,14/05/2014,COLONIC STENTS,Integrated Care,BOSTON SCIENTIFIC LTD,0002133211,948.00,
Department of Health,East Sussex Healthcare NHS Trust,14/05/2014,M&S GENERAL SUPPLIES-OTHER,Integrated Care,BOSTON SCIENTIFIC LTD,0002133212,1080.00,
Department of Health,East Sussex Healthcare NHS Trust,14/05/2014,BILIARY STENTS,Integrated Care,BOSTON SCIENTIFIC LTD,0002133213,2040.00,
Department of Health,East Sussex Healthcare NHS Trust,14/05/2014,LAPARASCOPIC EQUIP-UROLOGICAL,Integrated Care,CONMED LINVATEC UK,0002133219,600.00,
Department of Health,East Sussex Healthcare NHS Trust,14/05/2014,PRINTING/PRINTED MATERIALS,Commercial,ROTADEX SYSTEMS LTD,0002133221,885.60,
Department of Health,East Sussex Healthcare NHS Trust,14/05/2014,CARDIOLOGY CATHETERS,Integrated Care,BOSTON SCIENTIFIC LTD,0002133223,691.20,
Department of Health,East Sussex Healthcare NHS Trust,14/05/2014,CARDIOLOGY STENTS,Integrated Care,BOSTON SCIENTIFIC LTD,0002133223,420.00,
Department of Health,East Sussex Healthcare NHS Trust,14/05/2014,CARDIOLOGY CATHETERS,Integrated Care,BOSTON SCIENTIFIC LTD,0002133224,460.80,
Department of Health,East Sussex Healthcare NHS Trust,14/05/2014,CARDIOLOGY STENTS,Integrated Care,BOSTON SCIENTIFIC LTD,0002133224,1260.00,
Department of Health,East Sussex Healthcare NHS Trust,14/05/2014,LOANER KITS - HIRE CHARGE,Integrated Care,JOHNSON & JOHNSON MEDICAL LTD,0002220857,540.00,
Department of Health,East Sussex Healthcare NHS Trust,14/05/2014,BILIARY STENTS,Integrated Care,AQUILANT INTERVENTIONAL,0002223798,1188.00,
Department of Health,East Sussex Healthcare NHS Trust,14/05/2014,INTERVENTIONAL DISPOSABLES,Integrated Care,AQUILANT INTERVENTIONAL,0002225201,750.00,
Department of Health,East Sussex Healthcare NHS Trust,14/05/2014,CARDIOLOGY CATHETERS,Integrated Care,AQUILANT INTERVENTIONAL,0002225201,3144.00,
Department of Health,East Sussex Healthcare NHS Trust,14/05/2014,SURGICAL INSTRUMENTS,Integrated Care,B BRAUN MEDICAL LTD,0002225306,2910.00,
Department of Health,East Sussex Healthcare NHS Trust,14/05/2014,SURGICAL INSTRUMENTS,Integrated Care,B BRAUN MEDICAL LTD,0002225307,916.78,
Department of Health,East Sussex Healthcare NHS Trust,14/05/2014,CARDIOLOGY CATHETERS,Integrated Care,AQUILANT INTERVENTIONAL,0002225694,864.00,
Department of Health,East Sussex Healthcare NHS Trust,14/05/2014,OESOPHAGEAL (UPPER GI) STENTS,Integrated Care,AQUILANT INTERVENTIONAL,0002226052,942.00,
Department of Health,East Sussex Healthcare NHS Trust,14/05/2014,LOANER KITS - HIRE CHARGE,Integrated Care,BIOMET UK HEALTHCARE LTD,0002226318,-1380.00,
Department of Health,East Sussex Healthcare NHS Trust,14/05/2014,COMPUTER SOFTWARE,Commercial,JOHNSON & JOHNSON MEDICAL LTD,0002226987,14398.69,
Department of Health,East Sussex Healthcare NHS Trust,14/05/2014,STORAGE - EXTERNAL FACILITIES,Commercial,RESTORE PLC,0002227016,584.66,
Department of Health,East Sussex Healthcare NHS Trust,14/05/2014,GENERAL LAB. CONSUMABLES,Integrated Care,GENTA MEDICAL,0002227062,706.80,
Department of Health,East Sussex Healthcare NHS Trust,14/05/2014,TSSU INSTRUMENTATION,Commercial,SMITH & NEPHEW ADVANCED SURGICAL DEVICES,0002227100,1137.37,
Department of Health,East Sussex Healthcare NHS Trust,14/05/2014,MED EQUIPMENT LEASES,Integrated Care,SHAWBROOK ASSET FINANCE,0002227112,2312.96,
Department of Health,East Sussex Healthcare NHS Trust,14/05/2014,CONT.MAIN-MED & SURG EQUIP,Integrated Care,WASSENBURG MEDICAL DEVICES,0002227231,627.41,
Department of Health,East Sussex Healthcare NHS Trust,14/05/2014,M&S GENERAL SUPPLIES-OTHER,Commercial,UNISURGE INTERNATIONAL LTD,0002227317,599.28,
Department of Health,East Sussex Healthcare NHS Trust,14/05/2014,PRE-STERILE COMMERCIAL PACKS,Commercial,UNISURGE INTERNATIONAL LTD,0002227317,1365.55,
Department of Health,East Sussex Healthcare NHS Trust,14/05/2014,CONTRACT-SECURITY,Commercial,EAST SUSSEX SECURITY,0002227353,750.00,
Department of Health,East Sussex Healthcare NHS Trust,14/05/2014,LAB MATERIALS - ABBOTT,Integrated Care,ABBOTT LABORATORIES LTD,0002227398,4897.39,
Department of Health,East Sussex Healthcare NHS Trust,14/05/2014,FURNITURE & FITTINGS,Integrated Care,HOG FURNISHING,0002227639,1411.13,
Department of Health,East Sussex Healthcare NHS Trust,14/05/2014,DRUGS-HAEMAPHILIA PRODUCTS,Integrated Care,CSL BEHRING,0002227643,3264.00,
Department of Health,East Sussex Healthcare NHS Trust,14/05/2014,PRINTING/PRINTED MATERIALS,Integrated Care,GL EDUCATION GROUP LTD,0002227710,2350.74,
Department of Health,East Sussex Healthcare NHS Trust,14/05/2014,COMPUTER SOFTWARE,Integrated Care,CSC COMPUTER SCIENCES LTD,0002227739,12600.00,
Department of Health,East Sussex Healthcare NHS Trust,14/05/2014,EDUCATIONAL EQUIPMENT,Integrated Care,LAERDAL MEDICAL AS,0002227809,944.70,
Department of Health,East Sussex Healthcare NHS Trust,14/05/2014,INTERVENTIONAL DISPOSABLES,Integrated Care,JOHNSON & JOHNSON MEDICAL LTD,0002227849,692.28,
Department of Health,East Sussex Healthcare NHS Trust,14/05/2014,CARDIOLOGY CATHETERS,Integrated Care,JOHNSON & JOHNSON MEDICAL LTD,0002227849,312.00,
Department of Health,East Sussex Healthcare NHS Trust,14/05/2014,PROSTHESIS -BREAST IMPLANTS,Integrated Care,JOHNSON & JOHNSON MEDICAL LTD,0002227851,919.64,
Department of Health,East Sussex Healthcare NHS Trust,14/05/2014,ENDOSCOPY CONSUMABLES,Integrated Care,BOSTON SCIENTIFIC LTD,0002227886,168.00,
Department of Health,East Sussex Healthcare NHS Trust,14/05/2014,INTERVENTIONAL DISPOSABLES,Integrated Care,BOSTON SCIENTIFIC LTD,0002227886,331.20,
Department of Health,East Sussex Healthcare NHS Trust,14/05/2014,BILIARY STENTS,Integrated Care,BOSTON SCIENTIFIC LTD,0002227886,36.00,
Department of Health,East Sussex Healthcare NHS Trust,14/05/2014,COMPUTER MAINT - SOFTWARE,Commercial,ALTRAX GROUP LTD,0002227955,8026.08,
Department of Health,East Sussex Healthcare NHS Trust,14/05/2014,PRINTING/PRINTED MATERIALS,Integrated Care,JONES & BROOKS LTD,0002227978,696.00,
Department of Health,East Sussex Healthcare NHS Trust,14/05/2014,OTHER STATIONERY,Integrated Care,ALTRAX GROUP LTD,0002227991,386.28,
Department of Health,East Sussex Healthcare NHS Trust,14/05/2014,M&S GENERAL SUPPLIES-OTHER,Commercial,ALTRAX GROUP LTD,0002227991,838.56,
Department of Health,East Sussex Healthcare NHS Trust,14/05/2014,PRINTING/PRINTED MATERIALS,Commercial,ALTRAX GROUP LTD,0002227991,160.44,
Department of Health,East Sussex Healthcare NHS Trust,14/05/2014,OTHER STATIONERY,Commercial,ALTRAX GROUP LTD,0002227991,706.80,
Department of Health,East Sussex Healthcare NHS Trust,14/05/2014,LAUNDRY EQUIPMENT,Commercial,CLAY & ABBOTT LTD,0002227998,1668.00,
Department of Health,East Sussex Healthcare NHS Trust,14/05/2014,M&S GENERAL SUPPLIES-OTHER,Integrated Care,MEDICAL INNOVATIONS LTD,0002228002,591.64,
Department of Health,East Sussex Healthcare NHS Trust,14/05/2014,CAPITAL EXPENDITURE,Other Central,MCLAREN SOFTWARE LTD,0002228008,45840.00,
Department of Health,East Sussex Healthcare NHS Trust,14/05/2014,WHEELCHAIR,Integrated Care,REHABILITATION MANUFACTURING SRVS. LTD,0002228010,1147.55,
Department of Health,East Sussex Healthcare NHS Trust,14/05/2014,CARDIOLOGY STENTS,Integrated Care,MEDTRONIC LTD,0002228055,696.00,
Department of Health,East Sussex Healthcare NHS Trust,14/05/2014,INTERVENTIONAL DISPOSABLES,Integrated Care,VOLCANO EUROPE,0002228091,450.00,
Department of Health,East Sussex Healthcare NHS Trust,14/05/2014,CARDIOLOGY CATHETERS,Integrated Care,VOLCANO EUROPE,0002228091,400.00,
Department of Health,East Sussex Healthcare NHS Trust,14/05/2014,M&S GENERAL SUPPLIES-OTHER,Commercial,FIELDSKILL CONQUEST LTD,0002228113,516.53,
Department of Health,East Sussex Healthcare NHS Trust,14/05/2014,STAFF UNIFORMS,Commercial,FIELDSKILL CONQUEST LTD,0002228113,134.89,
Department of Health,East Sussex Healthcare NHS Trust,14/05/2014,OTHER STATIONERY,Commercial,FIELDSKILL CONQUEST LTD,0002228113,36.38,
Department of Health,East Sussex Healthcare NHS Trust,14/05/2014,LAB MATERIALS - OXOID,Integrated Care,OXOID LIMITED,0002228126,721.00,
Department of Health,East Sussex Healthcare NHS Trust,14/05/2014,M&S GENERAL SUPPLIES-OTHER,Integrated Care,KIMAL PLC (FOR ORDERS),0002228139,1256.76,
Department of Health,East Sussex Healthcare NHS Trust,14/05/2014,DIAMED CONSUMABLES,Integrated Care,DIAMED-GB LTD,0002228140,3044.26,
Department of Health,East Sussex Healthcare NHS Trust,14/05/2014,SUTURES,Integrated Care,ARTHREX LTD,0002228147,30.00,
Department of Health,East Sussex Healthcare NHS Trust,14/05/2014,SUTURES,Integrated Care,ARTHREX LTD,0002228147,1380.00,
Department of Health,East Sussex Healthcare NHS Trust,14/05/2014,CAPITAL EXPENDITURE,Other Central,WELCH ALLYN UK LTD,0002228148,7686.00,
Department of Health,East Sussex Healthcare NHS Trust,14/05/2014,GENERAL CHEMICALS,Integrated Care,CEPHEID UK LTD,0002228150,1035.20,
Department of Health,East Sussex Healthcare NHS Trust,14/05/2014,CARDIOLOGY STENTS,Integrated Care,ABBOTT VASCULAR,0002228158,1944.00,
Department of Health,East Sussex Healthcare NHS Trust,14/05/2014,INTERVENTIONAL DISPOSABLES,Integrated Care,ABBOTT VASCULAR,0002228159,540.00,
Department of Health,East Sussex Healthcare NHS Trust,14/05/2014,PROSTHESIS - GRAFTS,Integrated Care,COOK (UK) LTD,0002228161,1848.00,
Department of Health,East Sussex Healthcare NHS Trust,14/05/2014,M&S GENERAL SUPPLIES-OTHER,Integrated Care,COOK (UK) LTD,0002228162,60.00,
Department of Health,East Sussex Healthcare NHS Trust,14/05/2014,INTERVENTIONAL DISPOSABLES,Integrated Care,COOK (UK) LTD,0002228162,1812.00,
Department of Health,East Sussex Healthcare NHS Trust,14/05/2014,LAUNDRY EQUIPMENT (BAGS ETC.),Commercial,STEVENAGE PACKAGING LTD,0002228165,7511.40,
Department of Health,East Sussex Healthcare NHS Trust,14/05/2014,M&S GENERAL SUPPLIES-OTHER,Commercial,YORK MEDICAL TECHNOLOGIES LTD,0002228167,857.40,
Department of Health,East Sussex Healthcare NHS Trust,14/05/2014,CARDIOLOGY CATHETERS,Integrated Care,BARD LTD,0002228172,1200.00,
Department of Health,East Sussex Healthcare NHS Trust,14/05/2014,LAB MATERIALS - BECTON,Integrated Care,BECTON DICKINSON U.K. LTD,0002228174,1954.93,
Department of Health,East Sussex Healthcare NHS Trust,14/05/2014,LAB.REAGENTS-MISCELLANEOUS,Integrated Care,BECTON DICKINSON U.K. LTD,0002228174,656.93,
Department of Health,East Sussex Healthcare NHS Trust,14/05/2014,PRE-STERILE COMMERCIAL PACKS,Commercial,STERIPHARM UK LTD,0002228184,806.40,
Department of Health,East Sussex Healthcare NHS Trust,14/05/2014,TSSU INSTRUMENTATION,Commercial,STRYKER UK,0002228187,4916.88,
Department of Health,East Sussex Healthcare NHS Trust,14/05/2014,CAPITAL EXPENDITURE,Other Central,MAINLINE INSTRUMENTS LTD,0002228189,2046.00,
Department of Health,East Sussex Healthcare NHS Trust,14/05/2014,CAPITAL EXPENDITURE,Other Central,PROACT MEDICAL LTD,0002228190,2340.00,
Department of Health,East Sussex Healthcare NHS Trust,14/05/2014,PRINTING/PRINTED MATERIALS,Commercial,CROWN LABELS MFG CO LTD,0002228196,1293.12,
Department of Health,East Sussex Healthcare NHS Trust,14/05/2014,M&S GENERAL SUPPLIES-OTHER,Integrated Care,ST JUDE MEDICAL UK LIMITED,0002228207,1500.00,
Department of Health,East Sussex Healthcare NHS Trust,14/05/2014,LOANER KITS - HIRE CHARGE,Integrated Care,BIOMET UK HEALTHCARE LTD,0002228210,690.00,
Department of Health,East Sussex Healthcare NHS Trust,14/05/2014,GENERAL LAB. CONSUMABLES,Integrated Care,GREINER BIO-ONE LTD,0002228223,767.75,
Department of Health,East Sussex Healthcare NHS Trust,14/05/2014,HAEMAGLOBINOPATHY REAGENTS,Integrated Care,BIO-RAD LABORATORIES LTD,0002228229,1390.50,
Department of Health,East Sussex Healthcare NHS Trust,14/05/2014,PROSTHESES-OTHER,Integrated Care,SMITH & NEPHEW ADVANCED SURGICAL DEVICES,0002228234,631.87,
Department of Health,East Sussex Healthcare NHS Trust,14/05/2014,M&S GENERAL SUPPLIES-OTHER,Integrated Care,SMITH & NEPHEW ADVANCED SURGICAL DEVICES,0002228238,53.30,
Department of Health,East Sussex Healthcare NHS Trust,14/05/2014,SURGICAL INSTRUMENTS,Integrated Care,SMITH & NEPHEW ADVANCED SURGICAL DEVICES,0002228238,198.63,
Department of Health,East Sussex Healthcare NHS Trust,14/05/2014,PROSTHESES-OTHER,Integrated Care,SMITH & NEPHEW ADVANCED SURGICAL DEVICES,0002228238,1964.43,
Department of Health,East Sussex Healthcare NHS Trust,14/05/2014,M&S GENERAL SUPPLIES-OTHER,Commercial,LINA MEDICAL UK LTD,0002228239,922.20,
Department of Health,East Sussex Healthcare NHS Trust,14/05/2014,CAPITAL EXPENDITURE,Other Central,CHILTERN IT PARTS,0002228249,564.13,
Department of Health,East Sussex Healthcare NHS Trust,14/05/2014,PRE-STERILE COMMERCIAL PACKS,Commercial,SYNERGY HEALTH,0002228251,2137.09,
Department of Health,East Sussex Healthcare NHS Trust,14/05/2014,CARDIOLOGY CATHETERS,Integrated Care,MEDTRONIC LTD,0002228252,5760.00,
Department of Health,East Sussex Healthcare NHS Trust,14/05/2014,M&S GENERAL SUPPLIES-OTHER,Integrated Care,BARD LTD,0002228284,2640.00,
Department of Health,East Sussex Healthcare NHS Trust,14/05/2014,CLEANING MATERIALS,Commercial,SERCHEM LTD,0002228286,1447.20,
Department of Health,East Sussex Healthcare NHS Trust,14/05/2014,LAB MATERIALS - LAUNCH,Integrated Care,LAUNCH DIAGNOSTICS LTD,0002228289,3276.68,
Department of Health,East Sussex Healthcare NHS Trust,14/05/2014,IMMUNONOLOGY REAGENTS,Integrated Care,LAUNCH DIAGNOSTICS LTD,0002228290,2420.58,
Department of Health,East Sussex Healthcare NHS Trust,14/05/2014,CLEANING MACHINES,Integrated Care,ELECTROLUX PROFESSIONAL LTD,0002228293,4638.60,
Department of Health,East Sussex Healthcare NHS Trust,14/05/2014,PATS CLOTHING OTHER,Commercial,THE RIZUES LTD,0002228296,9888.00,
Department of Health,East Sussex Healthcare NHS Trust,14/05/2014,M&S GENERAL SUPPLIES-OTHER,Integrated Care,UK MEDICAL LTD,0002228301,1530.00,
Department of Health,East Sussex Healthcare NHS Trust,14/05/2014,POSTAGE,Integrated Care,UK MEDICAL LTD,0002228301,28.80,
Department of Health,East Sussex Healthcare NHS Trust,14/05/2014,PRINTING/PRINTED MATERIALS,Integrated Care,ICOM,0002228302,942.00,
Department of Health,East Sussex Healthcare NHS Trust,14/05/2014,PROFESSIONAL FEES,Corporate Services,THE POLICE & CRIME COMMISSION. OF SUSSEX,0002228306,2998.02,
Department of Health,East Sussex Healthcare NHS Trust,14/05/2014,WHEELCHAIR,Integrated Care,SOUTHERN MOBILITY CENTRE,0002228431,2592.00,
Department of Health,East Sussex Healthcare NHS Trust,14/05/2014,WHEELCHAIR,Integrated Care,SOUTHERN MOBILITY CENTRE,0002228432,567.60,
Department of Health,East Sussex Healthcare NHS Trust,14/05/2014,WHEELCHAIR,Integrated Care,SOUTHERN MOBILITY CENTRE,0002228433,2264.40,
Department of Health,East Sussex Healthcare NHS Trust,14/05/2014,PROSTHESES-HIP,Integrated Care,JOINT REPLACEMENT INSTRUMENTATION  LTD,0002228447,2144.40,
Department of Health,East Sussex Healthcare NHS Trust,14/05/2014,M&S GENERAL SUPPLIES-OTHER,Commercial,UNISURGE INTERNATIONAL LTD,0002228449,716.58,
Department of Health,East Sussex Healthcare NHS Trust,14/05/2014,PRE-STERILE COMMERCIAL PACKS,Commercial,UNISURGE INTERNATIONAL LTD,0002228452,543.00,
Department of Health,East Sussex Healthcare NHS Trust,14/05/2014,CARDIOLOGY CATHETERS,Integrated Care,BARD LTD,0002228459,1200.00,
Department of Health,East Sussex Healthcare NHS Trust,14/05/2014,SPECIAL SEATING,Integrated Care,CLINICAL ENGINEERING CONSULTANTS LTD,0002228472,2397.60,
Department of Health,East Sussex Healthcare NHS Trust,14/05/2014,SPECIAL SEATING,Integrated Care,CLINICAL ENGINEERING CONSULTANTS LTD,0002228473,2472.00,
Department of Health,East Sussex Healthcare NHS Trust,14/05/2014,M&S GENERAL SUPPLIES-OTHER,Commercial,DLS MEDICAL (DIRECT LEISURE SUPPLIES),0002228474,218.88,
Department of Health,East Sussex Healthcare NHS Trust,14/05/2014,PRE-STERILE COMMERCIAL PACKS,Commercial,DLS MEDICAL (DIRECT LEISURE SUPPLIES),0002228474,488.54,
Department of Health,East Sussex Healthcare NHS Trust,14/05/2014,M&S GENERAL SUPPLIES-OTHER,Commercial,CLINIPAK LTD,0002228475,1546.90,
Department of Health,East Sussex Healthcare NHS Trust,14/05/2014,CARDIOLOGY CATHETERS,Integrated Care,ST JUDE MEDICAL UK LIMITED,0002228476,6000.00,
Department of Health,East Sussex Healthcare NHS Trust,14/05/2014,SURGICAL INSTRUMENTS,Integrated Care,OLYMPUS KEYMED,0002228479,4400.00,
Department of Health,East Sussex Healthcare NHS Trust,14/05/2014,M&S GENERAL SUPPLIES-OTHER,Integrated Care,OLYMPUS KEYMED,0002228480,671.00,
Department of Health,East Sussex Healthcare NHS Trust,14/05/2014,M&S GENERAL SUPPLIES-OTHER,Integrated Care,STRYKER UK,0002228484,108.00,
Department of Health,East Sussex Healthcare NHS Trust,14/05/2014,PROSTHESES-HIP,Integrated Care,STRYKER UK,0002228484,393.12,
Department of Health,East Sussex Healthcare NHS Trust,14/05/2014,CLEANING MATERIALS,Commercial,SERCHEM LTD,0002228486,624.14,
Department of Health,East Sussex Healthcare NHS Trust,14/05/2014,SURGICAL INSTRUMENTS,Integrated Care,HOLOGIC UK LTD,0002228494,1554.00,
Department of Health,East Sussex Healthcare NHS Trust,14/05/2014,BILIARY STENTS,Integrated Care,AQUILANT INTERVENTIONAL,0002228500,909.60,
Department of Health,East Sussex Healthcare NHS Trust,14/05/2014,CAPITAL EXPENDITURE,Other Central,U GROUP LTD,0002228504,30136.32,
Department of Health,East Sussex Healthcare NHS Trust,14/05/2014,GENERAL CHEMICALS,Integrated Care,ROCHE DIAGNOSTICS LTD,0002228506,2177.39,
Department of Health,East Sussex Healthcare NHS Trust,14/05/2014,CONT.MAIN-MED & SURG EQUIP,Commercial,OLYMPUS KEYMED,0002228519,572.00,
Department of Health,East Sussex Healthcare NHS Trust,14/05/2014,M&S GENERAL SUPPLIES-OTHER,Commercial,WESTFIELD MEDICAL LTD,0002228526,948.49,
Department of Health,East Sussex Healthcare NHS Trust,14/05/2014,M&S GENERAL SUPPLIES-OTHER,Integrated Care,PURICORE ENDOSCOPY,0002228699,1029.22,
Department of Health,East Sussex Healthcare NHS Trust,14/05/2014,LAB.REAGENTS-MISCELLANEOUS,Integrated Care,SEBIA UK LTD,0002228718,1538.96,
Department of Health,East Sussex Healthcare NHS Trust,14/05/2014,ENGINEERING MATERIALS,Commercial,J F L SPEAR,0002228969,1400.00,
Department of Health,East Sussex Healthcare NHS Trust,14/05/2014,ENGINEERING MATERIALS,Commercial,J F L SPEAR,0002228970,910.00,
Department of Health,East Sussex Healthcare NHS Trust,14/05/2014,STOCK-ASCRIBE EDGH,Pharmacy Stock,BAXTER HEALTHCARE (BERKSHIRE)LTD,0013015743,2902.68,
Department of Health,East Sussex Healthcare NHS Trust,14/05/2014,STOCK-ASCRIBE EDGH,Pharmacy Stock,BAXTER HEALTHCARE (BERKSHIRE)LTD,0013015744,630.00,
Department of Health,East Sussex Healthcare NHS Trust,14/05/2014,STOCK-ASCRIBE EDGH,Pharmacy Stock,BAXTER HEALTHCARE (BERKSHIRE)LTD,0013015746,840.00,
Department of Health,East Sussex Healthcare NHS Trust,14/05/2014,STOCK-ASCRIBE EDGH,Pharmacy Stock,ALCURA UK LTD,0013015891,715.00,
Department of Health,East Sussex Healthcare NHS Trust,14/05/2014,STOCK-ASCRIBE EDGH,Pharmacy Stock,ALCURA UK LTD,0013015892,715.00,
Department of Health,East Sussex Healthcare NHS Trust,14/05/2014,STOCK-ASCRIBE EDGH,Pharmacy Stock,CELGENE LTD,0013015903,10660.80,
Department of Health,East Sussex Healthcare NHS Trust,14/05/2014,STOCK-ASCRIBE EDGH,Pharmacy Stock,CELGENE LTD,0013015904,10660.80,
Department of Health,East Sussex Healthcare NHS Trust,14/05/2014,STOCK-ASCRIBE EDGH,Pharmacy Stock,CSL BEHRING,0013015906,11160.00,
Department of Health,East Sussex Healthcare NHS Trust,14/05/2014,STOCK-ASCRIBE EDGH,Pharmacy Stock,ALLERGAN LTD,0013015907,2088.00,
Department of Health,East Sussex Healthcare NHS Trust,14/05/2014,STOCK-ASCRIBE EDGH,Pharmacy Stock,ROCHE PRODUCTS LTD,0013015910,5907.64,
Department of Health,East Sussex Healthcare NHS Trust,14/05/2014,STOCK-ASCRIBE EDGH,Pharmacy Stock,GE HEALTHCARE LTD,0013015938,570.82,
Department of Health,East Sussex Healthcare NHS Trust,14/05/2014,STOCK-ASCRIBE EDGH,Pharmacy Stock,GE HEALTHCARE LTD,0013015939,1029.38,
Department of Health,East Sussex Healthcare NHS Trust,14/05/2014,STOCK-ASCRIBE EDGH,Pharmacy Stock,ELI LILLY & CO LTD,0013015941,3187.30,
Department of Health,East Sussex Healthcare NHS Trust,14/05/2014,STOCK-ASCRIBE EDGH,Pharmacy Stock,FRESENIUS LTD,0013015942,993.98,
Department of Health,East Sussex Healthcare NHS Trust,14/05/2014,STOCK-ASCRIBE EDGH,Pharmacy Stock,FRESENIUS LTD,0013015944,1421.57,
Department of Health,East Sussex Healthcare NHS Trust,14/05/2014,STOCK-ASCRIBE EDGH,Pharmacy Stock,HEALTHCARE AT HOME LTD,0013016167,544.75,
Department of Health,East Sussex Healthcare NHS Trust,14/05/2014,STOCK-ASCRIBE EDGH,Pharmacy Stock,BUPA HOME HEALTHCARE,0013016201,1962.00,
Department of Health,East Sussex Healthcare NHS Trust,14/05/2014,STOCK-ASCRIBE EDGH,Pharmacy Stock,BUPA HOME HEALTHCARE,0013016202,12381.30,
Department of Health,East Sussex Healthcare NHS Trust,14/05/2014,STOCK-ASCRIBE EDGH,Pharmacy Stock,BUPA HOME HEALTHCARE,0013016203,677.36,
Department of Health,East Sussex Healthcare NHS Trust,14/05/2014,STOCK-ASCRIBE EDGH,Pharmacy Stock,BUPA HOME HEALTHCARE,0013016204,677.36,
Department of Health,East Sussex Healthcare NHS Trust,14/05/2014,STOCK-ASCRIBE EDGH,Pharmacy Stock,BUPA HOME HEALTHCARE,0013016205,677.36,
Department of Health,East Sussex Healthcare NHS Trust,14/05/2014,STOCK-ASCRIBE EDGH,Pharmacy Stock,BUPA HOME HEALTHCARE,0013016206,677.36,
Department of Health,East Sussex Healthcare NHS Trust,14/05/2014,STOCK-ASCRIBE EDGH,Pharmacy Stock,BUPA HOME HEALTHCARE,0013016207,2147.00,
Department of Health,East Sussex Healthcare NHS Trust,14/05/2014,STOCK-ASCRIBE EDGH,Pharmacy Stock,BUPA HOME HEALTHCARE,0013016208,677.36,
Department of Health,East Sussex Healthcare NHS Trust,14/05/2014,STOCK-ASCRIBE EDGH,Pharmacy Stock,BUPA HOME HEALTHCARE,0013016209,677.36,
Department of Health,East Sussex Healthcare NHS Trust,14/05/2014,STOCK-ASCRIBE EDGH,Pharmacy Stock,BUPA HOME HEALTHCARE,0013016210,677.36,
Department of Health,East Sussex Healthcare NHS Trust,14/05/2014,STOCK-ASCRIBE EDGH,Pharmacy Stock,BUPA HOME HEALTHCARE,0013016211,677.36,
Department of Health,East Sussex Healthcare NHS Trust,14/05/2014,STOCK-ASCRIBE EDGH,Pharmacy Stock,BUPA HOME HEALTHCARE,0013016212,677.36,
Department of Health,East Sussex Healthcare NHS Trust,14/05/2014,STOCK-ASCRIBE EDGH,Pharmacy Stock,BUPA HOME HEALTHCARE,0013016213,677.36,
Department of Health,East Sussex Healthcare NHS Trust,14/05/2014,STOCK-ASCRIBE EDGH,Pharmacy Stock,BUPA HOME HEALTHCARE,0013016214,677.36,
Department of Health,East Sussex Healthcare NHS Trust,14/05/2014,STOCK-ASCRIBE EDGH,Pharmacy Stock,BUPA HOME HEALTHCARE,0013016215,677.36,
Department of Health,East Sussex Healthcare NHS Trust,14/05/2014,STOCK-ASCRIBE EDGH,Pharmacy Stock,BUPA HOME HEALTHCARE,0013016216,677.36,
Department of Health,East Sussex Healthcare NHS Trust,14/05/2014,STOCK-ASCRIBE EDGH,Pharmacy Stock,BUPA HOME HEALTHCARE,0013016217,677.36,
Department of Health,East Sussex Healthcare NHS Trust,14/05/2014,STOCK-ASCRIBE EDGH,Pharmacy Stock,BUPA HOME HEALTHCARE,0013016219,4528.00,
Department of Health,East Sussex Healthcare NHS Trust,14/05/2014,STOCK-ASCRIBE EDGH,Pharmacy Stock,BUPA HOME HEALTHCARE,0013016220,677.36,
Department of Health,East Sussex Healthcare NHS Trust,14/05/2014,STOCK-ASCRIBE EDGH,Pharmacy Stock,BUPA HOME HEALTHCARE,0013016221,677.36,
Department of Health,East Sussex Healthcare NHS Trust,14/05/2014,STOCK-ASCRIBE EDGH,Pharmacy Stock,BUPA HOME HEALTHCARE,0013016222,677.36,
Department of Health,East Sussex Healthcare NHS Trust,14/05/2014,STOCK-ASCRIBE EDGH,Pharmacy Stock,BUPA HOME HEALTHCARE,0013016223,677.36,
Department of Health,East Sussex Healthcare NHS Trust,14/05/2014,STOCK-ASCRIBE EDGH,Pharmacy Stock,BUPA HOME HEALTHCARE,0013016224,677.36,
Department of Health,East Sussex Healthcare NHS Trust,14/05/2014,STOCK-ASCRIBE EDGH,Pharmacy Stock,BUPA HOME HEALTHCARE,0013016225,2147.00,
Department of Health,East Sussex Healthcare NHS Trust,14/05/2014,STOCK-ASCRIBE EDGH,Pharmacy Stock,BUPA HOME HEALTHCARE,0013016226,2147.00,
Department of Health,East Sussex Healthcare NHS Trust,14/05/2014,STOCK-ASCRIBE EDGH,Pharmacy Stock,BUPA HOME HEALTHCARE,0013016227,677.36,
Department of Health,East Sussex Healthcare NHS Trust,14/05/2014,STOCK-ASCRIBE EDGH,Pharmacy Stock,BUPA HOME HEALTHCARE,0013016228,677.36,
Department of Health,East Sussex Healthcare NHS Trust,14/05/2014,STOCK-ASCRIBE EDGH,Pharmacy Stock,HEALTHCARE PRODUCT SERVICES LTD,0013016231,1299.60,
Department of Health,East Sussex Healthcare NHS Trust,14/05/2014,STOCK-ASCRIBE EDGH,Pharmacy Stock,ECOLAB LTD,0013016241,515.64,
Department of Health,East Sussex Healthcare NHS Trust,14/05/2014,STOCK-ASCRIBE EDGH,Pharmacy Stock,BIO PRODUCTS LABORATORY,0013016257,3095.00,
Department of Health,East Sussex Healthcare NHS Trust,14/05/2014,STOCK-ASCRIBE EDGH,Pharmacy Stock,GILEAD SCIENCES LTD,0013016258,6961.68,
Department of Health,East Sussex Healthcare NHS Trust,14/05/2014,STOCK-ASCRIBE EDGH,Pharmacy Stock,FRESENIUS LTD,0013016259,774.00,
Department of Health,East Sussex Healthcare NHS Trust,14/05/2014,STOCK-ASCRIBE EDGH,Pharmacy Stock,NORGINE PHARMACEUTICALS LTD,0013016260,961.92,
Department of Health,East Sussex Healthcare NHS Trust,14/05/2014,STOCK-ASCRIBE EDGH,Pharmacy Stock,CELGENE LTD,0013016262,4762.80,
Department of Health,East Sussex Healthcare NHS Trust,14/05/2014,STOCK-ASCRIBE EDGH,Pharmacy Stock,CELGENE LTD,0013016263,7298.40,
Department of Health,East Sussex Healthcare NHS Trust,14/05/2014,STOCK-ASCRIBE EDGH,Pharmacy Stock,GE HEALTHCARE LTD,0013016264,707.90,
Department of Health,East Sussex Healthcare NHS Trust,14/05/2014,STOCK-ASCRIBE EDGH,Pharmacy Stock,GE HEALTHCARE LTD,0013016265,1216.78,
Department of Health,East Sussex Healthcare NHS Trust,14/05/2014,STOCK-ASCRIBE EDGH,Pharmacy Stock,UNIDRUG DISTRIBUTION GROUP LTD,0013016279,1134.55,
Department of Health,East Sussex Healthcare NHS Trust,14/05/2014,STOCK-ASCRIBE EDGH,Pharmacy Stock,UNIDRUG DISTRIBUTION GROUP LTD,0013016280,864.84,
Department of Health,East Sussex Healthcare NHS Trust,14/05/2014,STOCK-ASCRIBE EDGH,Pharmacy Stock,JANSSEN-CILAG LTD,0013016281,5489.14,
Department of Health,East Sussex Healthcare NHS Trust,14/05/2014,STOCK-ASCRIBE EDGH,Pharmacy Stock,JANSSEN-CILAG LTD,0013016282,9148.56,
Department of Health,East Sussex Healthcare NHS Trust,14/05/2014,STOCK-ASCRIBE EDGH,Pharmacy Stock,BAXTER HEALTHCARE (BERKSHIRE)LTD,0013016285,1167.79,
Department of Health,East Sussex Healthcare NHS Trust,14/05/2014,STOCK-ASCRIBE EDGH,Pharmacy Stock,BAXTER HEALTHCARE (BERKSHIRE)LTD,0013016288,3548.59,
Department of Health,East Sussex Healthcare NHS Trust,14/05/2014,STOCK-ASCRIBE EDGH,Pharmacy Stock,ALCURA UK LTD,0013016468,704.28,
Department of Health,East Sussex Healthcare NHS Trust,14/05/2014,STOCK-ASCRIBE EDGH,Pharmacy Stock,HEALTHCARE AT HOME LTD,0013016487,2817.12,
Department of Health,East Sussex Healthcare NHS Trust,14/05/2014,SURGICAL INSTRUMENTS,Integrated Care,TIMESCO HEALTHCARE LIMITED,0080004713,539.10,
Department of Health,East Sussex Healthcare NHS Trust,14/05/2014,M&S GENERAL SUPPLIES-OTHER,Integrated Care,ARTHROCARE UK LIMITED,0080004715,567.00,
Department of Health,East Sussex Healthcare NHS Trust,14/05/2014,STAPLING DEVICES,Integrated Care,TPS HEALTHCARE,0080004718,1051.45,
Department of Health,East Sussex Healthcare NHS Trust,14/05/2014,SURGICAL INSTRUMENTS,Integrated Care,STERICOM LTD,0080004719,864.00,
Department of Health,East Sussex Healthcare NHS Trust,14/05/2014,M&S GENERAL SUPPLIES-OTHER,Integrated Care,ARTHROCARE UK LIMITED,0080004739,567.00,
Department of Health,East Sussex Healthcare NHS Trust,14/05/2014,PROSTHESES-HIP,Integrated Care,BIOMET UK HEALTHCARE LTD,0080004754,480.00,
Department of Health,East Sussex Healthcare NHS Trust,14/05/2014,PROSTHESIS - SHOULDERS,Integrated Care,BIOMET UK HEALTHCARE LTD,0080004754,1380.00,
Department of Health,East Sussex Healthcare NHS Trust,14/05/2014,PROSTHESES-KNEES,Integrated Care,BIOMET UK HEALTHCARE LTD,0080004774,1533.60,
Department of Health,East Sussex Healthcare NHS Trust,14/05/2014,PROSTHESES-KNEES,Integrated Care,BIOMET UK HEALTHCARE LTD,0080004775,2739.78,
Department of Health,East Sussex Healthcare NHS Trust,14/05/2014,PROSTHESES-HIP,Integrated Care,BIOMET UK HEALTHCARE LTD,0080004776,3296.16,
Department of Health,East Sussex Healthcare NHS Trust,14/05/2014,PROSTHESES-KNEES,Integrated Care,BIOMET UK HEALTHCARE LTD,0080004776,1188.00,
Department of Health,East Sussex Healthcare NHS Trust,14/05/2014,PATS APPL - LEG SUPPORTS,Integrated Care,OSSUR UK LTD,0080004784,748.98,
Department of Health,East Sussex Healthcare NHS Trust,14/05/2014,SUTURES,Integrated Care,ARTHREX LTD,0080004786,1582.80,
Department of Health,East Sussex Healthcare NHS Trust,14/05/2014,STAPLING DEVICES,Integrated Care,COVIDIEN (UK) COMMERCIAL LTD,0080004822,778.38,
Department of Health,East Sussex Healthcare NHS Trust,14/05/2014,M&S GENERAL SUPPLIES-OTHER,Integrated Care,COVIDIEN (UK) COMMERCIAL LTD,0080004822,1198.80,
Department of Health,East Sussex Healthcare NHS Trust,14/05/2014,M&S GENERAL SUPPLIES-OTHER,Integrated Care,CARLETON LTD,0080004829,504.00,
Department of Health,East Sussex Healthcare NHS Trust,14/05/2014,PROCEDURE PACKS,Integrated Care,KIMAL PLC (FOR ORDERS),0080004830,568.75,
Department of Health,East Sussex Healthcare NHS Trust,14/05/2014,M&S GENERAL SUPPLIES-OTHER,Integrated Care,DELTEX MEDICAL,0080004832,537.30,
Department of Health,East Sussex Healthcare NHS Trust,14/05/2014,SURGICAL INSTRUMENTS,Integrated Care,SMITH & NEPHEW HEALTHCARE LTD,0080004833,852.41,
Department of Health,East Sussex Healthcare NHS Trust,14/05/2014,PATS APPL - LEG SUPPORTS,Integrated Care,DACEY LIMITED (ORTHOTIX),0080004842,368.64,
Department of Health,East Sussex Healthcare NHS Trust,14/05/2014,PATS APPL - FOOTWARE,Integrated Care,DACEY LIMITED (ORTHOTIX),0080004842,134.88,
Department of Health,East Sussex Healthcare NHS Trust,14/05/2014,PROSTHESES-HIP,Integrated Care,JOINT REPLACEMENT INSTRUMENTATION  LTD,0080004854,604.80,
Department of Health,East Sussex Healthcare NHS Trust,14/05/2014,PROSTHESES-HIP,Integrated Care,JOINT REPLACEMENT INSTRUMENTATION  LTD,0080004856,1814.40,
Department of Health,East Sussex Healthcare NHS Trust,14/05/2014,PROSTHESES-HIP,Integrated Care,JOINT REPLACEMENT INSTRUMENTATION  LTD,0080004857,604.80,
Department of Health,East Sussex Healthcare NHS Trust,14/05/2014,PROSTHESES-HIP,Integrated Care,JOINT REPLACEMENT INSTRUMENTATION  LTD,0080004860,830.40,
Department of Health,East Sussex Healthcare NHS Trust,14/05/2014,M&S GENERAL SUPPLIES-OTHER,Integrated Care,TELEFLEX MEDICAL,0080004862,597.00,
Department of Health,East Sussex Healthcare NHS Trust,14/05/2014,M&S GENERAL SUPPLIES-OTHER,Integrated Care,MEDICAL IMAGING SYSTEMS,0080004897,880.20,
Department of Health,East Sussex Healthcare NHS Trust,14/05/2014,M&S GENERAL SUPPLIES-OTHER,Integrated Care,MEDICAL IMAGING SYSTEMS,0080004903,880.20,
Department of Health,East Sussex Healthcare NHS Trust,20/05/2014,ADVERTISING COSTS-NON STAFF,Integrated Care,HEALTHCONNECTIONS INTERNATIONAL,0001424979,2076.50,
Department of Health,East Sussex Healthcare NHS Trust,20/05/2014,ADVERTISING COSTS-NON STAFF,Integrated Care,HEALTHCONNECTIONS INTERNATIONAL,0001424980,1740.50,
Department of Health,East Sussex Healthcare NHS Trust,21/05/2014,YEAR END NRVS JV GENERAL CRS,NHS Creditors,NHS SOUTH LONDON CSU,0000139408,90000.00,
Department of Health,East Sussex Healthcare NHS Trust,21/05/2014,YEAR END NRVS JV GENERAL CRS,NHS Creditors,FRIMLEY PARK HOSPITAL NHS FOUND. TRUST,0000139513,3252.18,
Department of Health,East Sussex Healthcare NHS Trust,21/05/2014,YEAR END NRVS JV GENERAL CRS,NHS Creditors,NHS LITIGATION AUTHORITY,0000139654,2500.00,
Department of Health,East Sussex Healthcare NHS Trust,21/05/2014,YEAR END NRVS JV GENERAL CRS,NHS Creditors,ISLE OF WIGHT NHS TRUST,0000139684,559.38,
Department of Health,East Sussex Healthcare NHS Trust,21/05/2014,YEAR END NRVS JV GENERAL CRS,NHS Creditors,HINCHINGBROOKE HEALTH CENTRE NHST,0000139689,851.88,
Department of Health,East Sussex Healthcare NHS Trust,21/05/2014,YEAR END NRVS JV GENERAL CRS,NHS Creditors,NHS BLOOD AND TRANSPLANT (NHSBT),0000139695,82615.66,
Department of Health,East Sussex Healthcare NHS Trust,21/05/2014,YEAR END NRVS JV GENERAL CRS,NHS Creditors,NHS BLOOD AND TRANSPLANT (NHSBT),0000139696,62296.67,
Department of Health,East Sussex Healthcare NHS Trust,21/05/2014,BLOOD PRODUCTS - NBS OTHER,Integrated Care,NHS BLOOD AND TRANSPLANT (NHSBT),0000139697,1488.11,
Department of Health,East Sussex Healthcare NHS Trust,21/05/2014,BLOOD PRODUCTS - NBS OTHER,Integrated Care,NHS BLOOD AND TRANSPLANT (NHSBT),0000139698,1850.57,
Department of Health,East Sussex Healthcare NHS Trust,21/05/2014,NHS SUPPLY CHAIN CREDITORS,Cross Site,NHS SUPPLY CHAIN,0000139702,31634.64,
Department of Health,East Sussex Healthcare NHS Trust,21/05/2014,YEAR END NRVS JV GENERAL CRS,NHS Creditors,NHS BLOOD AND TRANSPLANT (NHSBT),0000139719,754.89,
Department of Health,East Sussex Healthcare NHS Trust,21/05/2014,YEAR END NRVS JV GENERAL CRS,NHS Creditors,NHS BLOOD AND TRANSPLANT (NHSBT),0000139720,692.80,
Department of Health,East Sussex Healthcare NHS Trust,21/05/2014,YEAR END NRVS JV GENERAL CRS,NHS Creditors,NHS BLOOD AND TRANSPLANT (NHSBT),0000139721,614.98,
Department of Health,East Sussex Healthcare NHS Trust,21/05/2014,YEAR END NRVS JV GENERAL CRS,NHS Creditors,KING'S COLLEGE HOSP NHS FOUNDATION TRUST,0000139722,1043.00,
Department of Health,East Sussex Healthcare NHS Trust,21/05/2014,YEAR END NRVS JV GENERAL CRS,NHS Creditors,KING'S COLLEGE HOSP NHS FOUNDATION TRUST,0000139723,1067.22,
Department of Health,East Sussex Healthcare NHS Trust,21/05/2014,YEAR END NRVS JV GENERAL CRS,NHS Creditors,KING'S COLLEGE HOSP NHS FOUNDATION TRUST,0000139725,732.60,
Department of Health,East Sussex Healthcare NHS Trust,21/05/2014,YEAR END NRVS JV GENERAL CRS,NHS Creditors,KING'S COLLEGE HOSP NHS FOUNDATION TRUST,0000139728,2190.00,
Department of Health,East Sussex Healthcare NHS Trust,21/05/2014,YEAR END NRVS JV GENERAL CRS,NHS Creditors,EAST KENT HOSPITALS UNIVERSITY NHS FT,0000139734,1015.65,
Department of Health,East Sussex Healthcare NHS Trust,21/05/2014,YEAR END NRVS JV GENERAL CRS,NHS Creditors,MOORFIELDS EYE HOSPITAL NHS FOUNDATION,0000139740,1567.80,
Department of Health,East Sussex Healthcare NHS Trust,21/05/2014,YEAR END NRVS JV GENERAL CRS,NHS Creditors,MOORFIELDS EYE HOSPITAL NHS FOUNDATION,0000139741,678.60,
Department of Health,East Sussex Healthcare NHS Trust,21/05/2014,YEAR END NRVS JV GENERAL CRS,NHS Creditors,NHS BLOOD AND TRANSPLANT (NHSBT),0000139750,782.25,
Department of Health,East Sussex Healthcare NHS Trust,21/05/2014,YEAR END NRVS JV GENERAL CRS,NHS Creditors,ISLE OF WIGHT NHS TRUST,0000139751,1121.00,
Department of Health,East Sussex Healthcare NHS Trust,21/05/2014,YEAR END NRVS JV GENERAL CRS,NHS Creditors,KING'S COLLEGE HOSP NHS FOUNDATION TRUST,0000139756,2272.05,
Department of Health,East Sussex Healthcare NHS Trust,21/05/2014,YEAR END NRVS JV GENERAL CRS,NHS Creditors,ROYAL BROMPTON & HAREFIELD NHS FND TRST,0000139757,3446.28,
Department of Health,East Sussex Healthcare NHS Trust,21/05/2014,YEAR END NRVS JV GENERAL CRS,NHS Creditors,PUBLIC HEALTH ENGLAND,0000139765,653.09,
Department of Health,East Sussex Healthcare NHS Trust,21/05/2014,YEAR END NRVS JV GENERAL CRS,NHS Creditors,EAST KENT HOSPITALS UNIVERSITY NHS FT,0000139768,1000.00,
Department of Health,East Sussex Healthcare NHS Trust,21/05/2014,BLOOD PRODUCTS - NBS OTHER,Integrated Care,NHS BLOOD AND TRANSPLANT (NHSBT),0000139770,871.01,
Department of Health,East Sussex Healthcare NHS Trust,21/05/2014,YEAR END NRVS JV GENERAL CRS,NHS Creditors,FRIMLEY PARK HOSPITAL NHS FOUND. TRUST,0000139779,3125.99,
Department of Health,East Sussex Healthcare NHS Trust,21/05/2014,PROSTHESIS - LENS,Integrated Care,NHS BLOOD AND TRANSPLANT (NHSBT),0000139780,575.00,
Department of Health,East Sussex Healthcare NHS Trust,21/05/2014,PROSTHESIS - LENS,Integrated Care,NHS BLOOD AND TRANSPLANT (NHSBT),0000139781,575.00,
Department of Health,East Sussex Healthcare NHS Trust,21/05/2014,YEAR END NRVS JV GENERAL CRS,NHS Creditors,FRIMLEY PARK HOSPITAL NHS FOUND. TRUST,0000139811,651.60,
Department of Health,East Sussex Healthcare NHS Trust,21/05/2014,YEAR END NRVS JV GENERAL CRS,NHS Creditors,FRIMLEY PARK HOSPITAL NHS FOUND. TRUST,0000139812,1186.00,
Department of Health,East Sussex Healthcare NHS Trust,21/05/2014,YEAR END NRVS JV GENERAL CRS,NHS Creditors,NHS PENSIONS,0000139815,9361.38,
Department of Health,East Sussex Healthcare NHS Trust,21/05/2014,SA-FPC REF FP10S,Cross Site,NHS BUSINESS SERVICES AUTHORITY,0000139821,7542.21,
Department of Health,East Sussex Healthcare NHS Trust,21/05/2014,CAPITAL EXPENDITURE,Other Central,WESTERN SUSSEX HOSPITALS NHS TRUST,0000139887,521.68,
Department of Health,East Sussex Healthcare NHS Trust,21/05/2014,SR MAIDSTONE & T WELLS TRUST,Other Central,MAIDSTONE & TUNBRIDGE WELLS NHS TRUST,0000139895,494.73,
Department of Health,East Sussex Healthcare NHS Trust,21/05/2014,YEAR END NRVS JV GENERAL CRS,NHS Creditors,MAIDSTONE & TUNBRIDGE WELLS NHS TRUST,0000139895,3644.27,
Department of Health,East Sussex Healthcare NHS Trust,21/05/2014,BLOOD PRODUCTS - NBS OTHER,Integrated Care,NHS BLOOD AND TRANSPLANT (NHSBT),0000139897,1724.49,
Department of Health,East Sussex Healthcare NHS Trust,21/05/2014,BLOOD PRODUCTS - NBS OTHER,Integrated Care,NHS BLOOD AND TRANSPLANT (NHSBT),0000139898,1387.53,
Department of Health,East Sussex Healthcare NHS Trust,21/05/2014,NEQAS SUBSCRIPTIONS,Integrated Care,NOTTINGHAM UNIVERSITY HOSP NHS TRUST,0000139962,1575.00,
Department of Health,East Sussex Healthcare NHS Trust,21/05/2014,TRAINING FEES - NURSE CONT ED,Corporate Services,UNIVERSITY COLLEGE LONDON NHS FOUNDATION,0000139964,1790.00,
Department of Health,East Sussex Healthcare NHS Trust,21/05/2014,COMPUTER SOFTWARE,Corporate Services,PORTSMOUTH HOSPITALS NHS TRUST,0000139980,500.00,
Department of Health,East Sussex Healthcare NHS Trust,21/05/2014,AGENCY SPECIALIST REG,Integrated Care,CAREPRO LTD,0000295718,3477.83,
Department of Health,East Sussex Healthcare NHS Trust,21/05/2014,AGENCY NURSE - UNQUALIFIED,Integrated Care,PREMIERCARE NETWORK LTD,0000296217,618.94,
Department of Health,East Sussex Healthcare NHS Trust,21/05/2014,AGENCY SHO,Integrated Care,HCL DOCTORS,0000296381,528.13,
Department of Health,East Sussex Healthcare NHS Trust,21/05/2014,AGENCY CONSULTANT,Integrated Care,URBAN RECRUITMENT GROUP LTD,0000296541,5472.00,
Department of Health,East Sussex Healthcare NHS Trust,21/05/2014,AGENCY NURSE - UNQUALIFIED,Integrated Care,VENN GROUP LTD,0000296667,1457.85,
Department of Health,East Sussex Healthcare NHS Trust,21/05/2014,AGENCY NURSE - QUALIFIED,Integrated Care,MAYDAY HEALTHCARE PLC,0000296733,511.75,
Department of Health,East Sussex Healthcare NHS Trust,21/05/2014,AGENCY CONSULTANT,Integrated Care,URBAN RECRUITMENT GROUP LTD,0000296777,5540.40,
Department of Health,East Sussex Healthcare NHS Trust,21/05/2014,AGENCY CONSULTANT,Integrated Care,TLC - THE LOCUM CONSULTANCY,0000296853,3286.80,
Department of Health,East Sussex Healthcare NHS Trust,21/05/2014,AGENCY SPECIALIST REG,Integrated Care,MYLOCUM LTD,0000296854,3550.34,
Department of Health,East Sussex Healthcare NHS Trust,21/05/2014,AGENCY CONSULTANT,Integrated Care,TLC - THE LOCUM CONSULTANCY,0000296897,4183.20,
Department of Health,East Sussex Healthcare NHS Trust,21/05/2014,AGENCY CONSULTANT,Integrated Care,PATHOLOGY GROUP,0000296977,7056.00,
Department of Health,East Sussex Healthcare NHS Trust,21/05/2014,AGENCY NURSE - UNQUALIFIED,Integrated Care,TOTAL ASSIST RECRUITMENT LTD,0000297013,2518.20,
